{"text_format":"1","workbook":"xlsx","n_sheets":4,"sheets":["Filnavngivningsnøgle","Filnavnaflæsningsnøgle","Åbne værdilister","Låste værdilister"],"not_rendered":{"charts":0,"images":1,"macros":1,"external_links":0,"defined_names":38,"comments":0,"pivot_tables":0},"unopened":[],"bounds":{"document_bytes":16777216,"sheet_cells":100000,"rows_first":2000,"rows_last":500,"rows_between":2000,"halvings":0,"cell_chars":16384,"cell_head_chars":4096},"cells_cut":0,"cells_raw":0,"read":"whole","date_system":"1900"}

{"sheet":"Filnavngivningsnøgle","index":0,"n_rows":44,"n_cols":19,"rows_kept":44,"cut":false,"hidden":false,"merged":[[34,2,34,5],[34,8,34,11],[34,14,34,17],[31,2,31,11],[18,1,34,1],[30,14,30,17],[31,14,31,17],[27,2,27,5],[24,2,24,5],[28,2,28,5],[28,8,28,11],[33,2,33,5],[33,8,33,11],[33,14,33,17],[22,14,22,17],[24,14,24,17],[25,14,25,17],[27,14,27,17],[28,14,28,17],[27,8,27,11],[24,8,24,11],[30,2,30,5],[22,2,22,5],[25,2,25,5],[22,8,22,11],[25,8,25,11],[1,14,1,15],[1,1,2,6],[21,14,21,17],[18,2,18,5],[18,8,18,11],[2,16,2,18],[2,13,2,15],[5,1,5,13],[21,8,21,11],[19,2,19,5],[19,8,19,11],[21,2,21,5],[18,14,18,17],[19,14,19,17],[13,4,13,6],[10,2,10,6],[4,2,4,18],[6,2,6,18],[15,10,15,18],[15,4,15,6],[15,2,15,3],[15,8,15,9],[13,10,13,12],[13,8,13,9],[13,2,13,3],[13,14,13,15],[13,16,13,18],[9,2,9,6]]}
[]
[null,"Filnavngivningsnøgle"]
[]
[null,"I201_B01_K07_M006_C01.02"]
[null,"Genereret filnavn:",{"$f":"IFERROR(IF(\n\nCONCATENATE(\nIF(INDEX($C$39:$C$44, MATCH($C$11,Rulleliste_Filnavngivningstype,0))=\"●\", IF($C$20<>\"\",CONCATENATE(\"I\", $C$20), \"\"),\"\"),\nIF(INDEX($D$39:$D$44, MATCH($C$11,Rulleliste_Filnavngivningstype,0))=\"●\", IF($I$20<>\"\", CONCATENATE(IF($C$20<>\"\", \"_\",\"\"),\"\",$M$20), \"\"), \"\"),\nIF(INDEX($E$39:$E$44, MATCH($C$11,Rulleliste_Filnavngivningstype,0))=\"●\", IF($O$20<>\"\", CONCATENATE(IF(OR($C$20<>\"\", $I$20<>\"\"), \"_\",\"\"),$S$20), \"\"), \"\"),\nIF(INDEX($F$39:$F$44, MATCH($C$11,Rulleliste_Filnavngivningstype,0))=\"●\", IF($C$23<>\"\", CONCATENATE(\"_\",$G$23), \"\"), \"\"),\nIF(INDEX($G$39:$G$44, MATCH($C$11,Rulleliste_Filnavngivningstype,0))=\"●\", IF($I$23<>\"\", CONCATENATE(\"_\",$M$23), \"\"), \"\"),\nIF(INDEX($H$39:$H$44, MATCH($C$11,Rulleliste_Filnavngivningstype,0))=\"●\", IF($O$23<>\"\", CONCATENATE(\"_\",$S$23), \"\"), \"\"),\nIF(INDEX($I$39:$I$44, MATCH($C$11,Rulleliste_Filnavngivningstype,0))=\"●\", IF($C$26<>\"\", CONCATENATE(\"_\",$G$26), \"\"), \"\"),\nIF(INDEX($J$39:$J$44, MATCH($C$11,Rulleliste_Filnavngivningstype,0))=\"●\", IF($I$26<>\"\", CONCATENATE(\"_\",$M$26), \"\"), \"\"),\nIF(INDEX($K$39:$K$44, MATCH($C$11,Rulleliste_Filnavngivningstype,0))=\"●\", IF($O$26<>\"\", CONCATENATE(\"_\",$S$26), \"\"), \"\"),\nIF(INDEX($L$39:$L$44, MATCH($C$11,Rulleliste_Filnavngivningstype,0))=\"●\", IF($C$29<>\"\", CONCATENATE(\"_\",$G$29), \"\"), \"\"),\nIF(INDEX($M$39:$M$44, MATCH($C$11,Rulleliste_Filnavngivningstype,0))=\"●\", IF($I$29<>\"\", CONCATENATE(\"_\",$M$29), \"\"), \"\"),\nIF(INDEX($N$39:$N$44, MATCH($C$11,Rulleliste_Filnavngivningstype,0))=\"●\", IF($O$29<>\"\", CONCATENATE(\"_\",$S$29), \"\"), \"\"),\nIF(INDEX($O$39:$O$44, MATCH($C$11,Rulleliste_Filnavngivningstype,0))=\"●\", IF($C$32<>\"\", CONCATENATE(\"_Z\",LOWER($C$32)), \"\"), \"\"),\nIF(INDEX($P$39:$P$44, MATCH($C$11,Rulleliste_Filnavngivningstype,0))=\"●\", IF($O$32<>\"\", CONCATENATE(\"_T\", $O$32), \"\"), \"\"),\nIF(INDEX($Q$39:$Q$44, MATCH($C$11,Rulleliste_Filnavngivningstype,0))=\"●\", IF($C$35<>\"\", CONCATENATE(\"_\",$G$35), \"\"), \"\"),\nIF(INDEX($R$39:$R$44, MATCH($C$11,Rulleliste_Filnavngivningstype,0))=\"●\", IF($I$35<>\"\", CONCATENATE(\"_\",$M$35), \"\"), \"\"),\nIF(INDEX($S$39:$S$44, MATCH($C$11,Rulleliste_Filnavngivningstype,0))=\"●\", IF($O$35<>\"\", CONCATENATE(\"_Q\",$O$35), \"\"), \"\"),\n)=\"\",\n\n\"Angiv data i de gule markeret felter i pkt. 2.0\",\n\n\nCONCATENATE(\nIF(INDEX($C$39:$C$44, MATCH($C$11,Rulleliste_Filnavngivningstype,0))=\"●\", IF($C$20<>\"\",CONCATENATE(\"I\", $C$20), \"\"),\"\"),\nIF(INDEX($D$39:$D$44, MATCH($C$11,Rulleliste_Filnavngivningstype,0))=\"●\", IF($I$20<>\"\", CONCATENATE(IF($C$20<>\"\", \"_\",\"\"),\"\",$M$20), \"\"), \"\"),\nIF(INDEX($E$39:$E$44, MATCH($C$11,Rulleliste_Filnavngivningstype,0))=\"●\", IF($O$20<>\"\", CONCATENATE(IF(OR($C$20<>\"\", $I$20<>\"\"), \"_\",\"\"),$S$20), \"\"), \"\"),\nIF(INDEX($F$39:$F$44, MATCH($C$11,Rulleliste_Filnavngivningstype,0))=\"●\", IF($C$23<>\"\", CONCATENATE(\"_\",$G$23), \"\"), \"\"),\nIF(INDEX($G$39:$G$44, MATCH($C$11,Rulleliste_Filnavngivningstype,0))=\"●\", IF($I$23<>\"\", CONCATENATE(\"_\",$M$23), \"\"), \"\"),\nIF(INDEX($H$39:$H$44, MATCH($C$11,Rulleliste_Filnavngivningstype,0))=\"●\", IF($O$23<>\"\", CONCATENATE(\"_\",$S$23), \"\"), \"\"),\nIF(INDEX($I$39:$I$44, MATCH($C$11,Rulleliste_Filnavngivningstype,0))=\"●\", IF($C$26<>\"\", CONCATENATE(\"_\",$G$26), \"\"), \"\"),\nIF(INDEX($J$39:$J$44, MATCH($C$11,Rulleliste_Filnavngivningstype,0))=\"●\", IF($I$26<>\"\", CONCATENATE(\"_\",$M$26), \"\"), \"\"),\nIF(INDEX($K$39:$K$44, MATCH($C$11,Rulleliste_Filnavngivningstype,0))=\"●\", IF($O$26<>\"\", CONCATENATE(\"_\",$S$26), \"\"), \"\"),\nIF(INDEX($L$39:$L$44, MATCH($C$11,Rulleliste_Filnavngivningstype,0))=\"●\", IF($C$29<>\"\", CONCATENATE(\"_\",$G$29), \"\"), \"\"),\nIF(INDEX($M$39:$M$44, MATCH($C$11,Rulleliste_Filnavngivningstype,0))=\"●\", IF($I$29<>\"\", CONCATENATE(\"_\",$M$29), \"\"), \"\"),\nIF(INDEX($N$39:$N$44, MATCH($C$11,Rulleliste_Filnavngivningstype,0))=\"●\", IF($O$29<>\"\", CONCATENATE(\"_\",$S$29), \"\"), \"\"),\nIF(INDEX($O$39:$O$44, MATCH($C$11,Rulleliste_Filnavngivningstype,0))=\"●\", IF($C$32<>\"\", CONCATENATE(\"_Z\",LOWER($C$32)), \"\"), \"\"),\nIF(INDEX($P$39:$P$44, MATCH($C$11,Rulleliste_Filnavngivningstype,0))=\"●\", IF($O$32<>\"\", CONCATENATE(\"_T\", $O$32), \"\"), \"\"),\nIF(INDEX($Q$39:$Q$44, MATCH($C$11,Rulleliste_Filnavngivningstype,0))=\"●\", IF($C$35<>\"\", CONCATENATE(\"_\",$G$35), \"\"), \"\"),\nIF(INDEX($R$39:$R$44, MATCH($C$11,Rulleliste_Filnavngivningstype,0))=\"●\", IF($I$35<>\"\", CONCATENATE(\"_\",$M$35), \"\"), \"\"),\nIF(INDEX($S$39:$S$44, MATCH($C$11,Rulleliste_Filnavngivningstype,0))=\"●\", IF($O$35<>\"\", CONCATENATE(\"_Q\",$O$35), \"\"), \"\"),\n)), \"Vælg filtype i pkt. 1.0\")","v":"Vælg filtype i pkt. 1.0"}]
[]
[null,"Kopierbart filnavn:"]
[]
[]
[null,null,"Vælg filtype (angives i filtype tabellen nederst)"]
[null,null,null,null,null,null,null,"Dropdown menu ved markering af felt / celle"]
[]
[]
[null,null,null,null,"Felter skal udfyldes",null,null,null,"XXX",null,"Felter er udfyldt",null,null,null,null,null,"Felter skal ikke udfyldes"]
[]
[null,null,"Åben",null,"Feltets indhold er \"frit\"",null,null,null,"Låst",null,"Feltets indhold angives via feltets dropdown (marker feltet / cellen for dropdown)"]
[]
[]
[null,"Filnavngivningen genereres ud fra følgende valg:\n\nFelter angivet som \"Låst\", skal dropdown menu bruges i den enkelte celle.\n\nVed felter angivet med \"Åben\", skal der manuelt skrives i den enkelte celle.",{"$f":"$C$37","v":"Projekt ID"},null,null,null,"Åben",null,{"$f":"$D$37","v":"Primær lokalisering"},null,null,null,"Åben",null,{"$f":"$E$37","v":"Sekundær lokalisering"},null,null,null,"Åben"]
[null,null,null,null,null,null,"I###",null,null,null,null,null,{"$f":"IF($I$20<>\"\", INDEX(Tabel_O_Organisation[Værdikode], MATCH($I$20, Tabel_O_Organisation[Metadataværdi DK],0)), \"###-##-##\")","v":"###-##-##"},null,null,null,null,null,{"$f":"IF($O$20<>\"\", INDEX(Tabel_L_Lokalisering[Værdikode], MATCH($O$20, Tabel_L_Lokalisering[Metadataværdi DK],0)), \"LX###\")","v":"LX###"}]
[]
[null,null,{"$f":"$F$37","v":"Virksomhedstype"},null,null,null,"Låst",null,{"$f":"$G$37","v":"Entreprisetype"},null,null,null,"Låst",null,{"$f":"$H$37","v":"Vidensområde"},null,null,null,"Låst"]
[null,null,null,null,null,null,{"$f":"IF($C$23<>\"\", INDEX(LEFT(Tabel_B_Virksomhedstype[Værdikode],3), MATCH($C$23, Tabel_B_Virksomhedstype[Metadataværdi DK],0)), \"BXX\")","v":"BXX"},null,null,null,null,null,{"$f":"IF($I$23<>\"\", INDEX(Tabel_Y_Entreprisetype[Værdikode], MATCH($I$23, Tabel_Y_Entreprisetype[Metadataværdi DK],0)), \"YXXX\")","v":"YXXX"},null,null,null,null,null,{"$f":"IF($O$23<>\"\", INDEX(Tabel_K_Vidensområde[Værdikode], MATCH($O$23, Tabel_K_Vidensområde[Metadataværdi DK],0)), \"KXX\")","v":"KXX"}]
[]
[null,null,{"$f":"$I$37","v":"Fagdisciplin"},null,null,null,"Låst",null,{"$f":"$J$37","v":"Indholdstype"},null,null,null,"Låst",null,{"$f":"$K$37","v":"Filtype"},null,null,null,"Låst"]
[null,null,null,null,null,null,{"$f":"IF($C$26<>\"\", INDEX(Tabel_M_Fagdisciplin[Værdikode], MATCH($C$26, Tabel_M_Fagdisciplin[Metadataværdi DK],0)), \"MXXX\")","v":"MXXX"},null,null,null,null,null,{"$f":"IF($I$26<>\"\", INDEX(Tabel_C_Indholdstype[Værdikode], MATCH($I$26, Tabel_C_Indholdstype[Metadataværdi DK],0)), \"CXX.XX\")","v":"CXX.XX"},null,null,null,null,null,{"$f":"IF($O$26<>\"\", INDEX(Tabel_F_Filtype[Værdikode], MATCH($O$26,Tabel_F_Filtype[Metadataværdi DK], 0)), \"FXX\")","v":"FXX"}]
[]
[null,null,{"$f":"$L$37","v":"Afbildningstype"},null,null,null,"Låst",null,{"$f":"$M$37","v":"Etage"},null,null,null,"Låst",null,{"$f":"$N$37","v":"Stade"},null,null,null,"Låst"]
[null,null,null,null,null,null,{"$f":"IF($C$29<>\"\", INDEX(Tabel_H_Afbildningstype[Værdikode], MATCH($C$29,Tabel_H_Afbildningstype[Metadataværdi DK], 0)), \"HXX.XX\")","v":"HXX.XX"},null,null,null,null,null,{"$f":"IF($I$29<>\"\", INDEX(Tabel_E_Etage[Værdikode], MATCH($I$29, Tabel_E_Etage[Metadataværdi DK],0)), \"EXX\")","v":"EXX"},null,null,null,null,null,{"$f":"IF($O$29<>\"\", INDEX(Tabel_S_Stade[Værdikode], MATCH($O$29, Tabel_S_Stade[Metadataværdi DK],0)), \"SX\")","v":"SX"}]
[]
[null,null,{"$f":"$O$37","v":"Dokumentnavn"},null,null,null,null,null,null,null,null,null,"Åben",null,{"$f":"$P$37","v":"Tema"},null,null,null,"Åben"]
[null,null,null,null,null,null,null,null,null,null,null,null,null,null,null,null,null,null,"T###"]
[]
[null,null,{"$f":"$Q$37","v":"Fase"},null,null,null,"Låst",null,{"$f":"$R$37","v":"Løbenummer"},null,null,null,"Åben",null,{"$f":"$S$37","v":"Kontrolleret af"},null,null,null,"Åben"]
[null,null,null,null,null,null,{"$f":"IF($C$35<>\"\", INDEX(Tabel_A_Fase[Værdikode], MATCH($C$35,Tabel_A_Fase[Metadataværdi DK], 0)), \"AXX\")","v":"AXX"},null,null,null,null,null,{"$f":"IF($I$35<>\"\",CONCATENATE(\"N\",TEXT($I$35,\"000\")),\"NXXX\")","v":"NXXX"},null,null,null,null,null,"QXXX"]
[]
[null,"Krav til filnavngivningen jf. IKT-specifikationens bilag; IKT-filnavngivning\n\nMetaværdier jf. \nMolio's A104 Informationshåndtering","Projekt ID","Primær lokalisering","Sekundær lokalisering","Virksomhedstype","Entreprisetype","Vidensområde","Fagdisciplin","Indholdstype","Filtype","Afbildningstype","Etage","Stade","Dokumentnavn","Tema","Fase","Løbenummer","Kontrolleret af"]
[null,"Filtype","[I]",null,"[L]","[B]","[Y]","[K]","[M]","[C]","[F]","[H]","[E]"," [S]","[Z]","[T]","[A]","[N]","[Q]"]
[null,"Tegning",null,"●","●","●",null,"●","●","●",null,"●","●",null,null,null,null,"●"]
[null,"Dokument",null,"●","●","●",null,"●","●","●",null,null,null,null,"●"]
[null,"BIM-Model",null,"●","●","●",null,"●","●","●","●",null,null,null,null,null,null,"●"]
[null,"-"]
[null,"-"]
[null,"-"]

{"sheet":"Filnavnaflæsningsnøgle","index":1,"n_rows":38,"n_cols":19,"rows_kept":38,"cut":false,"hidden":false,"merged":[[1,1,2,6],[1,14,1,15],[2,13,2,15],[2,16,2,18],[12,1,28,1],[12,2,12,5],[12,8,12,11],[12,14,12,17],[13,2,13,6],[13,14,13,17],[15,2,15,5],[15,8,15,11],[15,14,15,17],[16,2,16,5],[16,8,16,11],[16,14,16,17],[18,2,18,5],[18,8,18,11],[18,14,18,17],[19,2,19,5],[19,8,19,11],[19,14,19,17],[21,2,21,5],[21,8,21,11],[21,14,21,17],[22,2,22,5],[22,8,22,11],[22,14,22,17],[28,2,28,5],[25,2,25,12],[28,8,28,12],[28,14,28,18],[24,2,24,5],[24,14,24,17],[25,14,25,17],[27,2,27,5],[27,8,27,11],[27,14,27,17],[13,8,13,11],[9,2,9,6],[5,2,5,18],[4,2,4,4],[8,2,8,9]]}
[]
[null,"Filnavnaflæsningsnøgle"]
[]
[null,"I201_B01_K07_M006_C01.02"]
[null,null,"Indsæt kopieret filnavn:"]
[]
[]
[]
[null,null,"Vælg filtype (angives i filtype tabellen på fanen; filnavngivningsnøgle)"]
[null,null,null,null,null,null,null,"Dropdown menu ved markering af felt / celle"]
[]
[]
[null,"\n\nHer aflæses betydningen af den enkelte metaværdi f.eks.\n- K01 = Arkitektur\n- F02 = Fagmodel\n\nFelterne; Projekt ID, Organisation og løbenummer oversættes ikke fra metaværdi til en beskrivelse",{"$f":"$C$31","v":"Projekt ID"},null,null,null,"I###",null,{"$f":"$D$31","v":"Primær lokalisering"},null,null,null,"###-##-##",null,{"$f":"$E$31","v":"Sekundær lokalisering"},null,null,null,"LX###"]
[null,null,{"$f":"IFERROR(IFERROR(MID($C$6, SEARCH(\"_I\",$C$6)+1, SEARCH(\"_\", $C$6, SEARCH(\"_I\",$C$6)+1)-SEARCH(\"_I\",$C$6)-1), MID($C$6, SEARCH(\"I\",$C$6),SEARCH(\"_\",$C$6)-1)), \"Fejl i filnavn\")","v":"Fejl i filnavn"},null,null,null,null,null,"Se fanen med åbne værdilister",null,null,null,{"$f":"IFERROR(IFERROR(MID($C$6, SEARCH(\"_O\",$C$6)+2, SEARCH(\"_\", $C$6, SEARCH(\"_O\",$C$6)+1)-SEARCH(\"_O\",$C$6)-2), MID($C$6, SEARCH(\"O\",$C$6),SEARCH(\"_\",$C$6)-1)), \"\")","v":""},null,{"$f":"IFERROR(INDEX(Rullelisteværdi_L_Lokalisering, MATCH($S$14, Rullelisteværdi_L_Lokalisering_Værdikode,0)), \"Fejl i filnavn\")","v":"Fejl i filnavn"},null,null,null,{"$f":"IFERROR(IFERROR(MID($C$6, SEARCH(\"_L\",$C$6)+1, SEARCH(\"_\", $C$6, SEARCH(\"_L\",$C$6)+1)-SEARCH(\"_L\",$C$6)-1), MID($C$6, SEARCH(\"L\",$C$6),SEARCH(\"_\",$C$6)-1)), \"\")","v":""}]
[]
[null,null,{"$f":"$F$31","v":"Virksomhedstype"},null,null,null,"BXX",null,{"$f":"$G$31","v":"Entreprisetype"},null,null,null,"YXXX",null,{"$f":"$H$31","v":"Vidensområde"},null,null,null,"KXX"]
[null,null,{"$f":"IFERROR(INDEX(Rullelisteværdi_B_Virksomhedstype, MATCH($G$17&\".00\", Rullelisteværdi_B_Virksomhedstype_Værdikode,0)), \"Fejl i filnavn\")","v":"Fejl i filnavn"},null,null,null,{"$f":"IFERROR(IFERROR(MID($C$6, SEARCH(\"_B\",$C$6)+1, SEARCH(\"_\", $C$6, SEARCH(\"_B\",$C$6)+1)-SEARCH(\"_B\",$C$6)-1), RIGHT($C$6, LEN($C$6)-SEARCH(\"_B\", $C$6))), \"\")","v":""},null,{"$f":"IFERROR(INDEX(Rullelisteværdi_Y_Entreprisetype, MATCH($M$17, Rullelisteværdi_Y_Entreprisetype_Værdikode,0)), \"Fejl i filnavn\")","v":"Fejl i filnavn"},null,null,null,{"$f":"IFERROR(IFERROR(MID($C$6, SEARCH(\"_Y\",$C$6)+1, SEARCH(\"_\", $C$6, SEARCH(\"_Y\",$C$6)+1)-SEARCH(\"_Y\",$C$6)-1), RIGHT($C$6, LEN($C$6)-SEARCH(\"_Y\", $C$6))), \"\")","v":""},null,{"$f":"IFERROR(INDEX(Rullelisteværdi_K_Vidensområde, MATCH($S$17, Rullelisteværdi_K_Vidensområde_Værdikode,0)), \"Fejl i filnavn\")","v":"Fejl i filnavn"},null,null,null,{"$f":"IFERROR(IFERROR(MID($C$6, SEARCH(\"_K\",$C$6)+1, SEARCH(\"_\", $C$6, SEARCH(\"_K\",$C$6)+1)-SEARCH(\"_K\",$C$6)-1), RIGHT($C$6, LEN($C$6)-SEARCH(\"_K\", $C$6))), \"\")","v":""}]
[]
[null,null,{"$f":"$I$31","v":"Fagdisciplin"},null,null,null,"MXXX",null,{"$f":"$J$31","v":"Indholdstype"},null,null,null,"CXX.XX",null,{"$f":"$K$31","v":"Filtype"},null,null,null,"FXX"]
[null,null,{"$f":"IFERROR(INDEX(Rullelisteværdi_M_Fagdisciplin, MATCH($G$20, Rullelisteværdi_M_Fagdisciplin_Værdikode,0)), \"Fejl i filnavn\")","v":"Fejl i filnavn"},null,null,null,{"$f":"IFERROR(IFERROR(MID($C$6, SEARCH(\"_M\",$C$6)+1, SEARCH(\"_\", $C$6, SEARCH(\"_M\",$C$6)+1)-SEARCH(\"_M\",$C$6)-1), RIGHT($C$6, LEN($C$6)-SEARCH(\"_M\", $C$6))), \"\")","v":""},null,{"$f":"IFERROR(INDEX(Rullelisteværdi_C_Indholdstype, MATCH($M$20, Rullelisteværdi_C_Indholdstype_Værdikode,0)), \"Fejl i filnavn\")","v":"Fejl i filnavn"},null,null,null,{"$f":"IFERROR(IFERROR(MID($C$6, SEARCH(\"_C\",$C$6)+1, SEARCH(\"_\", $C$6, SEARCH(\"_C\",$C$6)+1)-SEARCH(\"_C\",$C$6)-1), RIGHT($C$6, LEN($C$6)-SEARCH(\"_C\", $C$6))), \"\")","v":""},null,{"$f":"IFERROR(INDEX(Rullelisteværdi_F_Filtype, MATCH($S$20, Rullelisteværdi_F_Filtype_Værdikode,0)), \"Fejl i filnavn\")","v":"Fejl i filnavn"},null,null,null,{"$f":"IFERROR(IFERROR(MID($C$6, SEARCH(\"_F\",$C$6)+1, SEARCH(\"_\", $C$6, SEARCH(\"_F\",$C$6)+1)-SEARCH(\"_F\",$C$6)-1), RIGHT($C$6, LEN($C$6)-SEARCH(\"_F\", $C$6))), \"\")","v":""}]
[]
[null,null,{"$f":"$L$31","v":"Afbildningstype"},null,null,null,"HXX.XX",null,{"$f":"$M$31","v":"Etage"},null,null,null,"EXX",null,{"$f":"$N$31","v":"Stade"},null,null,null,"SXX"]
[null,null,{"$f":"IFERROR(INDEX(Rullelisteværdi_H_Afbildningstype, MATCH($G$23, Rullelisteværdi_H_Afbildningstype_Værdikode,0)), \"Fejl i filnavn\")","v":"Fejl i filnavn"},null,null,null,{"$f":"IFERROR(IFERROR(MID($C$6, SEARCH(\"_H\",$C$6)+1, SEARCH(\"_\", $C$6, SEARCH(\"_H\",$C$6)+1)-SEARCH(\"_H\",$C$6)-1), RIGHT($C$6, LEN($C$6)-SEARCH(\"_H\", $C$6))), \"\")","v":""},null,{"$f":"IFERROR(INDEX(Rullelisteværdi_E_Etage, MATCH($M$23, Rullelisteværdi_E_Etage_Værdikode,0)), \"Fejl i filnavn\")","v":"Fejl i filnavn"},null,null,null,{"$f":"IFERROR(IFERROR(MID($C$6, SEARCH(\"_E\",$C$6)+1, SEARCH(\"_\", $C$6, SEARCH(\"_E\",$C$6)+1)-SEARCH(\"_E\",$C$6)-1), RIGHT($C$6, LEN($C$6)-SEARCH(\"_E\", $C$6))), \"\")","v":""},null,{"$f":"IFERROR(INDEX(Rullelisteværdi_S_Stade, MATCH($S$23, Rullelisteværdi_S_Stade_Værdikode,0)), \"Fejl i filnavn\")","v":"Fejl i filnavn"},null,null,null,{"$f":"IFERROR(IFERROR(MID($C$6, SEARCH(\"_S\",$C$6)+1, SEARCH(\"_\", $C$6, SEARCH(\"_S\",$C$6)+1)-SEARCH(\"_S\",$C$6)-1), RIGHT($C$6, LEN($C$6)-SEARCH(\"_S\", $C$6))), \"\")","v":""}]
[]
[null,null,{"$f":"$O$31","v":"Dokumentnavn"},null,null,null,null,null,null,null,null,null,"Tekst",null,{"$f":"$P$31","v":"Tema"},null,null,null,"T###"]
[null,null,{"$f":"IFERROR(IFERROR(MID($C$6, SEARCH(\"_Z\",$C$6)+1, SEARCH(\"_\", $C$6, SEARCH(\"_Z\",$C$6)+1)-SEARCH(\"_Z\",$C$6)-1), RIGHT($C$6, LEN($C$6)-SEARCH(\"_Z\", $C$6)-1)), \"Fejl i filnavn\")","v":"Fejl i filnavn"},null,null,null,null,null,null,null,null,null,null,null,null,null,null,null,{"$f":"IFERROR(IFERROR(MID($C$6, SEARCH(\"_T\",$C$6)+1, SEARCH(\"_\", $C$6, SEARCH(\"_T\",$C$6)+1)-SEARCH(\"_T\",$C$6)-1), RIGHT($C$6, LEN($C$6)-SEARCH(\"_Q\", $C$6))), \"\")","v":""}]
[]
[null,null,{"$f":"$Q$31","v":"Fase"},null,null,null,"AXX",null,{"$f":"$R$31","v":"Løbenummer"},null,null,null,"NXXX",null,{"$f":"$S$31","v":"Kontrolleret af"},null,null,null,"QXXX"]
[null,null,{"$f":"IFERROR(INDEX(Rullelisteværdi_A_Fase, MATCH($G$29, Rullelisteværdi_A_Fase_Værdikode,0)), \"Fejl i filnavn\")","v":"Fejl i filnavn"},null,null,null,{"$f":"IFERROR(IFERROR(MID($C$6, SEARCH(\"_A\",$C$6)+1, SEARCH(\"_\", $C$6, SEARCH(\"_A\",$C$6)+1)-SEARCH(\"_A\",$C$6)-1), RIGHT($C$6, LEN($C$6)-SEARCH(\"_A\", $C$6))), \"\")","v":""},null,{"$f":"IFERROR(IFERROR(MID($C$6, SEARCH(\"_N\",$C$6)+1, SEARCH(\"_\", $C$6, SEARCH(\"_N\",$C$6)+1)-SEARCH(\"_N\",$C$6)-1), RIGHT($C$6, LEN($C$6)-SEARCH(\"_N\", $C$6))), \"Fejl i filnavn\")","v":"Fejl i filnavn"},null,null,null,null,null,{"$f":"IFERROR(IFERROR(MID($C$6, SEARCH(\"_Q\",$C$6)+1, SEARCH(\"_\", $C$6, SEARCH(\"_Q\",$C$6)+1)-SEARCH(\"_Q\",$C$6)-1), RIGHT($C$6, LEN($C$6)-SEARCH(\"_Q\", $C$6))), \"Fejl i filnavn\")","v":"Fejl i filnavn"}]
[]
[null,"Felter i nedestående tabel angives på fanen; filnavngivningsnøgle","Projekt ID","Primær lokalisering","Sekundær lokalisering","Virksomhedstype","Entreprisetype","Vidensområde","Fagdisciplin","Indholdstype","Filtype","Afbildningstype","Etage","Stade","Dokumentnavn","Tema","Fase","Løbenummer","Kontrolleret af"]
[null,"Filtype","[I]",null,"[L]","[B]","[Y]","[K]","[M]","[C]","[F]","[H]","[E]"," [S]","[Z]","[T]","[A]","[N]","[Q]"]
[null,{"$f":"IF(Filnavngivningsnøgle!B39=\"\", \"\", Filnavngivningsnøgle!B39)","v":"Tegning"},{"$f":"IF(Filnavngivningsnøgle!C39=\"\", \"\", Filnavngivningsnøgle!C39)","v":""},{"$f":"IF(Filnavngivningsnøgle!D39=\"\", \"\", Filnavngivningsnøgle!D39)","v":"●"},{"$f":"IF(Filnavngivningsnøgle!E39=\"\", \"\", Filnavngivningsnøgle!E39)","v":"●"},{"$f":"IF(Filnavngivningsnøgle!F39=\"\", \"\", Filnavngivningsnøgle!F39)","v":"●"},{"$f":"IF(Filnavngivningsnøgle!G39=\"\", \"\", Filnavngivningsnøgle!G39)","v":""},{"$f":"IF(Filnavngivningsnøgle!H39=\"\", \"\", Filnavngivningsnøgle!H39)","v":"●"},{"$f":"IF(Filnavngivningsnøgle!I39=\"\", \"\", Filnavngivningsnøgle!I39)","v":"●"},{"$f":"IF(Filnavngivningsnøgle!J39=\"\", \"\", Filnavngivningsnøgle!J39)","v":"●"},{"$f":"IF(Filnavngivningsnøgle!K39=\"\", \"\", Filnavngivningsnøgle!K39)","v":""},{"$f":"IF(Filnavngivningsnøgle!L39=\"\", \"\", Filnavngivningsnøgle!L39)","v":"●"},{"$f":"IF(Filnavngivningsnøgle!M39=\"\", \"\", Filnavngivningsnøgle!M39)","v":"●"},{"$f":"IF(Filnavngivningsnøgle!N39=\"\", \"\", Filnavngivningsnøgle!N39)","v":""},{"$f":"IF(Filnavngivningsnøgle!O39=\"\", \"\", Filnavngivningsnøgle!O39)","v":""},{"$f":"IF(Filnavngivningsnøgle!P39=\"\", \"\", Filnavngivningsnøgle!P39)","v":""},{"$f":"IF(Filnavngivningsnøgle!Q39=\"\", \"\", Filnavngivningsnøgle!Q39)","v":""},{"$f":"IF(Filnavngivningsnøgle!R39=\"\", \"\", Filnavngivningsnøgle!R39)","v":"●"},{"$f":"IF(Filnavngivningsnøgle!S39=\"\", \"\", Filnavngivningsnøgle!S39)","v":""}]
[null,{"$f":"IF(Filnavngivningsnøgle!B40=\"\", \"\", Filnavngivningsnøgle!B40)","v":"Dokument"},{"$f":"IF(Filnavngivningsnøgle!C40=\"\", \"\", Filnavngivningsnøgle!C40)","v":""},{"$f":"IF(Filnavngivningsnøgle!D40=\"\", \"\", Filnavngivningsnøgle!D40)","v":"●"},{"$f":"IF(Filnavngivningsnøgle!E40=\"\", \"\", Filnavngivningsnøgle!E40)","v":"●"},{"$f":"IF(Filnavngivningsnøgle!F40=\"\", \"\", Filnavngivningsnøgle!F40)","v":"●"},{"$f":"IF(Filnavngivningsnøgle!G40=\"\", \"\", Filnavngivningsnøgle!G40)","v":""},{"$f":"IF(Filnavngivningsnøgle!H40=\"\", \"\", Filnavngivningsnøgle!H40)","v":"●"},{"$f":"IF(Filnavngivningsnøgle!I40=\"\", \"\", Filnavngivningsnøgle!I40)","v":"●"},{"$f":"IF(Filnavngivningsnøgle!J40=\"\", \"\", Filnavngivningsnøgle!J40)","v":"●"},{"$f":"IF(Filnavngivningsnøgle!K40=\"\", \"\", Filnavngivningsnøgle!K40)","v":""},{"$f":"IF(Filnavngivningsnøgle!L40=\"\", \"\", Filnavngivningsnøgle!L40)","v":""},{"$f":"IF(Filnavngivningsnøgle!M40=\"\", \"\", Filnavngivningsnøgle!M40)","v":""},{"$f":"IF(Filnavngivningsnøgle!N40=\"\", \"\", Filnavngivningsnøgle!N40)","v":""},{"$f":"IF(Filnavngivningsnøgle!O40=\"\", \"\", Filnavngivningsnøgle!O40)","v":"●"},{"$f":"IF(Filnavngivningsnøgle!P40=\"\", \"\", Filnavngivningsnøgle!P40)","v":""},{"$f":"IF(Filnavngivningsnøgle!Q40=\"\", \"\", Filnavngivningsnøgle!Q40)","v":""},{"$f":"IF(Filnavngivningsnøgle!R40=\"\", \"\", Filnavngivningsnøgle!R40)","v":""},{"$f":"IF(Filnavngivningsnøgle!S40=\"\", \"\", Filnavngivningsnøgle!S40)","v":""}]
[null,{"$f":"IF(Filnavngivningsnøgle!B41=\"\", \"\", Filnavngivningsnøgle!B41)","v":"BIM-Model"},{"$f":"IF(Filnavngivningsnøgle!C41=\"\", \"\", Filnavngivningsnøgle!C41)","v":""},{"$f":"IF(Filnavngivningsnøgle!D41=\"\", \"\", Filnavngivningsnøgle!D41)","v":"●"},{"$f":"IF(Filnavngivningsnøgle!E41=\"\", \"\", Filnavngivningsnøgle!E41)","v":"●"},{"$f":"IF(Filnavngivningsnøgle!F41=\"\", \"\", Filnavngivningsnøgle!F41)","v":"●"},{"$f":"IF(Filnavngivningsnøgle!G41=\"\", \"\", Filnavngivningsnøgle!G41)","v":""},{"$f":"IF(Filnavngivningsnøgle!H41=\"\", \"\", Filnavngivningsnøgle!H41)","v":"●"},{"$f":"IF(Filnavngivningsnøgle!I41=\"\", \"\", Filnavngivningsnøgle!I41)","v":"●"},{"$f":"IF(Filnavngivningsnøgle!J41=\"\", \"\", Filnavngivningsnøgle!J41)","v":"●"},{"$f":"IF(Filnavngivningsnøgle!K41=\"\", \"\", Filnavngivningsnøgle!K41)","v":"●"},{"$f":"IF(Filnavngivningsnøgle!L41=\"\", \"\", Filnavngivningsnøgle!L41)","v":""},{"$f":"IF(Filnavngivningsnøgle!M41=\"\", \"\", Filnavngivningsnøgle!M41)","v":""},{"$f":"IF(Filnavngivningsnøgle!N41=\"\", \"\", Filnavngivningsnøgle!N41)","v":""},{"$f":"IF(Filnavngivningsnøgle!O41=\"\", \"\", Filnavngivningsnøgle!O41)","v":""},{"$f":"IF(Filnavngivningsnøgle!P41=\"\", \"\", Filnavngivningsnøgle!P41)","v":""},{"$f":"IF(Filnavngivningsnøgle!Q41=\"\", \"\", Filnavngivningsnøgle!Q41)","v":""},{"$f":"IF(Filnavngivningsnøgle!R41=\"\", \"\", Filnavngivningsnøgle!R41)","v":"●"},{"$f":"IF(Filnavngivningsnøgle!S41=\"\", \"\", Filnavngivningsnøgle!S41)","v":""}]
[null,{"$f":"IF(Filnavngivningsnøgle!B42=\"\", \"\", Filnavngivningsnøgle!B42)","v":"-"},{"$f":"IF(Filnavngivningsnøgle!C42=\"\", \"\", Filnavngivningsnøgle!C42)","v":""},{"$f":"IF(Filnavngivningsnøgle!D42=\"\", \"\", Filnavngivningsnøgle!D42)","v":""},{"$f":"IF(Filnavngivningsnøgle!E42=\"\", \"\", Filnavngivningsnøgle!E42)","v":""},{"$f":"IF(Filnavngivningsnøgle!F42=\"\", \"\", Filnavngivningsnøgle!F42)","v":""},{"$f":"IF(Filnavngivningsnøgle!G42=\"\", \"\", Filnavngivningsnøgle!G42)","v":""},{"$f":"IF(Filnavngivningsnøgle!H42=\"\", \"\", Filnavngivningsnøgle!H42)","v":""},{"$f":"IF(Filnavngivningsnøgle!I42=\"\", \"\", Filnavngivningsnøgle!I42)","v":""},{"$f":"IF(Filnavngivningsnøgle!J42=\"\", \"\", Filnavngivningsnøgle!J42)","v":""},{"$f":"IF(Filnavngivningsnøgle!K42=\"\", \"\", Filnavngivningsnøgle!K42)","v":""},{"$f":"IF(Filnavngivningsnøgle!L42=\"\", \"\", Filnavngivningsnøgle!L42)","v":""},{"$f":"IF(Filnavngivningsnøgle!M42=\"\", \"\", Filnavngivningsnøgle!M42)","v":""},{"$f":"IF(Filnavngivningsnøgle!N42=\"\", \"\", Filnavngivningsnøgle!N42)","v":""},{"$f":"IF(Filnavngivningsnøgle!O42=\"\", \"\", Filnavngivningsnøgle!O42)","v":""},{"$f":"IF(Filnavngivningsnøgle!P42=\"\", \"\", Filnavngivningsnøgle!P42)","v":""},{"$f":"IF(Filnavngivningsnøgle!Q42=\"\", \"\", Filnavngivningsnøgle!Q42)","v":""},{"$f":"IF(Filnavngivningsnøgle!R42=\"\", \"\", Filnavngivningsnøgle!R42)","v":""},{"$f":"IF(Filnavngivningsnøgle!S42=\"\", \"\", Filnavngivningsnøgle!S42)","v":""}]
[null,{"$f":"IF(Filnavngivningsnøgle!B43=\"\", \"\", Filnavngivningsnøgle!B43)","v":"-"},{"$f":"IF(Filnavngivningsnøgle!C43=\"\", \"\", Filnavngivningsnøgle!C43)","v":""},{"$f":"IF(Filnavngivningsnøgle!D43=\"\", \"\", Filnavngivningsnøgle!D43)","v":""},{"$f":"IF(Filnavngivningsnøgle!E43=\"\", \"\", Filnavngivningsnøgle!E43)","v":""},{"$f":"IF(Filnavngivningsnøgle!F43=\"\", \"\", Filnavngivningsnøgle!F43)","v":""},{"$f":"IF(Filnavngivningsnøgle!G43=\"\", \"\", Filnavngivningsnøgle!G43)","v":""},{"$f":"IF(Filnavngivningsnøgle!H43=\"\", \"\", Filnavngivningsnøgle!H43)","v":""},{"$f":"IF(Filnavngivningsnøgle!I43=\"\", \"\", Filnavngivningsnøgle!I43)","v":""},{"$f":"IF(Filnavngivningsnøgle!J43=\"\", \"\", Filnavngivningsnøgle!J43)","v":""},{"$f":"IF(Filnavngivningsnøgle!K43=\"\", \"\", Filnavngivningsnøgle!K43)","v":""},{"$f":"IF(Filnavngivningsnøgle!L43=\"\", \"\", Filnavngivningsnøgle!L43)","v":""},{"$f":"IF(Filnavngivningsnøgle!M43=\"\", \"\", Filnavngivningsnøgle!M43)","v":""},{"$f":"IF(Filnavngivningsnøgle!N43=\"\", \"\", Filnavngivningsnøgle!N43)","v":""},{"$f":"IF(Filnavngivningsnøgle!O43=\"\", \"\", Filnavngivningsnøgle!O43)","v":""},{"$f":"IF(Filnavngivningsnøgle!P43=\"\", \"\", Filnavngivningsnøgle!P43)","v":""},{"$f":"IF(Filnavngivningsnøgle!Q43=\"\", \"\", Filnavngivningsnøgle!Q43)","v":""},{"$f":"IF(Filnavngivningsnøgle!R43=\"\", \"\", Filnavngivningsnøgle!R43)","v":""},{"$f":"IF(Filnavngivningsnøgle!S43=\"\", \"\", Filnavngivningsnøgle!S43)","v":""}]
[null,{"$f":"IF(Filnavngivningsnøgle!B44=\"\", \"\", Filnavngivningsnøgle!B44)","v":"-"},{"$f":"IF(Filnavngivningsnøgle!C44=\"\", \"\", Filnavngivningsnøgle!C44)","v":""},{"$f":"IF(Filnavngivningsnøgle!D44=\"\", \"\", Filnavngivningsnøgle!D44)","v":""},{"$f":"IF(Filnavngivningsnøgle!E44=\"\", \"\", Filnavngivningsnøgle!E44)","v":""},{"$f":"IF(Filnavngivningsnøgle!F44=\"\", \"\", Filnavngivningsnøgle!F44)","v":""},{"$f":"IF(Filnavngivningsnøgle!G44=\"\", \"\", Filnavngivningsnøgle!G44)","v":""},{"$f":"IF(Filnavngivningsnøgle!H44=\"\", \"\", Filnavngivningsnøgle!H44)","v":""},{"$f":"IF(Filnavngivningsnøgle!I44=\"\", \"\", Filnavngivningsnøgle!I44)","v":""},{"$f":"IF(Filnavngivningsnøgle!J44=\"\", \"\", Filnavngivningsnøgle!J44)","v":""},{"$f":"IF(Filnavngivningsnøgle!K44=\"\", \"\", Filnavngivningsnøgle!K44)","v":""},{"$f":"IF(Filnavngivningsnøgle!L44=\"\", \"\", Filnavngivningsnøgle!L44)","v":""},{"$f":"IF(Filnavngivningsnøgle!M44=\"\", \"\", Filnavngivningsnøgle!M44)","v":""},{"$f":"IF(Filnavngivningsnøgle!N44=\"\", \"\", Filnavngivningsnøgle!N44)","v":""},{"$f":"IF(Filnavngivningsnøgle!O44=\"\", \"\", Filnavngivningsnøgle!O44)","v":""},{"$f":"IF(Filnavngivningsnøgle!P44=\"\", \"\", Filnavngivningsnøgle!P44)","v":""},{"$f":"IF(Filnavngivningsnøgle!Q44=\"\", \"\", Filnavngivningsnøgle!Q44)","v":""},{"$f":"IF(Filnavngivningsnøgle!R44=\"\", \"\", Filnavngivningsnøgle!R44)","v":""},{"$f":"IF(Filnavngivningsnøgle!S44=\"\", \"\", Filnavngivningsnøgle!S44)","v":""}]

{"sheet":"Åbne værdilister","index":2,"n_rows":94,"n_cols":5,"rows_kept":94,"cut":false,"hidden":false,"merged":[[69,1,69,3],[70,1,70,3],[71,1,71,3],[72,1,72,3],[73,1,73,3]]}
["Rullelisteværdi","Værdikode","Metadataværdi DK","Beskrivelse","Metadataværdi UK"]
[{"$f":"CONCATENATE(\"[\",Tabel_O_Organisation[[#This Row],[Værdikode]],\"] \",Tabel_O_Organisation[[#This Row],[Metadataværdi DK]])","v":"[SVS-XX-XX] Sydvestjyske Sygehus"},"SVS-XX-XX","Sydvestjyske Sygehus"]
[{"$f":"CONCATENATE(\"[\",Tabel_O_Organisation[[#This Row],[Værdikode]],\"] \",Tabel_O_Organisation[[#This Row],[Metadataværdi DK]])","v":"[SVS-BR-XX] Sydvestjyske Sygehus - Brørup"},"SVS-BR-XX","Sydvestjyske Sygehus - Brørup"]
[{"$f":"CONCATENATE(\"[\",Tabel_O_Organisation[[#This Row],[Værdikode]],\"] \",Tabel_O_Organisation[[#This Row],[Metadataværdi DK]])","v":"[SVS-ES-XX] Sydvestjyske Sygehus - Esbjerg"},"SVS-ES-XX","Sydvestjyske Sygehus - Esbjerg"]
[{"$f":"CONCATENATE(\"[\",Tabel_O_Organisation[[#This Row],[Værdikode]],\"] \",Tabel_O_Organisation[[#This Row],[Metadataværdi DK]])","v":"[SVS-FR-XX] Sydvestjyske Sygehus - Fredericia"},"SVS-FR-XX","Sydvestjyske Sygehus - Fredericia"]
[{"$f":"CONCATENATE(\"[\",Tabel_O_Organisation[[#This Row],[Værdikode]],\"] \",Tabel_O_Organisation[[#This Row],[Metadataværdi DK]])","v":"[SVS-VA-XX] Sydvestjyske Sygehus - Varde"},"SVS-VA-XX","Sydvestjyske Sygehus - Varde"]
[{"$f":"CONCATENATE(\"[\",Tabel_O_Organisation[[#This Row],[Værdikode]],\"] \",Tabel_O_Organisation[[#This Row],[Metadataværdi DK]])","v":"[SVS-GR-XX] Sydvestjyske Sygehus - Grindsted"},"SVS-GR-XX","Sydvestjyske Sygehus - Grindsted"]
[{"$f":"CONCATENATE(\"[\",Tabel_O_Organisation[[#This Row],[Værdikode]],\"] \",Tabel_O_Organisation[[#This Row],[Metadataværdi DK]])","v":"[SLB-XX-XX] Sygehus Lillebælt"},"SLB-XX-XX","Sygehus Lillebælt"]
[{"$f":"CONCATENATE(\"[\",Tabel_O_Organisation[[#This Row],[Værdikode]],\"] \",Tabel_O_Organisation[[#This Row],[Metadataværdi DK]])","v":"[SLB-KO-XX] Sygehus Lillebælt - Kolding"},"SLB-KO-XX","Sygehus Lillebælt - Kolding"]
[{"$f":"CONCATENATE(\"[\",Tabel_O_Organisation[[#This Row],[Værdikode]],\"] \",Tabel_O_Organisation[[#This Row],[Metadataværdi DK]])","v":"[SLB-MI-XX] Sygehus Lillebælt - Middelfart"},"SLB-MI-XX","Sygehus Lillebælt - Middelfart"]
[{"$f":"CONCATENATE(\"[\",Tabel_O_Organisation[[#This Row],[Værdikode]],\"] \",Tabel_O_Organisation[[#This Row],[Metadataværdi DK]])","v":"[SLB-VE-XX] Sygehus Lillebælt - Vejle"},"SLB-VE-XX","Sygehus Lillebælt - Vejle"]
[{"$f":"CONCATENATE(\"[\",Tabel_O_Organisation[[#This Row],[Værdikode]],\"] \",Tabel_O_Organisation[[#This Row],[Metadataværdi DK]])","v":"[SHS-XX-XX] Sygehus Sønderjylland"},"SHS-XX-XX","Sygehus Sønderjylland"]
[{"$f":"CONCATENATE(\"[\",Tabel_O_Organisation[[#This Row],[Værdikode]],\"] \",Tabel_O_Organisation[[#This Row],[Metadataværdi DK]])","v":"[SHS-SO-XX] Sygehus Sønderjylland - Sønderborg"},"SHS-SO-XX","Sygehus Sønderjylland - Sønderborg"]
[{"$f":"CONCATENATE(\"[\",Tabel_O_Organisation[[#This Row],[Værdikode]],\"] \",Tabel_O_Organisation[[#This Row],[Metadataværdi DK]])","v":"[SHS-TO-XX] Sygehus Sønderjylland - Tønder"},"SHS-TO-XX","Sygehus Sønderjylland - Tønder"]
[{"$f":"CONCATENATE(\"[\",Tabel_O_Organisation[[#This Row],[Værdikode]],\"] \",Tabel_O_Organisation[[#This Row],[Metadataværdi DK]])","v":"[SHS-AB-XX] Sygehus Sønderjylland - Aabenraa"},"SHS-AB-XX","Sygehus Sønderjylland - Aabenraa"]
[{"$f":"CONCATENATE(\"[\",Tabel_O_Organisation[[#This Row],[Værdikode]],\"] \",Tabel_O_Organisation[[#This Row],[Metadataværdi DK]])","v":"[OUH-XX-XX] Odense Universitetshospital"},"OUH-XX-XX","Odense Universitetshospital"]
[{"$f":"CONCATENATE(\"[\",Tabel_O_Organisation[[#This Row],[Værdikode]],\"] \",Tabel_O_Organisation[[#This Row],[Metadataværdi DK]])","v":"[OUH-NY-XX] Odense Universitetshospital - Nyborg"},"OUH-NY-XX","Odense Universitetshospital - Nyborg"]
[{"$f":"CONCATENATE(\"[\",Tabel_O_Organisation[[#This Row],[Værdikode]],\"] \",Tabel_O_Organisation[[#This Row],[Metadataværdi DK]])","v":"[OUH-OD-XX] Odense Universitetshospital - Odense"},"OUH-OD-XX","Odense Universitetshospital - Odense"]
[{"$f":"CONCATENATE(\"[\",Tabel_O_Organisation[[#This Row],[Værdikode]],\"] \",Tabel_O_Organisation[[#This Row],[Metadataværdi DK]])","v":"[OUH-SV-XX] Odense Universitetshospital - Svendborg"},"OUH-SV-XX","Odense Universitetshospital - Svendborg"]
[{"$f":"CONCATENATE(\"[\",Tabel_O_Organisation[[#This Row],[Værdikode]],\"] \",Tabel_O_Organisation[[#This Row],[Metadataværdi DK]])","v":"[OUH-AE-XX] Odense Universitetshospital - Ærø"},"OUH-AE-XX","Odense Universitetshospital - Ærø"]
[{"$f":"CONCATENATE(\"[\",Tabel_O_Organisation[[#This Row],[Værdikode]],\"] \",Tabel_O_Organisation[[#This Row],[Metadataværdi DK]])","v":"[OUH-ST-XX] Odense Universitetshospital - Stærmosegård"},"OUH-ST-XX","Odense Universitetshospital - Stærmosegård"]
[{"$f":"CONCATENATE(\"[\",Tabel_O_Organisation[[#This Row],[Værdikode]],\"] \",Tabel_O_Organisation[[#This Row],[Metadataværdi DK]])","v":"[PSY-XX-XX] Psykiatrien"},"PSY-XX-XX","Psykiatrien"]
[{"$f":"CONCATENATE(\"[\",Tabel_O_Organisation[[#This Row],[Værdikode]],\"] \",Tabel_O_Organisation[[#This Row],[Metadataværdi DK]])","v":"[PSY-BU-XX] Børn- og ungepsykiatri"},"PSY-BU-XX","Børn- og ungepsykiatri"]
[{"$f":"CONCATENATE(\"[\",Tabel_O_Organisation[[#This Row],[Værdikode]],\"] \",Tabel_O_Organisation[[#This Row],[Metadataværdi DK]])","v":"[PSY-BU-ES] Børn- og ungepsykiatri i Esbjerg"},"PSY-BU-ES","Børn- og ungepsykiatri i Esbjerg"]
[{"$f":"CONCATENATE(\"[\",Tabel_O_Organisation[[#This Row],[Værdikode]],\"] \",Tabel_O_Organisation[[#This Row],[Metadataværdi DK]])","v":"[PSY-BU-OD] Børn- og ungepsykiatri i Odense"},"PSY-BU-OD","Børn- og ungepsykiatri i Odense"]
[{"$f":"CONCATENATE(\"[\",Tabel_O_Organisation[[#This Row],[Værdikode]],\"] \",Tabel_O_Organisation[[#This Row],[Metadataværdi DK]])","v":"[PSY-BU-AB] Børn- og ungepsykiatri i Aabenraa"},"PSY-BU-AB","Børn- og ungepsykiatri i Aabenraa"]
[{"$f":"CONCATENATE(\"[\",Tabel_O_Organisation[[#This Row],[Værdikode]],\"] \",Tabel_O_Organisation[[#This Row],[Metadataværdi DK]])","v":"[PSY-BU-VE] Børn- og ungepsykiatri i Vejle"},"PSY-BU-VE","Børn- og ungepsykiatri i Vejle"]
[{"$f":"CONCATENATE(\"[\",Tabel_O_Organisation[[#This Row],[Værdikode]],\"] \",Tabel_O_Organisation[[#This Row],[Metadataværdi DK]])","v":"[PSY-VO-XX] Voksenpsykiatri"},"PSY-VO-XX","Voksenpsykiatri"]
[{"$f":"CONCATENATE(\"[\",Tabel_O_Organisation[[#This Row],[Værdikode]],\"] \",Tabel_O_Organisation[[#This Row],[Metadataværdi DK]])","v":"[PSY-VO-ES] Voksenpsykiatri i Esbjerg"},"PSY-VO-ES","Voksenpsykiatri i Esbjerg"]
[{"$f":"CONCATENATE(\"[\",Tabel_O_Organisation[[#This Row],[Værdikode]],\"] \",Tabel_O_Organisation[[#This Row],[Metadataværdi DK]])","v":"[PSY-VO-MI] Voksenpsykiatri i Middelfart"},"PSY-VO-MI","Voksenpsykiatri i Middelfart"]
[{"$f":"CONCATENATE(\"[\",Tabel_O_Organisation[[#This Row],[Værdikode]],\"] \",Tabel_O_Organisation[[#This Row],[Metadataværdi DK]])","v":"[PSY-VO-OD] Voksenpsykiatri i Odense"},"PSY-VO-OD","Voksenpsykiatri i Odense"]
[{"$f":"CONCATENATE(\"[\",Tabel_O_Organisation[[#This Row],[Værdikode]],\"] \",Tabel_O_Organisation[[#This Row],[Metadataværdi DK]])","v":"[PSY-VO-SV] Voksenpsykiatri i Svendborg"},"PSY-VO-SV","Voksenpsykiatri i Svendborg"]
[{"$f":"CONCATENATE(\"[\",Tabel_O_Organisation[[#This Row],[Værdikode]],\"] \",Tabel_O_Organisation[[#This Row],[Metadataværdi DK]])","v":"[PSY-VO-VE] Voksenpsykiatri i Vejle"},"PSY-VO-VE","Voksenpsykiatri i Vejle"]
[{"$f":"CONCATENATE(\"[\",Tabel_O_Organisation[[#This Row],[Værdikode]],\"] \",Tabel_O_Organisation[[#This Row],[Metadataværdi DK]])","v":"[PSY-VO-AB] Voksenpsykiatri i Aabenraa"},"PSY-VO-AB","Voksenpsykiatri i Aabenraa"]
[{"$f":"CONCATENATE(\"[\",Tabel_O_Organisation[[#This Row],[Værdikode]],\"] \",Tabel_O_Organisation[[#This Row],[Metadataværdi DK]])","v":"[SOC-XX-XX] Socialområdet"},"SOC-XX-XX","Socialområdet"]
[{"$f":"CONCATENATE(\"[\",Tabel_O_Organisation[[#This Row],[Værdikode]],\"] \",Tabel_O_Organisation[[#This Row],[Metadataværdi DK]])","v":"[SOC-AC-XX] Autismecentre"},"SOC-AC-XX","Autismecentre"]
[{"$f":"CONCATENATE(\"[\",Tabel_O_Organisation[[#This Row],[Værdikode]],\"] \",Tabel_O_Organisation[[#This Row],[Metadataværdi DK]])","v":"[SOC-AC-BI] Autismecenter Bihuset"},"SOC-AC-BI","Autismecenter Bihuset"]
[{"$f":"CONCATENATE(\"[\",Tabel_O_Organisation[[#This Row],[Værdikode]],\"] \",Tabel_O_Organisation[[#This Row],[Metadataværdi DK]])","v":"[SOC-AC-HO] Autismecenter Holmehøj"},"SOC-AC-HO","Autismecenter Holmehøj"]
[{"$f":"CONCATENATE(\"[\",Tabel_O_Organisation[[#This Row],[Værdikode]],\"] \",Tabel_O_Organisation[[#This Row],[Metadataværdi DK]])","v":"[SOC-AC-KI] Autismecenter Kirkevej"},"SOC-AC-KI","Autismecenter Kirkevej"]
[{"$f":"CONCATENATE(\"[\",Tabel_O_Organisation[[#This Row],[Værdikode]],\"] \",Tabel_O_Organisation[[#This Row],[Metadataværdi DK]])","v":"[SOC-AC-NY] Autismecenter Nymarksvej"},"SOC-AC-NY","Autismecenter Nymarksvej"]
[{"$f":"CONCATENATE(\"[\",Tabel_O_Organisation[[#This Row],[Værdikode]],\"] \",Tabel_O_Organisation[[#This Row],[Metadataværdi DK]])","v":"[SOC-AC-TP] Autismecenter Teglgårdsparken"},"SOC-AC-TP","Autismecenter Teglgårdsparken"]
[{"$f":"CONCATENATE(\"[\",Tabel_O_Organisation[[#This Row],[Værdikode]],\"] \",Tabel_O_Organisation[[#This Row],[Metadataværdi DK]])","v":"[SOC-AC-AB] Autismecenter Æblehaven"},"SOC-AC-AB","Autismecenter Æblehaven"]
[{"$f":"CONCATENATE(\"[\",Tabel_O_Organisation[[#This Row],[Værdikode]],\"] \",Tabel_O_Organisation[[#This Row],[Metadataværdi DK]])","v":"[SOC-HC-XX] Handicapcentre"},"SOC-HC-XX","Handicapcentre"]
[{"$f":"CONCATENATE(\"[\",Tabel_O_Organisation[[#This Row],[Værdikode]],\"] \",Tabel_O_Organisation[[#This Row],[Metadataværdi DK]])","v":"[SOC-HC-BO] Handicapcenter Børnehusene"},"SOC-HC-BO","Handicapcenter Børnehusene"]
[{"$f":"CONCATENATE(\"[\",Tabel_O_Organisation[[#This Row],[Værdikode]],\"] \",Tabel_O_Organisation[[#This Row],[Metadataværdi DK]])","v":"[SOC-HC-EB] Handicapcenter Engbo"},"SOC-HC-EB","Handicapcenter Engbo"]
[{"$f":"CONCATENATE(\"[\",Tabel_O_Organisation[[#This Row],[Værdikode]],\"] \",Tabel_O_Organisation[[#This Row],[Metadataværdi DK]])","v":"[SOC-HC-GR] Handicapcenter Grejsdalen"},"SOC-HC-GR","Handicapcenter Grejsdalen"]
[{"$f":"CONCATENATE(\"[\",Tabel_O_Organisation[[#This Row],[Værdikode]],\"] \",Tabel_O_Organisation[[#This Row],[Metadataværdi DK]])","v":"[SOC-HC-LH] Handicapcenter Låddenhøj"},"SOC-HC-LH","Handicapcenter Låddenhøj"]
[{"$f":"CONCATENATE(\"[\",Tabel_O_Organisation[[#This Row],[Værdikode]],\"] \",Tabel_O_Organisation[[#This Row],[Metadataværdi DK]])","v":"[SOC-HC-NO] Handicapcenter Nordlys"},"SOC-HC-NO","Handicapcenter Nordlys"]
[{"$f":"CONCATENATE(\"[\",Tabel_O_Organisation[[#This Row],[Værdikode]],\"] \",Tabel_O_Organisation[[#This Row],[Metadataværdi DK]])","v":"[SOC-HC-SH] Handicapcenter Skovhuse"},"SOC-HC-SH","Handicapcenter Skovhuse"]
[{"$f":"CONCATENATE(\"[\",Tabel_O_Organisation[[#This Row],[Værdikode]],\"] \",Tabel_O_Organisation[[#This Row],[Metadataværdi DK]])","v":"[SOC-HC-SK] Handicapcenter Skærehaven"},"SOC-HC-SK","Handicapcenter Skærehaven"]
[{"$f":"CONCATENATE(\"[\",Tabel_O_Organisation[[#This Row],[Værdikode]],\"] \",Tabel_O_Organisation[[#This Row],[Metadataværdi DK]])","v":"[SOC-HC-SV] Handicapcenter Strandvænget"},"SOC-HC-SV","Handicapcenter Strandvænget"]
[{"$f":"CONCATENATE(\"[\",Tabel_O_Organisation[[#This Row],[Værdikode]],\"] \",Tabel_O_Organisation[[#This Row],[Metadataværdi DK]])","v":"[SOC-HC-OH] Handicapcenter Østerhuse"},"SOC-HC-OH","Handicapcenter Østerhuse"]
[{"$f":"CONCATENATE(\"[\",Tabel_O_Organisation[[#This Row],[Værdikode]],\"] \",Tabel_O_Organisation[[#This Row],[Metadataværdi DK]])","v":"[SOC-SO-XX] Socialcentre"},"SOC-SO-XX","Socialcentre"]
[{"$f":"CONCATENATE(\"[\",Tabel_O_Organisation[[#This Row],[Værdikode]],\"] \",Tabel_O_Organisation[[#This Row],[Metadataværdi DK]])","v":"[SOC-SO-BH] Socialcenter Billeshave"},"SOC-SO-BH","Socialcenter Billeshave"]
[{"$f":"CONCATENATE(\"[\",Tabel_O_Organisation[[#This Row],[Værdikode]],\"] \",Tabel_O_Organisation[[#This Row],[Metadataværdi DK]])","v":"[SOC-SO-EG] Socialcenter Egely"},"SOC-SO-EG","Socialcenter Egely"]
[{"$f":"CONCATENATE(\"[\",Tabel_O_Organisation[[#This Row],[Værdikode]],\"] \",Tabel_O_Organisation[[#This Row],[Metadataværdi DK]])","v":"[SOC-SO-KI] Socialcenter Kingstrup"},"SOC-SO-KI","Socialcenter Kingstrup"]
[{"$f":"CONCATENATE(\"[\",Tabel_O_Organisation[[#This Row],[Værdikode]],\"] \",Tabel_O_Organisation[[#This Row],[Metadataværdi DK]])","v":"[SOC-SO-SY] Socialcenter Syrenparken"},"SOC-SO-SY","Socialcenter Syrenparken"]
[{"$f":"CONCATENATE(\"[\",Tabel_O_Organisation[[#This Row],[Værdikode]],\"] \",Tabel_O_Organisation[[#This Row],[Metadataværdi DK]])","v":"[SOC-SP-XX] Specialcentre"},"SOC-SP-XX","Specialcentre"]
[{"$f":"CONCATENATE(\"[\",Tabel_O_Organisation[[#This Row],[Værdikode]],\"] \",Tabel_O_Organisation[[#This Row],[Metadataværdi DK]])","v":"[SOC-SP-BU] Specialcenter Børne- og ungehusene"},"SOC-SP-BU","Specialcenter Børne- og ungehusene"]
[{"$f":"CONCATENATE(\"[\",Tabel_O_Organisation[[#This Row],[Værdikode]],\"] \",Tabel_O_Organisation[[#This Row],[Metadataværdi DK]])","v":"[SOC-SP-EL] Specialcenter Elevhjemmet"},"SOC-SP-EL","Specialcenter Elevhjemmet"]
[{"$f":"CONCATENATE(\"[\",Tabel_O_Organisation[[#This Row],[Værdikode]],\"] \",Tabel_O_Organisation[[#This Row],[Metadataværdi DK]])","v":"[SOC-SP-FU] Specialcenter Fuglmajgård"},"SOC-SP-FU","Specialcenter Fuglmajgård"]
[{"$f":"CONCATENATE(\"[\",Tabel_O_Organisation[[#This Row],[Værdikode]],\"] \",Tabel_O_Organisation[[#This Row],[Metadataværdi DK]])","v":"[SOC-SP-GR] Specialcenter Grønnebæk"},"SOC-SP-GR","Specialcenter Grønnebæk"]
[{"$f":"CONCATENATE(\"[\",Tabel_O_Organisation[[#This Row],[Værdikode]],\"] \",Tabel_O_Organisation[[#This Row],[Metadataværdi DK]])","v":"[SOC-SP-HO] Specialcenter Holtegården"},"SOC-SP-HO","Specialcenter Holtegården"]
[{"$f":"CONCATENATE(\"[\",Tabel_O_Organisation[[#This Row],[Værdikode]],\"] \",Tabel_O_Organisation[[#This Row],[Metadataværdi DK]])","v":"[SOC-SP-KR] Specialcenter Kompasrosen"},"SOC-SP-KR","Specialcenter Kompasrosen"]
[{"$f":"CONCATENATE(\"[\",Tabel_O_Organisation[[#This Row],[Værdikode]],\"] \",Tabel_O_Organisation[[#This Row],[Metadataværdi DK]])","v":"[SOC-SP-MA] Specialcenter Marsvænget"},"SOC-SP-MA","Specialcenter Marsvænget"]
[{"$f":"CONCATENATE(\"[\",Tabel_O_Organisation[[#This Row],[Værdikode]],\"] \",Tabel_O_Organisation[[#This Row],[Metadataværdi DK]])","v":"[SOC-SP-MI] Specialcenter Midgaardhus"},"SOC-SP-MI","Specialcenter Midgaardhus"]
[{"$f":"CONCATENATE(\"[\",Tabel_O_Organisation[[#This Row],[Værdikode]],\"] \",Tabel_O_Organisation[[#This Row],[Metadataværdi DK]])","v":"[SOC-SP-MO] Specialcenter Møllebakken"},"SOC-SP-MO","Specialcenter Møllebakken"]
[{"$f":"CONCATENATE(\"[\",Tabel_O_Organisation[[#This Row],[Værdikode]],\"] \",Tabel_O_Organisation[[#This Row],[Metadataværdi DK]])","v":"[SOC-SP-OE] Specialcenter Østruplund"},"SOC-SP-OE","Specialcenter Østruplund"]
[]
["Værdiliste","L"]
["Metadatanavn","Lokalisering (Location)"]
["Definition","Kategorisering efter anvendt viden om et bestemt område (Bygning, anlæg, landskab, gårdrum, parkeringsplads)"]
["Bunden/Åben","Åben"]
["Note","Nummerering er projektspecifik, og skal angives i samarbejde med bygherre."]
[]
["Rullelisteværdi","Værdikode","Metadataværdi DK","Beskrivelse","Metadataværdi UK"]
[{"$f":"CONCATENATE(\"[\",Tabel_L_Lokalisering[[#This Row],[Værdikode]],\"] \",Tabel_L_Lokalisering[[#This Row],[Metadataværdi DK]])","v":"[LA000] Anlægsområder"},"LA000","Anlægsområder","Dækker over mere end ét anlægsområde"]
[{"$f":"CONCATENATE(\"[\",Tabel_L_Lokalisering[[#This Row],[Værdikode]],\"] \",Tabel_L_Lokalisering[[#This Row],[Metadataværdi DK]])","v":"[LA001] Anlægsområde 1"},"LA001","Anlægsområde 1"]
[{"$f":"CONCATENATE(\"[\",Tabel_L_Lokalisering[[#This Row],[Værdikode]],\"] \",Tabel_L_Lokalisering[[#This Row],[Metadataværdi DK]])","v":"[LA002] Anlægsområde 2"},"LA002","Anlægsområde 2"]
[{"$f":"CONCATENATE(\"[\",Tabel_L_Lokalisering[[#This Row],[Værdikode]],\"] \",Tabel_L_Lokalisering[[#This Row],[Metadataværdi DK]])","v":"[LB000] Bygningsområder"},"LB000","Bygningsområder","Dækker over mere end én bygning"]
[{"$f":"CONCATENATE(\"[\",Tabel_L_Lokalisering[[#This Row],[Værdikode]],\"] \",Tabel_L_Lokalisering[[#This Row],[Metadataværdi DK]])","v":"[LB001] Bygning 1"},"LB001","Bygning 1"]
[{"$f":"CONCATENATE(\"[\",Tabel_L_Lokalisering[[#This Row],[Værdikode]],\"] \",Tabel_L_Lokalisering[[#This Row],[Metadataværdi DK]])","v":"[LB002] Bygning 2"},"LB002","Bygning 2"]
[{"$f":"CONCATENATE(\"[\",Tabel_L_Lokalisering[[#This Row],[Værdikode]],\"] \",Tabel_L_Lokalisering[[#This Row],[Metadataværdi DK]])","v":"[LB003] Bygning 3"},"LB003","Bygning 3"]
[{"$f":"CONCATENATE(\"[\",Tabel_L_Lokalisering[[#This Row],[Værdikode]],\"] \",Tabel_L_Lokalisering[[#This Row],[Metadataværdi DK]])","v":"[LG000] Gårdrumsområder"},"LG000","Gårdrumsområder","Dækker over mere end ét gårdrum"]
[{"$f":"CONCATENATE(\"[\",Tabel_L_Lokalisering[[#This Row],[Værdikode]],\"] \",Tabel_L_Lokalisering[[#This Row],[Metadataværdi DK]])","v":"[LG001] Gårdrum 1"},"LG001","Gårdrum 1"]
[{"$f":"CONCATENATE(\"[\",Tabel_L_Lokalisering[[#This Row],[Værdikode]],\"] \",Tabel_L_Lokalisering[[#This Row],[Metadataværdi DK]])","v":"[LG002] Gårdrum 2"},"LG002","Gårdrum 2"]
[{"$f":"CONCATENATE(\"[\",Tabel_L_Lokalisering[[#This Row],[Værdikode]],\"] \",Tabel_L_Lokalisering[[#This Row],[Metadataværdi DK]])","v":"[LL000] Landskabsområder"},"LL000","Landskabsområder","Dækker over mere end ét landskabsområde"]
[{"$f":"CONCATENATE(\"[\",Tabel_L_Lokalisering[[#This Row],[Værdikode]],\"] \",Tabel_L_Lokalisering[[#This Row],[Metadataværdi DK]])","v":"[LL001] Landskabsområde 1"},"LL001","Landskabsområde 1"]
[{"$f":"CONCATENATE(\"[\",Tabel_L_Lokalisering[[#This Row],[Værdikode]],\"] \",Tabel_L_Lokalisering[[#This Row],[Metadataværdi DK]])","v":"[LL002] Landskabsområde 2"},"LL002","Landskabsområde 2"]
[{"$f":"CONCATENATE(\"[\",Tabel_L_Lokalisering[[#This Row],[Værdikode]],\"] \",Tabel_L_Lokalisering[[#This Row],[Metadataværdi DK]])","v":"[LP000] Parkeringsområder"},"LP000","Parkeringsområder","Dækker over mere en ét parkeringsområde"]
[{"$f":"CONCATENATE(\"[\",Tabel_L_Lokalisering[[#This Row],[Værdikode]],\"] \",Tabel_L_Lokalisering[[#This Row],[Metadataværdi DK]])","v":"[LP001] Parkeringsområde 1"},"LP001","Parkeringsområde 1"]
[{"$f":"CONCATENATE(\"[\",Tabel_L_Lokalisering[[#This Row],[Værdikode]],\"] \",Tabel_L_Lokalisering[[#This Row],[Metadataværdi DK]])","v":"[LP002] Parkeringsområde 2"},"LP002","Parkeringsområde 2"]
[{"$f":"CONCATENATE(\"[\",Tabel_L_Lokalisering[[#This Row],[Værdikode]],\"] \",Tabel_L_Lokalisering[[#This Row],[Metadataværdi DK]])","v":"[LP003] Parkeringsområde 3"},"LP003","Parkeringsområde 3"]
[{"$f":"CONCATENATE(\"[\",Tabel_L_Lokalisering[[#This Row],[Værdikode]],\"] \",Tabel_L_Lokalisering[[#This Row],[Metadataværdi DK]])","v":"[LX000] Tværgående områder"},"LX000","Tværgående områder","Dækker over tværgående områder, som ikke specifikt angiver en af ovenstående område kategorier."]

{"sheet":"Låste værdilister","index":3,"n_rows":720,"n_cols":6,"rows_kept":720,"cut":false,"hidden":true,"merged":[[602,1,602,3],[603,1,603,3],[581,1,581,3],[582,1,582,3],[583,1,583,3],[599,1,599,3],[600,1,600,3],[601,1,601,3],[580,1,580,3],[543,1,543,3],[544,1,544,3],[545,1,545,3],[546,1,546,3],[547,1,547,3],[560,1,560,3],[561,1,561,3],[562,1,562,3],[563,1,563,3],[564,1,564,3],[579,1,579,3],[525,1,525,3],[382,1,382,3],[383,1,383,3],[415,1,415,3],[416,1,416,3],[417,1,417,3],[418,1,418,3],[419,1,419,3],[521,1,521,3],[522,1,522,3],[523,1,523,3],[524,1,524,3],[381,1,381,3],[316,1,316,3],[317,1,317,3],[318,1,318,3],[319,1,319,3],[364,1,364,3],[365,1,365,3],[366,1,366,3],[367,1,367,3],[368,1,368,3],[379,1,379,3],[380,1,380,3],[315,1,315,3],[260,1,260,3],[275,1,275,3],[276,1,276,3],[277,1,277,3],[278,1,278,3],[279,1,279,3],[297,1,297,3],[298,1,298,3],[299,1,299,3],[300,1,300,3],[301,1,301,3],[259,1,259,3],[153,1,153,3],[154,1,154,3],[155,1,155,3],[246,1,246,3],[247,1,247,3],[248,1,248,3],[249,1,249,3],[250,1,250,3],[256,1,256,3],[257,1,257,3],[258,1,258,3],[152,1,152,3],[0,1,0,3],[1,1,1,3],[2,1,2,3],[3,1,3,3],[4,1,4,3],[27,1,27,3],[28,1,28,3],[29,1,29,3],[30,1,30,3],[31,1,31,3],[151,1,151,3]]}
["Værdiliste","A"]
["Metadatanavn","Fase (Phase)"]
["Definition","Kategorisering efter afgrænset tidsperiode og de processer, der indgår heri"]
["Bunden/Åben","Åben"]
["Note","Der er angivet to vejledende eksempler på værdilister, svarende til Ydelsesbeskrivelsen for Byggeri og Landskab 2018 (YBL18) og Almindelige Betingelser for Rådgivning (ABR18)."]
[]
["Rullelisteværdi","Værdikode","Metadataværdi DK","Beskrivelse","Metadataværdi UK"]
[{"$f":"CONCATENATE(\"[\",Tabel_A_Fase[[#This Row],[Værdikode]],\"] \",Tabel_A_Fase[[#This Row],[Metadataværdi DK]])","v":"[A01] Idéoplæg"},"A01","Idéoplæg","Idéoplæg er den første bearbejdning af bygherrens idé, dvs. de tanker, forventninger og behov bygherren har med henblik på en beslutning om opgavens realisering.","The Appraisal phase"]
[{"$f":"CONCATENATE(\"[\",Tabel_A_Fase[[#This Row],[Værdikode]],\"] \",Tabel_A_Fase[[#This Row],[Metadataværdi DK]])","v":"[A02] Byggeprogram"},"A02","Byggeprogram","Byggeprogrammet er en koordineret sammenfatning af bygherrens krav og ønsker til byggeriet samt til byggeriets projektering og udførelse. \nByggeprogrammets detaljeringsgrad tilpasses byggeriets størrelse, kompleksitet og organisering.","The Design specification phase"]
[{"$f":"CONCATENATE(\"[\",Tabel_A_Fase[[#This Row],[Værdikode]],\"] \",Tabel_A_Fase[[#This Row],[Metadataværdi DK]])","v":"[A03] Dispositionsforslag"},"A03","Dispositionsforslag","Dispositionsforslaget er et motiveret forslag til opgavens løsning på grundlag af et godkendt byggeprogram.","The Outline proposal phase"]
[{"$f":"CONCATENATE(\"[\",Tabel_A_Fase[[#This Row],[Værdikode]],\"] \",Tabel_A_Fase[[#This Row],[Metadataværdi DK]])","v":"[A04] Projektforslag"},"A04","Projektforslag","Projektforslaget er en bearbejdelse af det godkendte dispositionsforslag i en sådan grad, at alle de for projektet afgørende beslutninger er truffet og indgår i forslaget.","The Project proposal phase"]
[{"$f":"CONCATENATE(\"[\",Tabel_A_Fase[[#This Row],[Værdikode]],\"] \",Tabel_A_Fase[[#This Row],[Metadataværdi DK]])","v":"[A05] Myndighedsprojekt"},"A05","Myndighedsprojekt","Myndighedsprojektet er en bearbejdelse af projektforslaget, som herefter skal sendes til myndigheder, som herefter skal godkende det forløbige projektmateriale, som senere skal opdateres og sendes til endelig myndighedsgodkendelse.","The Regulatory project phase"]
[{"$f":"CONCATENATE(\"[\",Tabel_A_Fase[[#This Row],[Værdikode]],\"] \",Tabel_A_Fase[[#This Row],[Metadataværdi DK]])","v":"[A06] Udbudsprojekt"},"A06","Udbudsprojekt","Udbudsprojektet fastlægger opgaven klart og med en sådan detaljeringsgrad, at det kan danne grundlag for udbud, kontrahering, udarbejdelse af udførelsesprojekt og udførelse.","The Tender Design phase"]
[{"$f":"CONCATENATE(\"[\",Tabel_A_Fase[[#This Row],[Værdikode]],\"] \",Tabel_A_Fase[[#This Row],[Metadataværdi DK]])","v":"[A07] Udførelsesprojekt"},"A07","Udførelsesprojekt","Udførelsesprojektet baseres på indhentede og accepterede tilbud fra entreprenører og er en viderebearbejdning af udbudsprojektet til et endeligt projekt, så det kan danne grundlag for entreprenørernes indkøb, forberedelse og udførelse af byggeriet. ","The Construction project phase"]
[{"$f":"CONCATENATE(\"[\",Tabel_A_Fase[[#This Row],[Værdikode]],\"] \",Tabel_A_Fase[[#This Row],[Metadataværdi DK]])","v":"[A08] Udførelse"},"A08","Udførelse","Udførelsen baseres på udførelsesprojektet, og her vil der evt, skulle foretages løbende ændringer i projektmateriale iht. tilbud fra entreprenører eller ændringsforespøgsler fra bygherre.","The construction phase"]
[{"$f":"CONCATENATE(\"[\",Tabel_A_Fase[[#This Row],[Værdikode]],\"] \",Tabel_A_Fase[[#This Row],[Metadataværdi DK]])","v":"[A09] Aflevering"},"A09","Aflevering","Afleveringsfasen baseres på alle forudgående faser, og skal primært opdateres således at projektmaterialet stemmer overens med det udførte i udførelsesfasen.","The Delivery phase"]
[]
[]
[]
[]
[]
[]
[]
[]
[]
[]
[]
["Værdiliste","B"]
["Metadatanavn","Virksomhedstype (Business type)"]
["Definition","Kategorisering af aktør efter forretningsmæssigt virke"]
["Bunden/Åben","Åben"]
["Note"]
[]
["Rullelisteværdi","Værdikode","Metadataværdi DK","Beskrivelse","Metadataværdi UK","(Bruges i andre dokumenter)\nFirma- eller organisationsnavn "]
[{"$f":"CONCATENATE(\"[\",Tabel_B_Virksomhedstype[[#This Row],[Værdikode]],IF(LEN(Tabel_B_Virksomhedstype[[#This Row],[Værdikode]])=3,\".00.00\",\"\"),IF(LEN(Tabel_B_Virksomhedstype[[#This Row],[Værdikode]])=6,\".00\",\"\"),\"] \",IF(Tabel_B_Virksomhedstype[[#This Row],[(Bruges i andre dokumenter)\nFirma- eller organisationsnavn ]]=\"\",Tabel_B_Virksomhedstype[[#This Row],[Metadataværdi DK]],Tabel_B_Virksomhedstype[[#This Row],[(Bruges i andre dokumenter)\nFirma- eller organisationsnavn ]]))","v":"[B01.00.00] Bygherre"},"B01.00","Bygherre",null,"Client, Appointing party"]
[{"$f":"CONCATENATE(\"[\",Tabel_B_Virksomhedstype[[#This Row],[Værdikode]],IF(LEN(Tabel_B_Virksomhedstype[[#This Row],[Værdikode]])=3,\".00.00\",\"\"),IF(LEN(Tabel_B_Virksomhedstype[[#This Row],[Værdikode]])=6,\".00\",\"\"),\"] \",IF(Tabel_B_Virksomhedstype[[#This Row],[(Bruges i andre dokumenter)\nFirma- eller organisationsnavn ]]=\"\",Tabel_B_Virksomhedstype[[#This Row],[Metadataværdi DK]],Tabel_B_Virksomhedstype[[#This Row],[(Bruges i andre dokumenter)\nFirma- eller organisationsnavn ]]))","v":"[B01.01.00] Virksomhed"},"B01.01","Virksomhed","Organisation, der producerer og sælger varer eller tjenesteydelser","Company"]
[{"$f":"CONCATENATE(\"[\",Tabel_B_Virksomhedstype[[#This Row],[Værdikode]],IF(LEN(Tabel_B_Virksomhedstype[[#This Row],[Værdikode]])=3,\".00.00\",\"\"),IF(LEN(Tabel_B_Virksomhedstype[[#This Row],[Værdikode]])=6,\".00\",\"\"),\"] \",IF(Tabel_B_Virksomhedstype[[#This Row],[(Bruges i andre dokumenter)\nFirma- eller organisationsnavn ]]=\"\",Tabel_B_Virksomhedstype[[#This Row],[Metadataværdi DK]],Tabel_B_Virksomhedstype[[#This Row],[(Bruges i andre dokumenter)\nFirma- eller organisationsnavn ]]))","v":"[B01.02.00] Stat"},"B01.02","Stat","Selvstændig politisk enhed med en politisk ledelse for befolkningen i området","State authority"]
[{"$f":"CONCATENATE(\"[\",Tabel_B_Virksomhedstype[[#This Row],[Værdikode]],IF(LEN(Tabel_B_Virksomhedstype[[#This Row],[Værdikode]])=3,\".00.00\",\"\"),IF(LEN(Tabel_B_Virksomhedstype[[#This Row],[Værdikode]])=6,\".00\",\"\"),\"] \",IF(Tabel_B_Virksomhedstype[[#This Row],[(Bruges i andre dokumenter)\nFirma- eller organisationsnavn ]]=\"\",Tabel_B_Virksomhedstype[[#This Row],[Metadataværdi DK]],Tabel_B_Virksomhedstype[[#This Row],[(Bruges i andre dokumenter)\nFirma- eller organisationsnavn ]]))","v":"[B01.03.00] Region"},"B01.03","Region","Administrativt geografisk afgrænset område, der i politisk henseende udgør en enhed ledet af et regionsråd","Regional authority"]
[{"$f":"CONCATENATE(\"[\",Tabel_B_Virksomhedstype[[#This Row],[Værdikode]],IF(LEN(Tabel_B_Virksomhedstype[[#This Row],[Værdikode]])=3,\".00.00\",\"\"),IF(LEN(Tabel_B_Virksomhedstype[[#This Row],[Værdikode]])=6,\".00\",\"\"),\"] \",IF(Tabel_B_Virksomhedstype[[#This Row],[(Bruges i andre dokumenter)\nFirma- eller organisationsnavn ]]=\"\",Tabel_B_Virksomhedstype[[#This Row],[Metadataværdi DK]],Tabel_B_Virksomhedstype[[#This Row],[(Bruges i andre dokumenter)\nFirma- eller organisationsnavn ]]))","v":"[B01.04.00] Kommune"},"B01.04","Kommune","Lokal administrativ enhed, der ledes af en folkevalgt kommunalbestyrelse","Municipal authority"]
[{"$f":"CONCATENATE(\"[\",Tabel_B_Virksomhedstype[[#This Row],[Værdikode]],IF(LEN(Tabel_B_Virksomhedstype[[#This Row],[Værdikode]])=3,\".00.00\",\"\"),IF(LEN(Tabel_B_Virksomhedstype[[#This Row],[Værdikode]])=6,\".00\",\"\"),\"] \",IF(Tabel_B_Virksomhedstype[[#This Row],[(Bruges i andre dokumenter)\nFirma- eller organisationsnavn ]]=\"\",Tabel_B_Virksomhedstype[[#This Row],[Metadataværdi DK]],Tabel_B_Virksomhedstype[[#This Row],[(Bruges i andre dokumenter)\nFirma- eller organisationsnavn ]]))","v":"[B02.00.00] Rådgiver"},"B02.00","Rådgiver",null,"Advisor"]
[{"$f":"CONCATENATE(\"[\",Tabel_B_Virksomhedstype[[#This Row],[Værdikode]],IF(LEN(Tabel_B_Virksomhedstype[[#This Row],[Værdikode]])=3,\".00.00\",\"\"),IF(LEN(Tabel_B_Virksomhedstype[[#This Row],[Værdikode]])=6,\".00\",\"\"),\"] \",IF(Tabel_B_Virksomhedstype[[#This Row],[(Bruges i andre dokumenter)\nFirma- eller organisationsnavn ]]=\"\",Tabel_B_Virksomhedstype[[#This Row],[Metadataværdi DK]],Tabel_B_Virksomhedstype[[#This Row],[(Bruges i andre dokumenter)\nFirma- eller organisationsnavn ]]))","v":"[B02.01.00] Bygherrerådgiver"},"B02.01","Bygherrerådgiver","Rådgivervirksomhed, der rådgiver bygherrer","Client advisor"]
[{"$f":"CONCATENATE(\"[\",Tabel_B_Virksomhedstype[[#This Row],[Værdikode]],IF(LEN(Tabel_B_Virksomhedstype[[#This Row],[Værdikode]])=3,\".00.00\",\"\"),IF(LEN(Tabel_B_Virksomhedstype[[#This Row],[Værdikode]])=6,\".00\",\"\"),\"] \",IF(Tabel_B_Virksomhedstype[[#This Row],[(Bruges i andre dokumenter)\nFirma- eller organisationsnavn ]]=\"\",Tabel_B_Virksomhedstype[[#This Row],[Metadataværdi DK]],Tabel_B_Virksomhedstype[[#This Row],[(Bruges i andre dokumenter)\nFirma- eller organisationsnavn ]]))","v":"[B02.02.00] Arkitekt"},"B02.02","Arkitekt","Rådgivervirksomhed, der leverer ydelser på det arkitektfaglige område","Architect"]
[{"$f":"CONCATENATE(\"[\",Tabel_B_Virksomhedstype[[#This Row],[Værdikode]],IF(LEN(Tabel_B_Virksomhedstype[[#This Row],[Værdikode]])=3,\".00.00\",\"\"),IF(LEN(Tabel_B_Virksomhedstype[[#This Row],[Værdikode]])=6,\".00\",\"\"),\"] \",IF(Tabel_B_Virksomhedstype[[#This Row],[(Bruges i andre dokumenter)\nFirma- eller organisationsnavn ]]=\"\",Tabel_B_Virksomhedstype[[#This Row],[Metadataværdi DK]],Tabel_B_Virksomhedstype[[#This Row],[(Bruges i andre dokumenter)\nFirma- eller organisationsnavn ]]))","v":"[B02.03.00] Landskabsarkitekt"},"B02.03","Landskabsarkitekt","Rådgivervirksomhed, der leverer ydelser på det landskabsfaglige område","Landscape architect"]
[{"$f":"CONCATENATE(\"[\",Tabel_B_Virksomhedstype[[#This Row],[Værdikode]],IF(LEN(Tabel_B_Virksomhedstype[[#This Row],[Værdikode]])=3,\".00.00\",\"\"),IF(LEN(Tabel_B_Virksomhedstype[[#This Row],[Værdikode]])=6,\".00\",\"\"),\"] \",IF(Tabel_B_Virksomhedstype[[#This Row],[(Bruges i andre dokumenter)\nFirma- eller organisationsnavn ]]=\"\",Tabel_B_Virksomhedstype[[#This Row],[Metadataværdi DK]],Tabel_B_Virksomhedstype[[#This Row],[(Bruges i andre dokumenter)\nFirma- eller organisationsnavn ]]))","v":"[B02.04.00] Indretningsarkitekt"},"B02.04","Indretningsarkitekt","Rådgivervirksomhed, der leverer ydelser på det indretningsfaglige område","Interior architect"]
[{"$f":"CONCATENATE(\"[\",Tabel_B_Virksomhedstype[[#This Row],[Værdikode]],IF(LEN(Tabel_B_Virksomhedstype[[#This Row],[Værdikode]])=3,\".00.00\",\"\"),IF(LEN(Tabel_B_Virksomhedstype[[#This Row],[Værdikode]])=6,\".00\",\"\"),\"] \",IF(Tabel_B_Virksomhedstype[[#This Row],[(Bruges i andre dokumenter)\nFirma- eller organisationsnavn ]]=\"\",Tabel_B_Virksomhedstype[[#This Row],[Metadataværdi DK]],Tabel_B_Virksomhedstype[[#This Row],[(Bruges i andre dokumenter)\nFirma- eller organisationsnavn ]]))","v":"[B02.05.00] Designer"},"B02.05","Designer","Rådgivervirksomhed, der leverer ydelser på det designfaglige område","Designer"]
[{"$f":"CONCATENATE(\"[\",Tabel_B_Virksomhedstype[[#This Row],[Værdikode]],IF(LEN(Tabel_B_Virksomhedstype[[#This Row],[Værdikode]])=3,\".00.00\",\"\"),IF(LEN(Tabel_B_Virksomhedstype[[#This Row],[Værdikode]])=6,\".00\",\"\"),\"] \",IF(Tabel_B_Virksomhedstype[[#This Row],[(Bruges i andre dokumenter)\nFirma- eller organisationsnavn ]]=\"\",Tabel_B_Virksomhedstype[[#This Row],[Metadataværdi DK]],Tabel_B_Virksomhedstype[[#This Row],[(Bruges i andre dokumenter)\nFirma- eller organisationsnavn ]]))","v":"[B02.06.00] Ingeniør"},"B02.06","Ingeniør","Rådgivervirksomhed, der leverer ydelser på ingeniørfaglige områder","Engineering"]
[{"$f":"CONCATENATE(\"[\",Tabel_B_Virksomhedstype[[#This Row],[Værdikode]],IF(LEN(Tabel_B_Virksomhedstype[[#This Row],[Værdikode]])=3,\".00.00\",\"\"),IF(LEN(Tabel_B_Virksomhedstype[[#This Row],[Værdikode]])=6,\".00\",\"\"),\"] \",IF(Tabel_B_Virksomhedstype[[#This Row],[(Bruges i andre dokumenter)\nFirma- eller organisationsnavn ]]=\"\",Tabel_B_Virksomhedstype[[#This Row],[Metadataværdi DK]],Tabel_B_Virksomhedstype[[#This Row],[(Bruges i andre dokumenter)\nFirma- eller organisationsnavn ]]))","v":"[B02.07.00] Råd- og svampekonsulent"},"B02.07","Råd- og svampekonsulent","Rådgivervirksomhed, der leverer ydelser på bygningsskadeområdet","Fungus consultant"]
[{"$f":"CONCATENATE(\"[\",Tabel_B_Virksomhedstype[[#This Row],[Værdikode]],IF(LEN(Tabel_B_Virksomhedstype[[#This Row],[Værdikode]])=3,\".00.00\",\"\"),IF(LEN(Tabel_B_Virksomhedstype[[#This Row],[Værdikode]])=6,\".00\",\"\"),\"] \",IF(Tabel_B_Virksomhedstype[[#This Row],[(Bruges i andre dokumenter)\nFirma- eller organisationsnavn ]]=\"\",Tabel_B_Virksomhedstype[[#This Row],[Metadataværdi DK]],Tabel_B_Virksomhedstype[[#This Row],[(Bruges i andre dokumenter)\nFirma- eller organisationsnavn ]]))","v":"[B02.08.00] Arbejdsmiljøkonsulent"},"B02.08","Arbejdsmiljøkonsulent","Rådgivervirksomhed, der leverer ydelser inden for arbejdsmiljø","Work environment consultant"]
[{"$f":"CONCATENATE(\"[\",Tabel_B_Virksomhedstype[[#This Row],[Værdikode]],IF(LEN(Tabel_B_Virksomhedstype[[#This Row],[Værdikode]])=3,\".00.00\",\"\"),IF(LEN(Tabel_B_Virksomhedstype[[#This Row],[Værdikode]])=6,\".00\",\"\"),\"] \",IF(Tabel_B_Virksomhedstype[[#This Row],[(Bruges i andre dokumenter)\nFirma- eller organisationsnavn ]]=\"\",Tabel_B_Virksomhedstype[[#This Row],[Metadataværdi DK]],Tabel_B_Virksomhedstype[[#This Row],[(Bruges i andre dokumenter)\nFirma- eller organisationsnavn ]]))","v":"[B02.09.00] Managementkonsulent"},"B02.09","Managementkonsulent","Rådgivervirksomhed, der leverer ydelser vedr. ledelse og styring","Management consultant"]
[{"$f":"CONCATENATE(\"[\",Tabel_B_Virksomhedstype[[#This Row],[Værdikode]],IF(LEN(Tabel_B_Virksomhedstype[[#This Row],[Værdikode]])=3,\".00.00\",\"\"),IF(LEN(Tabel_B_Virksomhedstype[[#This Row],[Værdikode]])=6,\".00\",\"\"),\"] \",IF(Tabel_B_Virksomhedstype[[#This Row],[(Bruges i andre dokumenter)\nFirma- eller organisationsnavn ]]=\"\",Tabel_B_Virksomhedstype[[#This Row],[Metadataværdi DK]],Tabel_B_Virksomhedstype[[#This Row],[(Bruges i andre dokumenter)\nFirma- eller organisationsnavn ]]))","v":"[B02.10.00] Proceskonsulent"},"B02.10","Proceskonsulent","Rådgivervirksomhed, der leverer ydelser vedr. procestilrettelæggelse og -styring","Process consultant"]
[{"$f":"CONCATENATE(\"[\",Tabel_B_Virksomhedstype[[#This Row],[Værdikode]],IF(LEN(Tabel_B_Virksomhedstype[[#This Row],[Værdikode]])=3,\".00.00\",\"\"),IF(LEN(Tabel_B_Virksomhedstype[[#This Row],[Værdikode]])=6,\".00\",\"\"),\"] \",IF(Tabel_B_Virksomhedstype[[#This Row],[(Bruges i andre dokumenter)\nFirma- eller organisationsnavn ]]=\"\",Tabel_B_Virksomhedstype[[#This Row],[Metadataværdi DK]],Tabel_B_Virksomhedstype[[#This Row],[(Bruges i andre dokumenter)\nFirma- eller organisationsnavn ]]))","v":"[B02.11.00] IT- og telefonkonsulent"},"B02.11","IT- og telefonkonsulent","Rådgivervirksomhed, der leverer ydelser vedr. IT og teleområdet","IT consultant"]
[{"$f":"CONCATENATE(\"[\",Tabel_B_Virksomhedstype[[#This Row],[Værdikode]],IF(LEN(Tabel_B_Virksomhedstype[[#This Row],[Værdikode]])=3,\".00.00\",\"\"),IF(LEN(Tabel_B_Virksomhedstype[[#This Row],[Værdikode]])=6,\".00\",\"\"),\"] \",IF(Tabel_B_Virksomhedstype[[#This Row],[(Bruges i andre dokumenter)\nFirma- eller organisationsnavn ]]=\"\",Tabel_B_Virksomhedstype[[#This Row],[Metadataværdi DK]],Tabel_B_Virksomhedstype[[#This Row],[(Bruges i andre dokumenter)\nFirma- eller organisationsnavn ]]))","v":"[B02.12.00] Landinspektør"},"B02.12","Landinspektør","Rådgivervirksomhed, der leverer ydelser inden for landmåling, afsætning og opmåling","Surveyor"]
[{"$f":"CONCATENATE(\"[\",Tabel_B_Virksomhedstype[[#This Row],[Værdikode]],IF(LEN(Tabel_B_Virksomhedstype[[#This Row],[Værdikode]])=3,\".00.00\",\"\"),IF(LEN(Tabel_B_Virksomhedstype[[#This Row],[Værdikode]])=6,\".00\",\"\"),\"] \",IF(Tabel_B_Virksomhedstype[[#This Row],[(Bruges i andre dokumenter)\nFirma- eller organisationsnavn ]]=\"\",Tabel_B_Virksomhedstype[[#This Row],[Metadataværdi DK]],Tabel_B_Virksomhedstype[[#This Row],[(Bruges i andre dokumenter)\nFirma- eller organisationsnavn ]]))","v":"[B02.13.00] Revisor"},"B02.13","Revisor","Rådgivervirksomhed, der leverer ydelser vedr. revidering af regnskaber og budgetter","Accountant"]
[{"$f":"CONCATENATE(\"[\",Tabel_B_Virksomhedstype[[#This Row],[Værdikode]],IF(LEN(Tabel_B_Virksomhedstype[[#This Row],[Værdikode]])=3,\".00.00\",\"\"),IF(LEN(Tabel_B_Virksomhedstype[[#This Row],[Værdikode]])=6,\".00\",\"\"),\"] \",IF(Tabel_B_Virksomhedstype[[#This Row],[(Bruges i andre dokumenter)\nFirma- eller organisationsnavn ]]=\"\",Tabel_B_Virksomhedstype[[#This Row],[Metadataværdi DK]],Tabel_B_Virksomhedstype[[#This Row],[(Bruges i andre dokumenter)\nFirma- eller organisationsnavn ]]))","v":"[B02.14.00] Advokat"},"B02.14","Advokat","Rådgivervirksomhed, der leverer ydelser vedr. juridiske forhold","Lawyer"]
[{"$f":"CONCATENATE(\"[\",Tabel_B_Virksomhedstype[[#This Row],[Værdikode]],IF(LEN(Tabel_B_Virksomhedstype[[#This Row],[Værdikode]])=3,\".00.00\",\"\"),IF(LEN(Tabel_B_Virksomhedstype[[#This Row],[Værdikode]])=6,\".00\",\"\"),\"] \",IF(Tabel_B_Virksomhedstype[[#This Row],[(Bruges i andre dokumenter)\nFirma- eller organisationsnavn ]]=\"\",Tabel_B_Virksomhedstype[[#This Row],[Metadataværdi DK]],Tabel_B_Virksomhedstype[[#This Row],[(Bruges i andre dokumenter)\nFirma- eller organisationsnavn ]]))","v":"[B02.15.00] Ejendomsmægler"},"B02.15","Ejendomsmægler","Person eller virksomhed, der formidler køb og salg af fast ejendom","Real Estate Agent"]
[{"$f":"CONCATENATE(\"[\",Tabel_B_Virksomhedstype[[#This Row],[Værdikode]],IF(LEN(Tabel_B_Virksomhedstype[[#This Row],[Værdikode]])=3,\".00.00\",\"\"),IF(LEN(Tabel_B_Virksomhedstype[[#This Row],[Værdikode]])=6,\".00\",\"\"),\"] \",IF(Tabel_B_Virksomhedstype[[#This Row],[(Bruges i andre dokumenter)\nFirma- eller organisationsnavn ]]=\"\",Tabel_B_Virksomhedstype[[#This Row],[Metadataværdi DK]],Tabel_B_Virksomhedstype[[#This Row],[(Bruges i andre dokumenter)\nFirma- eller organisationsnavn ]]))","v":"[B03.00.00] Producent"},"B03.00","Producent",null,"Producer"]
[{"$f":"CONCATENATE(\"[\",Tabel_B_Virksomhedstype[[#This Row],[Værdikode]],IF(LEN(Tabel_B_Virksomhedstype[[#This Row],[Værdikode]])=3,\".00.00\",\"\"),IF(LEN(Tabel_B_Virksomhedstype[[#This Row],[Værdikode]])=6,\".00\",\"\"),\"] \",IF(Tabel_B_Virksomhedstype[[#This Row],[(Bruges i andre dokumenter)\nFirma- eller organisationsnavn ]]=\"\",Tabel_B_Virksomhedstype[[#This Row],[Metadataværdi DK]],Tabel_B_Virksomhedstype[[#This Row],[(Bruges i andre dokumenter)\nFirma- eller organisationsnavn ]]))","v":"[B03.01.00] Betonelementfabrikant"},"B03.01","Betonelementfabrikant","Producentvirksomhed for elementer af beton","Concrete element fabricant"]
[{"$f":"CONCATENATE(\"[\",Tabel_B_Virksomhedstype[[#This Row],[Værdikode]],IF(LEN(Tabel_B_Virksomhedstype[[#This Row],[Værdikode]])=3,\".00.00\",\"\"),IF(LEN(Tabel_B_Virksomhedstype[[#This Row],[Værdikode]])=6,\".00\",\"\"),\"] \",IF(Tabel_B_Virksomhedstype[[#This Row],[(Bruges i andre dokumenter)\nFirma- eller organisationsnavn ]]=\"\",Tabel_B_Virksomhedstype[[#This Row],[Metadataværdi DK]],Tabel_B_Virksomhedstype[[#This Row],[(Bruges i andre dokumenter)\nFirma- eller organisationsnavn ]]))","v":"[B03.02.00] Betonproducent"},"B03.02","Betonproducent","Producentvirksomhed for betonfabrikation","Concrete manufacturer"]
[{"$f":"CONCATENATE(\"[\",Tabel_B_Virksomhedstype[[#This Row],[Værdikode]],IF(LEN(Tabel_B_Virksomhedstype[[#This Row],[Værdikode]])=3,\".00.00\",\"\"),IF(LEN(Tabel_B_Virksomhedstype[[#This Row],[Værdikode]])=6,\".00\",\"\"),\"] \",IF(Tabel_B_Virksomhedstype[[#This Row],[(Bruges i andre dokumenter)\nFirma- eller organisationsnavn ]]=\"\",Tabel_B_Virksomhedstype[[#This Row],[Metadataværdi DK]],Tabel_B_Virksomhedstype[[#This Row],[(Bruges i andre dokumenter)\nFirma- eller organisationsnavn ]]))","v":"[B03.03.00] Træelementfabrikant"},"B03.03","Træelementfabrikant","Producentvirksomhed for elementer af træ","Timber element fabricant"]
[{"$f":"CONCATENATE(\"[\",Tabel_B_Virksomhedstype[[#This Row],[Værdikode]],IF(LEN(Tabel_B_Virksomhedstype[[#This Row],[Værdikode]])=3,\".00.00\",\"\"),IF(LEN(Tabel_B_Virksomhedstype[[#This Row],[Værdikode]])=6,\".00\",\"\"),\"] \",IF(Tabel_B_Virksomhedstype[[#This Row],[(Bruges i andre dokumenter)\nFirma- eller organisationsnavn ]]=\"\",Tabel_B_Virksomhedstype[[#This Row],[Metadataværdi DK]],Tabel_B_Virksomhedstype[[#This Row],[(Bruges i andre dokumenter)\nFirma- eller organisationsnavn ]]))","v":"[B03.04.00] Stålproducent"},"B03.04","Stålproducent","Producentvirksomhed for elementer af stål","Steel manufacturer"]
[{"$f":"CONCATENATE(\"[\",Tabel_B_Virksomhedstype[[#This Row],[Værdikode]],IF(LEN(Tabel_B_Virksomhedstype[[#This Row],[Værdikode]])=3,\".00.00\",\"\"),IF(LEN(Tabel_B_Virksomhedstype[[#This Row],[Værdikode]])=6,\".00\",\"\"),\"] \",IF(Tabel_B_Virksomhedstype[[#This Row],[(Bruges i andre dokumenter)\nFirma- eller organisationsnavn ]]=\"\",Tabel_B_Virksomhedstype[[#This Row],[Metadataværdi DK]],Tabel_B_Virksomhedstype[[#This Row],[(Bruges i andre dokumenter)\nFirma- eller organisationsnavn ]]))","v":"[B03.05.00] Armeringsbukkestation"},"B03.05","Armeringsbukkestation","Producentvirksomhed for fabrikation af armering","Reinforcement bending station"]
[{"$f":"CONCATENATE(\"[\",Tabel_B_Virksomhedstype[[#This Row],[Værdikode]],IF(LEN(Tabel_B_Virksomhedstype[[#This Row],[Værdikode]])=3,\".00.00\",\"\"),IF(LEN(Tabel_B_Virksomhedstype[[#This Row],[Værdikode]])=6,\".00\",\"\"),\"] \",IF(Tabel_B_Virksomhedstype[[#This Row],[(Bruges i andre dokumenter)\nFirma- eller organisationsnavn ]]=\"\",Tabel_B_Virksomhedstype[[#This Row],[Metadataværdi DK]],Tabel_B_Virksomhedstype[[#This Row],[(Bruges i andre dokumenter)\nFirma- eller organisationsnavn ]]))","v":"[B03.06.00] Teglproducent"},"B03.06","Teglproducent","Producentvirksomhed for elementer af tegl","Brick manufacturer"]
[{"$f":"CONCATENATE(\"[\",Tabel_B_Virksomhedstype[[#This Row],[Værdikode]],IF(LEN(Tabel_B_Virksomhedstype[[#This Row],[Værdikode]])=3,\".00.00\",\"\"),IF(LEN(Tabel_B_Virksomhedstype[[#This Row],[Værdikode]])=6,\".00\",\"\"),\"] \",IF(Tabel_B_Virksomhedstype[[#This Row],[(Bruges i andre dokumenter)\nFirma- eller organisationsnavn ]]=\"\",Tabel_B_Virksomhedstype[[#This Row],[Metadataværdi DK]],Tabel_B_Virksomhedstype[[#This Row],[(Bruges i andre dokumenter)\nFirma- eller organisationsnavn ]]))","v":"[B03.07.00] Glasfabrikant"},"B03.07","Glasfabrikant","Producentvirksomhed for elementer af glas","Glass manufacturer"]
[{"$f":"CONCATENATE(\"[\",Tabel_B_Virksomhedstype[[#This Row],[Værdikode]],IF(LEN(Tabel_B_Virksomhedstype[[#This Row],[Værdikode]])=3,\".00.00\",\"\"),IF(LEN(Tabel_B_Virksomhedstype[[#This Row],[Værdikode]])=6,\".00\",\"\"),\"] \",IF(Tabel_B_Virksomhedstype[[#This Row],[(Bruges i andre dokumenter)\nFirma- eller organisationsnavn ]]=\"\",Tabel_B_Virksomhedstype[[#This Row],[Metadataværdi DK]],Tabel_B_Virksomhedstype[[#This Row],[(Bruges i andre dokumenter)\nFirma- eller organisationsnavn ]]))","v":"[B03.08.00] Isoleringsproducent"},"B03.08","Isoleringsproducent","Producentvirksomhed for elementer og materiale til isolering ","Insulation manufacturer"]
[{"$f":"CONCATENATE(\"[\",Tabel_B_Virksomhedstype[[#This Row],[Værdikode]],IF(LEN(Tabel_B_Virksomhedstype[[#This Row],[Værdikode]])=3,\".00.00\",\"\"),IF(LEN(Tabel_B_Virksomhedstype[[#This Row],[Værdikode]])=6,\".00\",\"\"),\"] \",IF(Tabel_B_Virksomhedstype[[#This Row],[(Bruges i andre dokumenter)\nFirma- eller organisationsnavn ]]=\"\",Tabel_B_Virksomhedstype[[#This Row],[Metadataværdi DK]],Tabel_B_Virksomhedstype[[#This Row],[(Bruges i andre dokumenter)\nFirma- eller organisationsnavn ]]))","v":"[B03.09.00] Vinduesfabrikant"},"B03.09","Vinduesfabrikant","Producentvirksomhed for vindueselementer","Window manufacturer"]
[{"$f":"CONCATENATE(\"[\",Tabel_B_Virksomhedstype[[#This Row],[Værdikode]],IF(LEN(Tabel_B_Virksomhedstype[[#This Row],[Værdikode]])=3,\".00.00\",\"\"),IF(LEN(Tabel_B_Virksomhedstype[[#This Row],[Værdikode]])=6,\".00\",\"\"),\"] \",IF(Tabel_B_Virksomhedstype[[#This Row],[(Bruges i andre dokumenter)\nFirma- eller organisationsnavn ]]=\"\",Tabel_B_Virksomhedstype[[#This Row],[Metadataværdi DK]],Tabel_B_Virksomhedstype[[#This Row],[(Bruges i andre dokumenter)\nFirma- eller organisationsnavn ]]))","v":"[B03.10.00] Dørfabrikant"},"B03.10","Dørfabrikant","Producentvirksomhed for dørelementer","Door manufacturer"]
[{"$f":"CONCATENATE(\"[\",Tabel_B_Virksomhedstype[[#This Row],[Værdikode]],IF(LEN(Tabel_B_Virksomhedstype[[#This Row],[Værdikode]])=3,\".00.00\",\"\"),IF(LEN(Tabel_B_Virksomhedstype[[#This Row],[Værdikode]])=6,\".00\",\"\"),\"] \",IF(Tabel_B_Virksomhedstype[[#This Row],[(Bruges i andre dokumenter)\nFirma- eller organisationsnavn ]]=\"\",Tabel_B_Virksomhedstype[[#This Row],[Metadataværdi DK]],Tabel_B_Virksomhedstype[[#This Row],[(Bruges i andre dokumenter)\nFirma- eller organisationsnavn ]]))","v":"[B03.11.00] Portfabrikant"},"B03.11","Portfabrikant","Producentvirksomhed for portelementer","Gate manufacturer"]
[{"$f":"CONCATENATE(\"[\",Tabel_B_Virksomhedstype[[#This Row],[Værdikode]],IF(LEN(Tabel_B_Virksomhedstype[[#This Row],[Værdikode]])=3,\".00.00\",\"\"),IF(LEN(Tabel_B_Virksomhedstype[[#This Row],[Værdikode]])=6,\".00\",\"\"),\"] \",IF(Tabel_B_Virksomhedstype[[#This Row],[(Bruges i andre dokumenter)\nFirma- eller organisationsnavn ]]=\"\",Tabel_B_Virksomhedstype[[#This Row],[Metadataværdi DK]],Tabel_B_Virksomhedstype[[#This Row],[(Bruges i andre dokumenter)\nFirma- eller organisationsnavn ]]))","v":"[B04.00.00] Leverandør"},"B04.00","Leverandør",null,"Supplier"]
[{"$f":"CONCATENATE(\"[\",Tabel_B_Virksomhedstype[[#This Row],[Værdikode]],IF(LEN(Tabel_B_Virksomhedstype[[#This Row],[Værdikode]])=3,\".00.00\",\"\"),IF(LEN(Tabel_B_Virksomhedstype[[#This Row],[Værdikode]])=6,\".00\",\"\"),\"] \",IF(Tabel_B_Virksomhedstype[[#This Row],[(Bruges i andre dokumenter)\nFirma- eller organisationsnavn ]]=\"\",Tabel_B_Virksomhedstype[[#This Row],[Metadataværdi DK]],Tabel_B_Virksomhedstype[[#This Row],[(Bruges i andre dokumenter)\nFirma- eller organisationsnavn ]]))","v":"[B04.01.00] Byggevareleverandør"},"B04.01","Byggevareleverandør","Leverandørvirksomhed, der leverer byggevarer","Construction products supplier"]
[{"$f":"CONCATENATE(\"[\",Tabel_B_Virksomhedstype[[#This Row],[Værdikode]],IF(LEN(Tabel_B_Virksomhedstype[[#This Row],[Værdikode]])=3,\".00.00\",\"\"),IF(LEN(Tabel_B_Virksomhedstype[[#This Row],[Værdikode]])=6,\".00\",\"\"),\"] \",IF(Tabel_B_Virksomhedstype[[#This Row],[(Bruges i andre dokumenter)\nFirma- eller organisationsnavn ]]=\"\",Tabel_B_Virksomhedstype[[#This Row],[Metadataværdi DK]],Tabel_B_Virksomhedstype[[#This Row],[(Bruges i andre dokumenter)\nFirma- eller organisationsnavn ]]))","v":"[B04.02.00] VVS-grossist"},"B04.02","VVS-grossist","Leverandørvirksomhed, der leverer VVS-artikler","MEP Supplier"]
[{"$f":"CONCATENATE(\"[\",Tabel_B_Virksomhedstype[[#This Row],[Værdikode]],IF(LEN(Tabel_B_Virksomhedstype[[#This Row],[Værdikode]])=3,\".00.00\",\"\"),IF(LEN(Tabel_B_Virksomhedstype[[#This Row],[Værdikode]])=6,\".00\",\"\"),\"] \",IF(Tabel_B_Virksomhedstype[[#This Row],[(Bruges i andre dokumenter)\nFirma- eller organisationsnavn ]]=\"\",Tabel_B_Virksomhedstype[[#This Row],[Metadataværdi DK]],Tabel_B_Virksomhedstype[[#This Row],[(Bruges i andre dokumenter)\nFirma- eller organisationsnavn ]]))","v":"[B04.03.00] Systemleverandør"},"B04.03","Systemleverandør","Leverandørvirksomhed, der leverer byggesystemer","System supplier"]
[{"$f":"CONCATENATE(\"[\",Tabel_B_Virksomhedstype[[#This Row],[Værdikode]],IF(LEN(Tabel_B_Virksomhedstype[[#This Row],[Værdikode]])=3,\".00.00\",\"\"),IF(LEN(Tabel_B_Virksomhedstype[[#This Row],[Værdikode]])=6,\".00\",\"\"),\"] \",IF(Tabel_B_Virksomhedstype[[#This Row],[(Bruges i andre dokumenter)\nFirma- eller organisationsnavn ]]=\"\",Tabel_B_Virksomhedstype[[#This Row],[Metadataværdi DK]],Tabel_B_Virksomhedstype[[#This Row],[(Bruges i andre dokumenter)\nFirma- eller organisationsnavn ]]))","v":"[B04.04.00] Materielleverandør"},"B04.04","Materielleverandør","Leverandørvirksomhed, der leverer materiel til byggeri og anlæg","Equipment supplier"]
[{"$f":"CONCATENATE(\"[\",Tabel_B_Virksomhedstype[[#This Row],[Værdikode]],IF(LEN(Tabel_B_Virksomhedstype[[#This Row],[Værdikode]])=3,\".00.00\",\"\"),IF(LEN(Tabel_B_Virksomhedstype[[#This Row],[Værdikode]])=6,\".00\",\"\"),\"] \",IF(Tabel_B_Virksomhedstype[[#This Row],[(Bruges i andre dokumenter)\nFirma- eller organisationsnavn ]]=\"\",Tabel_B_Virksomhedstype[[#This Row],[Metadataværdi DK]],Tabel_B_Virksomhedstype[[#This Row],[(Bruges i andre dokumenter)\nFirma- eller organisationsnavn ]]))","v":"[B05.00.00] Entreprenør"},"B05.00","Entreprenør","Person eller virksomhed, der udfører bygge eller anlægsarbejder for en bygherre","Contractor"]
[{"$f":"CONCATENATE(\"[\",Tabel_B_Virksomhedstype[[#This Row],[Værdikode]],IF(LEN(Tabel_B_Virksomhedstype[[#This Row],[Værdikode]])=3,\".00.00\",\"\"),IF(LEN(Tabel_B_Virksomhedstype[[#This Row],[Værdikode]])=6,\".00\",\"\"),\"] \",IF(Tabel_B_Virksomhedstype[[#This Row],[(Bruges i andre dokumenter)\nFirma- eller organisationsnavn ]]=\"\",Tabel_B_Virksomhedstype[[#This Row],[Metadataværdi DK]],Tabel_B_Virksomhedstype[[#This Row],[(Bruges i andre dokumenter)\nFirma- eller organisationsnavn ]]))","v":"[B05.01.00] Byggepladsentreprenør"},"B05.01","Byggepladsentreprenør","Entreprenørvirksomhed, der anlægger og vedligeholder byggeplads","Construction site contractor"]
[{"$f":"CONCATENATE(\"[\",Tabel_B_Virksomhedstype[[#This Row],[Værdikode]],IF(LEN(Tabel_B_Virksomhedstype[[#This Row],[Værdikode]])=3,\".00.00\",\"\"),IF(LEN(Tabel_B_Virksomhedstype[[#This Row],[Værdikode]])=6,\".00\",\"\"),\"] \",IF(Tabel_B_Virksomhedstype[[#This Row],[(Bruges i andre dokumenter)\nFirma- eller organisationsnavn ]]=\"\",Tabel_B_Virksomhedstype[[#This Row],[Metadataværdi DK]],Tabel_B_Virksomhedstype[[#This Row],[(Bruges i andre dokumenter)\nFirma- eller organisationsnavn ]]))","v":"[B05.02.00] Nedrivningsentreprenør"},"B05.02","Nedrivningsentreprenør","Entreprenørvirksomhed, der river eksisterende bygværker ned og fjerner det nedrevne","Demolition contractor"]
[{"$f":"CONCATENATE(\"[\",Tabel_B_Virksomhedstype[[#This Row],[Værdikode]],IF(LEN(Tabel_B_Virksomhedstype[[#This Row],[Værdikode]])=3,\".00.00\",\"\"),IF(LEN(Tabel_B_Virksomhedstype[[#This Row],[Værdikode]])=6,\".00\",\"\"),\"] \",IF(Tabel_B_Virksomhedstype[[#This Row],[(Bruges i andre dokumenter)\nFirma- eller organisationsnavn ]]=\"\",Tabel_B_Virksomhedstype[[#This Row],[Metadataværdi DK]],Tabel_B_Virksomhedstype[[#This Row],[(Bruges i andre dokumenter)\nFirma- eller organisationsnavn ]]))","v":"[B05.03.00] Jordentreprenør"},"B05.03","Jordentreprenør","Entreprenørvirksomhed, der udfører jordarbejder","Ground work contractor"]
[{"$f":"CONCATENATE(\"[\",Tabel_B_Virksomhedstype[[#This Row],[Værdikode]],IF(LEN(Tabel_B_Virksomhedstype[[#This Row],[Værdikode]])=3,\".00.00\",\"\"),IF(LEN(Tabel_B_Virksomhedstype[[#This Row],[Værdikode]])=6,\".00\",\"\"),\"] \",IF(Tabel_B_Virksomhedstype[[#This Row],[(Bruges i andre dokumenter)\nFirma- eller organisationsnavn ]]=\"\",Tabel_B_Virksomhedstype[[#This Row],[Metadataværdi DK]],Tabel_B_Virksomhedstype[[#This Row],[(Bruges i andre dokumenter)\nFirma- eller organisationsnavn ]]))","v":"[B05.04.00] Ramningsentreprenør"},"B05.04","Ramningsentreprenør","Entreprenørvirksomhed, der udfører ramning af pæle, rør og spuns","Piling contractor"]
[{"$f":"CONCATENATE(\"[\",Tabel_B_Virksomhedstype[[#This Row],[Værdikode]],IF(LEN(Tabel_B_Virksomhedstype[[#This Row],[Værdikode]])=3,\".00.00\",\"\"),IF(LEN(Tabel_B_Virksomhedstype[[#This Row],[Værdikode]])=6,\".00\",\"\"),\"] \",IF(Tabel_B_Virksomhedstype[[#This Row],[(Bruges i andre dokumenter)\nFirma- eller organisationsnavn ]]=\"\",Tabel_B_Virksomhedstype[[#This Row],[Metadataværdi DK]],Tabel_B_Virksomhedstype[[#This Row],[(Bruges i andre dokumenter)\nFirma- eller organisationsnavn ]]))","v":"[B05.05.00] Anlægsentreprenør"},"B05.05","Anlægsentreprenør","Entreprenørvirksomhed, der udfører anlægsarbejder","Plant contractor"]
[{"$f":"CONCATENATE(\"[\",Tabel_B_Virksomhedstype[[#This Row],[Værdikode]],IF(LEN(Tabel_B_Virksomhedstype[[#This Row],[Værdikode]])=3,\".00.00\",\"\"),IF(LEN(Tabel_B_Virksomhedstype[[#This Row],[Værdikode]])=6,\".00\",\"\"),\"] \",IF(Tabel_B_Virksomhedstype[[#This Row],[(Bruges i andre dokumenter)\nFirma- eller organisationsnavn ]]=\"\",Tabel_B_Virksomhedstype[[#This Row],[Metadataværdi DK]],Tabel_B_Virksomhedstype[[#This Row],[(Bruges i andre dokumenter)\nFirma- eller organisationsnavn ]]))","v":"[B05.06.00] Anlægsgartner"},"B05.06","Anlægsgartner","Entreprenørvirksomhed, der udfører anlægsgartnerarbejde","Landscaper"]
[{"$f":"CONCATENATE(\"[\",Tabel_B_Virksomhedstype[[#This Row],[Værdikode]],IF(LEN(Tabel_B_Virksomhedstype[[#This Row],[Værdikode]])=3,\".00.00\",\"\"),IF(LEN(Tabel_B_Virksomhedstype[[#This Row],[Værdikode]])=6,\".00\",\"\"),\"] \",IF(Tabel_B_Virksomhedstype[[#This Row],[(Bruges i andre dokumenter)\nFirma- eller organisationsnavn ]]=\"\",Tabel_B_Virksomhedstype[[#This Row],[Metadataværdi DK]],Tabel_B_Virksomhedstype[[#This Row],[(Bruges i andre dokumenter)\nFirma- eller organisationsnavn ]]))","v":"[B05.07.00] Kloakentreprenør"},"B05.07","Kloakentreprenør","Entreprenørvirksomhed, der udfører anlæggelse og reparationer af kloak og afløb","Sewerage contractor"]
[{"$f":"CONCATENATE(\"[\",Tabel_B_Virksomhedstype[[#This Row],[Værdikode]],IF(LEN(Tabel_B_Virksomhedstype[[#This Row],[Værdikode]])=3,\".00.00\",\"\"),IF(LEN(Tabel_B_Virksomhedstype[[#This Row],[Værdikode]])=6,\".00\",\"\"),\"] \",IF(Tabel_B_Virksomhedstype[[#This Row],[(Bruges i andre dokumenter)\nFirma- eller organisationsnavn ]]=\"\",Tabel_B_Virksomhedstype[[#This Row],[Metadataværdi DK]],Tabel_B_Virksomhedstype[[#This Row],[(Bruges i andre dokumenter)\nFirma- eller organisationsnavn ]]))","v":"[B05.08.00] Betonentreprenør"},"B05.08","Betonentreprenør","Entreprenørvirksomhed, der udfører arbejder med udstøbning af beton samt elementer af beton og letbeton","Concrete contractor"]
[{"$f":"CONCATENATE(\"[\",Tabel_B_Virksomhedstype[[#This Row],[Værdikode]],IF(LEN(Tabel_B_Virksomhedstype[[#This Row],[Værdikode]])=3,\".00.00\",\"\"),IF(LEN(Tabel_B_Virksomhedstype[[#This Row],[Værdikode]])=6,\".00\",\"\"),\"] \",IF(Tabel_B_Virksomhedstype[[#This Row],[(Bruges i andre dokumenter)\nFirma- eller organisationsnavn ]]=\"\",Tabel_B_Virksomhedstype[[#This Row],[Metadataværdi DK]],Tabel_B_Virksomhedstype[[#This Row],[(Bruges i andre dokumenter)\nFirma- eller organisationsnavn ]]))","v":"[B05.09.00] Murer"},"B05.09","Murer","Entreprenørvirksomhed, der udfører murværks- og teglbeklædningsarbejde","Bricklayer anbd Mason"]
[{"$f":"CONCATENATE(\"[\",Tabel_B_Virksomhedstype[[#This Row],[Værdikode]],IF(LEN(Tabel_B_Virksomhedstype[[#This Row],[Værdikode]])=3,\".00.00\",\"\"),IF(LEN(Tabel_B_Virksomhedstype[[#This Row],[Værdikode]])=6,\".00\",\"\"),\"] \",IF(Tabel_B_Virksomhedstype[[#This Row],[(Bruges i andre dokumenter)\nFirma- eller organisationsnavn ]]=\"\",Tabel_B_Virksomhedstype[[#This Row],[Metadataværdi DK]],Tabel_B_Virksomhedstype[[#This Row],[(Bruges i andre dokumenter)\nFirma- eller organisationsnavn ]]))","v":"[B05.10.00] Tømrer"},"B05.10","Tømrer","Entreprenørvirksomhed, der udfører grovere montage af træelementer samt tag- og vægsystemer","Carpenter"]
[{"$f":"CONCATENATE(\"[\",Tabel_B_Virksomhedstype[[#This Row],[Værdikode]],IF(LEN(Tabel_B_Virksomhedstype[[#This Row],[Værdikode]])=3,\".00.00\",\"\"),IF(LEN(Tabel_B_Virksomhedstype[[#This Row],[Værdikode]])=6,\".00\",\"\"),\"] \",IF(Tabel_B_Virksomhedstype[[#This Row],[(Bruges i andre dokumenter)\nFirma- eller organisationsnavn ]]=\"\",Tabel_B_Virksomhedstype[[#This Row],[Metadataværdi DK]],Tabel_B_Virksomhedstype[[#This Row],[(Bruges i andre dokumenter)\nFirma- eller organisationsnavn ]]))","v":"[B05.11.00] Snedker"},"B05.11","Snedker","Entreprenørvirksomhed, der udfører finere inventar- og beklædningsarbejder med træ","Joiner"]
[{"$f":"CONCATENATE(\"[\",Tabel_B_Virksomhedstype[[#This Row],[Værdikode]],IF(LEN(Tabel_B_Virksomhedstype[[#This Row],[Værdikode]])=3,\".00.00\",\"\"),IF(LEN(Tabel_B_Virksomhedstype[[#This Row],[Værdikode]])=6,\".00\",\"\"),\"] \",IF(Tabel_B_Virksomhedstype[[#This Row],[(Bruges i andre dokumenter)\nFirma- eller organisationsnavn ]]=\"\",Tabel_B_Virksomhedstype[[#This Row],[Metadataværdi DK]],Tabel_B_Virksomhedstype[[#This Row],[(Bruges i andre dokumenter)\nFirma- eller organisationsnavn ]]))","v":"[B05.12.00] Maler"},"B05.12","Maler","Entreprenørvirksomhed, der udfører overfladebehandling på bygningsdele","Painter"]
[{"$f":"CONCATENATE(\"[\",Tabel_B_Virksomhedstype[[#This Row],[Værdikode]],IF(LEN(Tabel_B_Virksomhedstype[[#This Row],[Værdikode]])=3,\".00.00\",\"\"),IF(LEN(Tabel_B_Virksomhedstype[[#This Row],[Værdikode]])=6,\".00\",\"\"),\"] \",IF(Tabel_B_Virksomhedstype[[#This Row],[(Bruges i andre dokumenter)\nFirma- eller organisationsnavn ]]=\"\",Tabel_B_Virksomhedstype[[#This Row],[Metadataværdi DK]],Tabel_B_Virksomhedstype[[#This Row],[(Bruges i andre dokumenter)\nFirma- eller organisationsnavn ]]))","v":"[B05.13.00] Montageentreprenør"},"B05.13","Montageentreprenør","Entreprenørvirksomhed, der er specialiseret i montage af bygningsdele og byggesystemer","Mounting contractor"]
[{"$f":"CONCATENATE(\"[\",Tabel_B_Virksomhedstype[[#This Row],[Værdikode]],IF(LEN(Tabel_B_Virksomhedstype[[#This Row],[Værdikode]])=3,\".00.00\",\"\"),IF(LEN(Tabel_B_Virksomhedstype[[#This Row],[Værdikode]])=6,\".00\",\"\"),\"] \",IF(Tabel_B_Virksomhedstype[[#This Row],[(Bruges i andre dokumenter)\nFirma- eller organisationsnavn ]]=\"\",Tabel_B_Virksomhedstype[[#This Row],[Metadataværdi DK]],Tabel_B_Virksomhedstype[[#This Row],[(Bruges i andre dokumenter)\nFirma- eller organisationsnavn ]]))","v":"[B05.14.00] Lukningsentreprenør"},"B05.14","Lukningsentreprenør","Entreprenørvirksomhed, der udfører grovere montage af træelementer samt tag- og vægsystemer","Closure contractor"]
[{"$f":"CONCATENATE(\"[\",Tabel_B_Virksomhedstype[[#This Row],[Værdikode]],IF(LEN(Tabel_B_Virksomhedstype[[#This Row],[Værdikode]])=3,\".00.00\",\"\"),IF(LEN(Tabel_B_Virksomhedstype[[#This Row],[Værdikode]])=6,\".00\",\"\"),\"] \",IF(Tabel_B_Virksomhedstype[[#This Row],[(Bruges i andre dokumenter)\nFirma- eller organisationsnavn ]]=\"\",Tabel_B_Virksomhedstype[[#This Row],[Metadataværdi DK]],Tabel_B_Virksomhedstype[[#This Row],[(Bruges i andre dokumenter)\nFirma- eller organisationsnavn ]]))","v":"[B05.15.00] Glasfacadeentreprenør"},"B05.15","Glasfacadeentreprenør","Entreprenørvirksomhed, der udfører glasfacader og -tage","Glassfacade contractor"]
[{"$f":"CONCATENATE(\"[\",Tabel_B_Virksomhedstype[[#This Row],[Værdikode]],IF(LEN(Tabel_B_Virksomhedstype[[#This Row],[Værdikode]])=3,\".00.00\",\"\"),IF(LEN(Tabel_B_Virksomhedstype[[#This Row],[Værdikode]])=6,\".00\",\"\"),\"] \",IF(Tabel_B_Virksomhedstype[[#This Row],[(Bruges i andre dokumenter)\nFirma- eller organisationsnavn ]]=\"\",Tabel_B_Virksomhedstype[[#This Row],[Metadataværdi DK]],Tabel_B_Virksomhedstype[[#This Row],[(Bruges i andre dokumenter)\nFirma- eller organisationsnavn ]]))","v":"[B05.16.00] Glarmester"},"B05.16","Glarmester","Entreprenørvirksomhed, der udfører glasarbejder på bygningsdele","Glasier"]
[{"$f":"CONCATENATE(\"[\",Tabel_B_Virksomhedstype[[#This Row],[Værdikode]],IF(LEN(Tabel_B_Virksomhedstype[[#This Row],[Værdikode]])=3,\".00.00\",\"\"),IF(LEN(Tabel_B_Virksomhedstype[[#This Row],[Værdikode]])=6,\".00\",\"\"),\"] \",IF(Tabel_B_Virksomhedstype[[#This Row],[(Bruges i andre dokumenter)\nFirma- eller organisationsnavn ]]=\"\",Tabel_B_Virksomhedstype[[#This Row],[Metadataværdi DK]],Tabel_B_Virksomhedstype[[#This Row],[(Bruges i andre dokumenter)\nFirma- eller organisationsnavn ]]))","v":"[B05.17.00] Gulventreprenør"},"B05.17","Gulventreprenør","Entreprenørvirksomhed, der udfører gulvbelægninger og -beklædninger","Floor covering contractor"]
[{"$f":"CONCATENATE(\"[\",Tabel_B_Virksomhedstype[[#This Row],[Værdikode]],IF(LEN(Tabel_B_Virksomhedstype[[#This Row],[Værdikode]])=3,\".00.00\",\"\"),IF(LEN(Tabel_B_Virksomhedstype[[#This Row],[Værdikode]])=6,\".00\",\"\"),\"] \",IF(Tabel_B_Virksomhedstype[[#This Row],[(Bruges i andre dokumenter)\nFirma- eller organisationsnavn ]]=\"\",Tabel_B_Virksomhedstype[[#This Row],[Metadataværdi DK]],Tabel_B_Virksomhedstype[[#This Row],[(Bruges i andre dokumenter)\nFirma- eller organisationsnavn ]]))","v":"[B05.18.00] Smed"},"B05.18","Smed","Entreprenørvirksomhed, der udfører metal- og smedearbejder på bygningsdele","Smith"]
[{"$f":"CONCATENATE(\"[\",Tabel_B_Virksomhedstype[[#This Row],[Værdikode]],IF(LEN(Tabel_B_Virksomhedstype[[#This Row],[Værdikode]])=3,\".00.00\",\"\"),IF(LEN(Tabel_B_Virksomhedstype[[#This Row],[Værdikode]])=6,\".00\",\"\"),\"] \",IF(Tabel_B_Virksomhedstype[[#This Row],[(Bruges i andre dokumenter)\nFirma- eller organisationsnavn ]]=\"\",Tabel_B_Virksomhedstype[[#This Row],[Metadataværdi DK]],Tabel_B_Virksomhedstype[[#This Row],[(Bruges i andre dokumenter)\nFirma- eller organisationsnavn ]]))","v":"[B05.19.00] Blikkenslager"},"B05.19","Blikkenslager","Entreprenørvirksomhed, der udfører afløbssystemer og inddækninger","Plumber"]
[{"$f":"CONCATENATE(\"[\",Tabel_B_Virksomhedstype[[#This Row],[Værdikode]],IF(LEN(Tabel_B_Virksomhedstype[[#This Row],[Værdikode]])=3,\".00.00\",\"\"),IF(LEN(Tabel_B_Virksomhedstype[[#This Row],[Værdikode]])=6,\".00\",\"\"),\"] \",IF(Tabel_B_Virksomhedstype[[#This Row],[(Bruges i andre dokumenter)\nFirma- eller organisationsnavn ]]=\"\",Tabel_B_Virksomhedstype[[#This Row],[Metadataværdi DK]],Tabel_B_Virksomhedstype[[#This Row],[(Bruges i andre dokumenter)\nFirma- eller organisationsnavn ]]))","v":"[B05.20.00] Tagentreprenør"},"B05.20","Tagentreprenør","Entreprenørvirksomhed, der udfører tagsystemer og -beklædninger","Roof contractor"]
[{"$f":"CONCATENATE(\"[\",Tabel_B_Virksomhedstype[[#This Row],[Værdikode]],IF(LEN(Tabel_B_Virksomhedstype[[#This Row],[Værdikode]])=3,\".00.00\",\"\"),IF(LEN(Tabel_B_Virksomhedstype[[#This Row],[Værdikode]])=6,\".00\",\"\"),\"] \",IF(Tabel_B_Virksomhedstype[[#This Row],[(Bruges i andre dokumenter)\nFirma- eller organisationsnavn ]]=\"\",Tabel_B_Virksomhedstype[[#This Row],[Metadataværdi DK]],Tabel_B_Virksomhedstype[[#This Row],[(Bruges i andre dokumenter)\nFirma- eller organisationsnavn ]]))","v":"[B05.21.00] Isoleringsentreprenør"},"B05.21","Isoleringsentreprenør","Entreprenørvirksomhed, der udfører isoleringsarbejde","Insulation contractor"]
[{"$f":"CONCATENATE(\"[\",Tabel_B_Virksomhedstype[[#This Row],[Værdikode]],IF(LEN(Tabel_B_Virksomhedstype[[#This Row],[Værdikode]])=3,\".00.00\",\"\"),IF(LEN(Tabel_B_Virksomhedstype[[#This Row],[Værdikode]])=6,\".00\",\"\"),\"] \",IF(Tabel_B_Virksomhedstype[[#This Row],[(Bruges i andre dokumenter)\nFirma- eller organisationsnavn ]]=\"\",Tabel_B_Virksomhedstype[[#This Row],[Metadataværdi DK]],Tabel_B_Virksomhedstype[[#This Row],[(Bruges i andre dokumenter)\nFirma- eller organisationsnavn ]]))","v":"[B05.22.00] Fugeentreprenør"},"B05.22","Fugeentreprenør","Entreprenørvirksomhed, der udfører fugearbejde","Joint contractor"]
[{"$f":"CONCATENATE(\"[\",Tabel_B_Virksomhedstype[[#This Row],[Værdikode]],IF(LEN(Tabel_B_Virksomhedstype[[#This Row],[Værdikode]])=3,\".00.00\",\"\"),IF(LEN(Tabel_B_Virksomhedstype[[#This Row],[Værdikode]])=6,\".00\",\"\"),\"] \",IF(Tabel_B_Virksomhedstype[[#This Row],[(Bruges i andre dokumenter)\nFirma- eller organisationsnavn ]]=\"\",Tabel_B_Virksomhedstype[[#This Row],[Metadataværdi DK]],Tabel_B_Virksomhedstype[[#This Row],[(Bruges i andre dokumenter)\nFirma- eller organisationsnavn ]]))","v":"[B05.23.00] Elevatorentreprenør"},"B05.23","Elevatorentreprenør","Entreprenørvirksomhed, der installerer elevatorer","Elevator contractor"]
[{"$f":"CONCATENATE(\"[\",Tabel_B_Virksomhedstype[[#This Row],[Værdikode]],IF(LEN(Tabel_B_Virksomhedstype[[#This Row],[Værdikode]])=3,\".00.00\",\"\"),IF(LEN(Tabel_B_Virksomhedstype[[#This Row],[Værdikode]])=6,\".00\",\"\"),\"] \",IF(Tabel_B_Virksomhedstype[[#This Row],[(Bruges i andre dokumenter)\nFirma- eller organisationsnavn ]]=\"\",Tabel_B_Virksomhedstype[[#This Row],[Metadataværdi DK]],Tabel_B_Virksomhedstype[[#This Row],[(Bruges i andre dokumenter)\nFirma- eller organisationsnavn ]]))","v":"[B05.24.00] VVS-entreprenør"},"B05.24","VVS-entreprenør","Entreprenørvirksomhed, der udfører VVS-arbejde","Plumbing and heating contractor"]
[{"$f":"CONCATENATE(\"[\",Tabel_B_Virksomhedstype[[#This Row],[Værdikode]],IF(LEN(Tabel_B_Virksomhedstype[[#This Row],[Værdikode]])=3,\".00.00\",\"\"),IF(LEN(Tabel_B_Virksomhedstype[[#This Row],[Værdikode]])=6,\".00\",\"\"),\"] \",IF(Tabel_B_Virksomhedstype[[#This Row],[(Bruges i andre dokumenter)\nFirma- eller organisationsnavn ]]=\"\",Tabel_B_Virksomhedstype[[#This Row],[Metadataværdi DK]],Tabel_B_Virksomhedstype[[#This Row],[(Bruges i andre dokumenter)\nFirma- eller organisationsnavn ]]))","v":"[B05.25.00] Ventilationsentreprenør"},"B05.25","Ventilationsentreprenør","Entreprenørvirksomhed, der installerer ventilationssystemer","Ventilation contractor"]
[{"$f":"CONCATENATE(\"[\",Tabel_B_Virksomhedstype[[#This Row],[Værdikode]],IF(LEN(Tabel_B_Virksomhedstype[[#This Row],[Værdikode]])=3,\".00.00\",\"\"),IF(LEN(Tabel_B_Virksomhedstype[[#This Row],[Værdikode]])=6,\".00\",\"\"),\"] \",IF(Tabel_B_Virksomhedstype[[#This Row],[(Bruges i andre dokumenter)\nFirma- eller organisationsnavn ]]=\"\",Tabel_B_Virksomhedstype[[#This Row],[Metadataværdi DK]],Tabel_B_Virksomhedstype[[#This Row],[(Bruges i andre dokumenter)\nFirma- eller organisationsnavn ]]))","v":"[B05.26.00] Elentreprenør"},"B05.26","Elentreprenør","Entreprenørvirksomhed, der udfører arbejde vedr. el- og IT-installationer","Electrical contractor"]
[{"$f":"CONCATENATE(\"[\",Tabel_B_Virksomhedstype[[#This Row],[Værdikode]],IF(LEN(Tabel_B_Virksomhedstype[[#This Row],[Værdikode]])=3,\".00.00\",\"\"),IF(LEN(Tabel_B_Virksomhedstype[[#This Row],[Værdikode]])=6,\".00\",\"\"),\"] \",IF(Tabel_B_Virksomhedstype[[#This Row],[(Bruges i andre dokumenter)\nFirma- eller organisationsnavn ]]=\"\",Tabel_B_Virksomhedstype[[#This Row],[Metadataværdi DK]],Tabel_B_Virksomhedstype[[#This Row],[(Bruges i andre dokumenter)\nFirma- eller organisationsnavn ]]))","v":"[B05.27.00] Kølingsentreprenør"},"B05.27","Kølingsentreprenør","Entreprenørvirksomhed, der installerer kølesystemer","Cooling contractor"]
[{"$f":"CONCATENATE(\"[\",Tabel_B_Virksomhedstype[[#This Row],[Værdikode]],IF(LEN(Tabel_B_Virksomhedstype[[#This Row],[Værdikode]])=3,\".00.00\",\"\"),IF(LEN(Tabel_B_Virksomhedstype[[#This Row],[Værdikode]])=6,\".00\",\"\"),\"] \",IF(Tabel_B_Virksomhedstype[[#This Row],[(Bruges i andre dokumenter)\nFirma- eller organisationsnavn ]]=\"\",Tabel_B_Virksomhedstype[[#This Row],[Metadataværdi DK]],Tabel_B_Virksomhedstype[[#This Row],[(Bruges i andre dokumenter)\nFirma- eller organisationsnavn ]]))","v":"[B05.28.00] Rengøringsfirma"},"B05.28","Rengøringsfirma","Entreprenørvirksomhed, der udfører oprydnings- og renholdningsarbejde","Cleaning contractor"]
[{"$f":"CONCATENATE(\"[\",Tabel_B_Virksomhedstype[[#This Row],[Værdikode]],IF(LEN(Tabel_B_Virksomhedstype[[#This Row],[Værdikode]])=3,\".00.00\",\"\"),IF(LEN(Tabel_B_Virksomhedstype[[#This Row],[Værdikode]])=6,\".00\",\"\"),\"] \",IF(Tabel_B_Virksomhedstype[[#This Row],[(Bruges i andre dokumenter)\nFirma- eller organisationsnavn ]]=\"\",Tabel_B_Virksomhedstype[[#This Row],[Metadataværdi DK]],Tabel_B_Virksomhedstype[[#This Row],[(Bruges i andre dokumenter)\nFirma- eller organisationsnavn ]]))","v":"[B06.00.00] -"},"B06.00","-",null,"-"]
[{"$f":"CONCATENATE(\"[\",Tabel_B_Virksomhedstype[[#This Row],[Værdikode]],IF(LEN(Tabel_B_Virksomhedstype[[#This Row],[Værdikode]])=3,\".00.00\",\"\"),IF(LEN(Tabel_B_Virksomhedstype[[#This Row],[Værdikode]])=6,\".00\",\"\"),\"] \",IF(Tabel_B_Virksomhedstype[[#This Row],[(Bruges i andre dokumenter)\nFirma- eller organisationsnavn ]]=\"\",Tabel_B_Virksomhedstype[[#This Row],[Metadataværdi DK]],Tabel_B_Virksomhedstype[[#This Row],[(Bruges i andre dokumenter)\nFirma- eller organisationsnavn ]]))","v":"[B07.00.00] Ejendomsforvalter"},"B07.00","Ejendomsforvalter","Person eller virksomhed, der administrerer og driver ejendomme, grunde og bygninger","Property manager"]
[{"$f":"CONCATENATE(\"[\",Tabel_B_Virksomhedstype[[#This Row],[Værdikode]],IF(LEN(Tabel_B_Virksomhedstype[[#This Row],[Værdikode]])=3,\".00.00\",\"\"),IF(LEN(Tabel_B_Virksomhedstype[[#This Row],[Værdikode]])=6,\".00\",\"\"),\"] \",IF(Tabel_B_Virksomhedstype[[#This Row],[(Bruges i andre dokumenter)\nFirma- eller organisationsnavn ]]=\"\",Tabel_B_Virksomhedstype[[#This Row],[Metadataværdi DK]],Tabel_B_Virksomhedstype[[#This Row],[(Bruges i andre dokumenter)\nFirma- eller organisationsnavn ]]))","v":"[B07.01.00] Driftsherre"},"B07.01","Driftsherre","Ejendomsforvaltningsvirksomhed, der drifter byggeri og anlæg","Operator"]
[{"$f":"CONCATENATE(\"[\",Tabel_B_Virksomhedstype[[#This Row],[Værdikode]],IF(LEN(Tabel_B_Virksomhedstype[[#This Row],[Værdikode]])=3,\".00.00\",\"\"),IF(LEN(Tabel_B_Virksomhedstype[[#This Row],[Værdikode]])=6,\".00\",\"\"),\"] \",IF(Tabel_B_Virksomhedstype[[#This Row],[(Bruges i andre dokumenter)\nFirma- eller organisationsnavn ]]=\"\",Tabel_B_Virksomhedstype[[#This Row],[Metadataværdi DK]],Tabel_B_Virksomhedstype[[#This Row],[(Bruges i andre dokumenter)\nFirma- eller organisationsnavn ]]))","v":"[B07.02.00] Administrator"},"B07.02","Administrator","Ejendomsforvaltningsvirksomhed, der administrerer byggeri og anlæg","Administrator"]
[{"$f":"CONCATENATE(\"[\",Tabel_B_Virksomhedstype[[#This Row],[Værdikode]],IF(LEN(Tabel_B_Virksomhedstype[[#This Row],[Værdikode]])=3,\".00.00\",\"\"),IF(LEN(Tabel_B_Virksomhedstype[[#This Row],[Værdikode]])=6,\".00\",\"\"),\"] \",IF(Tabel_B_Virksomhedstype[[#This Row],[(Bruges i andre dokumenter)\nFirma- eller organisationsnavn ]]=\"\",Tabel_B_Virksomhedstype[[#This Row],[Metadataværdi DK]],Tabel_B_Virksomhedstype[[#This Row],[(Bruges i andre dokumenter)\nFirma- eller organisationsnavn ]]))","v":"[B07.03.00] Ejendomsservice"},"B07.03","Ejendomsservice","Ejendomsforvaltningsvirksomhed, der leverer ejendomsserviceydelser","Property services"]
[{"$f":"CONCATENATE(\"[\",Tabel_B_Virksomhedstype[[#This Row],[Værdikode]],IF(LEN(Tabel_B_Virksomhedstype[[#This Row],[Værdikode]])=3,\".00.00\",\"\"),IF(LEN(Tabel_B_Virksomhedstype[[#This Row],[Værdikode]])=6,\".00\",\"\"),\"] \",IF(Tabel_B_Virksomhedstype[[#This Row],[(Bruges i andre dokumenter)\nFirma- eller organisationsnavn ]]=\"\",Tabel_B_Virksomhedstype[[#This Row],[Metadataværdi DK]],Tabel_B_Virksomhedstype[[#This Row],[(Bruges i andre dokumenter)\nFirma- eller organisationsnavn ]]))","v":"[B08.00.00] -"},"B08.00","-",null,"-"]
[{"$f":"CONCATENATE(\"[\",Tabel_B_Virksomhedstype[[#This Row],[Værdikode]],IF(LEN(Tabel_B_Virksomhedstype[[#This Row],[Værdikode]])=3,\".00.00\",\"\"),IF(LEN(Tabel_B_Virksomhedstype[[#This Row],[Værdikode]])=6,\".00\",\"\"),\"] \",IF(Tabel_B_Virksomhedstype[[#This Row],[(Bruges i andre dokumenter)\nFirma- eller organisationsnavn ]]=\"\",Tabel_B_Virksomhedstype[[#This Row],[Metadataværdi DK]],Tabel_B_Virksomhedstype[[#This Row],[(Bruges i andre dokumenter)\nFirma- eller organisationsnavn ]]))","v":"[B09.00.00] -"},"B09.00","-",null,"-"]
[{"$f":"CONCATENATE(\"[\",Tabel_B_Virksomhedstype[[#This Row],[Værdikode]],IF(LEN(Tabel_B_Virksomhedstype[[#This Row],[Værdikode]])=3,\".00.00\",\"\"),IF(LEN(Tabel_B_Virksomhedstype[[#This Row],[Værdikode]])=6,\".00\",\"\"),\"] \",IF(Tabel_B_Virksomhedstype[[#This Row],[(Bruges i andre dokumenter)\nFirma- eller organisationsnavn ]]=\"\",Tabel_B_Virksomhedstype[[#This Row],[Metadataværdi DK]],Tabel_B_Virksomhedstype[[#This Row],[(Bruges i andre dokumenter)\nFirma- eller organisationsnavn ]]))","v":"[B10.00.00] -"},"B10.00","-",null,"-"]
[{"$f":"CONCATENATE(\"[\",Tabel_B_Virksomhedstype[[#This Row],[Værdikode]],IF(LEN(Tabel_B_Virksomhedstype[[#This Row],[Værdikode]])=3,\".00.00\",\"\"),IF(LEN(Tabel_B_Virksomhedstype[[#This Row],[Værdikode]])=6,\".00\",\"\"),\"] \",IF(Tabel_B_Virksomhedstype[[#This Row],[(Bruges i andre dokumenter)\nFirma- eller organisationsnavn ]]=\"\",Tabel_B_Virksomhedstype[[#This Row],[Metadataværdi DK]],Tabel_B_Virksomhedstype[[#This Row],[(Bruges i andre dokumenter)\nFirma- eller organisationsnavn ]]))","v":"[B11.00.00] -"},"B11.00","-",null,"-"]
[{"$f":"CONCATENATE(\"[\",Tabel_B_Virksomhedstype[[#This Row],[Værdikode]],IF(LEN(Tabel_B_Virksomhedstype[[#This Row],[Værdikode]])=3,\".00.00\",\"\"),IF(LEN(Tabel_B_Virksomhedstype[[#This Row],[Værdikode]])=6,\".00\",\"\"),\"] \",IF(Tabel_B_Virksomhedstype[[#This Row],[(Bruges i andre dokumenter)\nFirma- eller organisationsnavn ]]=\"\",Tabel_B_Virksomhedstype[[#This Row],[Metadataværdi DK]],Tabel_B_Virksomhedstype[[#This Row],[(Bruges i andre dokumenter)\nFirma- eller organisationsnavn ]]))","v":"[B12.00.00] Myndighed"},"B12.00","Myndighed","Samfundsinstitution, der forvalter og har magtbeføjelser på et bestemt område","Authority"]
[{"$f":"CONCATENATE(\"[\",Tabel_B_Virksomhedstype[[#This Row],[Værdikode]],IF(LEN(Tabel_B_Virksomhedstype[[#This Row],[Værdikode]])=3,\".00.00\",\"\"),IF(LEN(Tabel_B_Virksomhedstype[[#This Row],[Værdikode]])=6,\".00\",\"\"),\"] \",IF(Tabel_B_Virksomhedstype[[#This Row],[(Bruges i andre dokumenter)\nFirma- eller organisationsnavn ]]=\"\",Tabel_B_Virksomhedstype[[#This Row],[Metadataværdi DK]],Tabel_B_Virksomhedstype[[#This Row],[(Bruges i andre dokumenter)\nFirma- eller organisationsnavn ]]))","v":"[B12.01.00] Arbejdstilsyn"},"B12.01","Arbejdstilsyn","Myndighed, der fører tilsyn med arbejdsmiljø","Labor regulatory control"]
[{"$f":"CONCATENATE(\"[\",Tabel_B_Virksomhedstype[[#This Row],[Værdikode]],IF(LEN(Tabel_B_Virksomhedstype[[#This Row],[Værdikode]])=3,\".00.00\",\"\"),IF(LEN(Tabel_B_Virksomhedstype[[#This Row],[Værdikode]])=6,\".00\",\"\"),\"] \",IF(Tabel_B_Virksomhedstype[[#This Row],[(Bruges i andre dokumenter)\nFirma- eller organisationsnavn ]]=\"\",Tabel_B_Virksomhedstype[[#This Row],[Metadataværdi DK]],Tabel_B_Virksomhedstype[[#This Row],[(Bruges i andre dokumenter)\nFirma- eller organisationsnavn ]]))","v":"[B12.02.00] Brandmyndighed"},"B12.02","Brandmyndighed","Myndighed, der fører tilsyn brandforhold og -sikring","Fire authority"]
[{"$f":"CONCATENATE(\"[\",Tabel_B_Virksomhedstype[[#This Row],[Værdikode]],IF(LEN(Tabel_B_Virksomhedstype[[#This Row],[Værdikode]])=3,\".00.00\",\"\"),IF(LEN(Tabel_B_Virksomhedstype[[#This Row],[Værdikode]])=6,\".00\",\"\"),\"] \",IF(Tabel_B_Virksomhedstype[[#This Row],[(Bruges i andre dokumenter)\nFirma- eller organisationsnavn ]]=\"\",Tabel_B_Virksomhedstype[[#This Row],[Metadataværdi DK]],Tabel_B_Virksomhedstype[[#This Row],[(Bruges i andre dokumenter)\nFirma- eller organisationsnavn ]]))","v":"[B12.03.00] Bygningsinspektorat"},"B12.03","Bygningsinspektorat","Myndighed, der fører lovmæssigt tilsyn med byggeprojekter og byggesager under udførelse","Building control department"]
[{"$f":"CONCATENATE(\"[\",Tabel_B_Virksomhedstype[[#This Row],[Værdikode]],IF(LEN(Tabel_B_Virksomhedstype[[#This Row],[Værdikode]])=3,\".00.00\",\"\"),IF(LEN(Tabel_B_Virksomhedstype[[#This Row],[Værdikode]])=6,\".00\",\"\"),\"] \",IF(Tabel_B_Virksomhedstype[[#This Row],[(Bruges i andre dokumenter)\nFirma- eller organisationsnavn ]]=\"\",Tabel_B_Virksomhedstype[[#This Row],[Metadataværdi DK]],Tabel_B_Virksomhedstype[[#This Row],[(Bruges i andre dokumenter)\nFirma- eller organisationsnavn ]]))","v":"[B13.00.00] Ejer"},"B13.00","Ejer","Bruger, der ejer noget bygget eller anlagt med henblik på en bestemt anvendelse","Owner"]
[{"$f":"CONCATENATE(\"[\",Tabel_B_Virksomhedstype[[#This Row],[Værdikode]],IF(LEN(Tabel_B_Virksomhedstype[[#This Row],[Værdikode]])=3,\".00.00\",\"\"),IF(LEN(Tabel_B_Virksomhedstype[[#This Row],[Værdikode]])=6,\".00\",\"\"),\"] \",IF(Tabel_B_Virksomhedstype[[#This Row],[(Bruges i andre dokumenter)\nFirma- eller organisationsnavn ]]=\"\",Tabel_B_Virksomhedstype[[#This Row],[Metadataværdi DK]],Tabel_B_Virksomhedstype[[#This Row],[(Bruges i andre dokumenter)\nFirma- eller organisationsnavn ]]))","v":"[B14.00.00] -"},"B14.00","-",null,"-"]
[{"$f":"CONCATENATE(\"[\",Tabel_B_Virksomhedstype[[#This Row],[Værdikode]],IF(LEN(Tabel_B_Virksomhedstype[[#This Row],[Værdikode]])=3,\".00.00\",\"\"),IF(LEN(Tabel_B_Virksomhedstype[[#This Row],[Værdikode]])=6,\".00\",\"\"),\"] \",IF(Tabel_B_Virksomhedstype[[#This Row],[(Bruges i andre dokumenter)\nFirma- eller organisationsnavn ]]=\"\",Tabel_B_Virksomhedstype[[#This Row],[Metadataværdi DK]],Tabel_B_Virksomhedstype[[#This Row],[(Bruges i andre dokumenter)\nFirma- eller organisationsnavn ]]))","v":"[B15.00.00] Bruger"},"B15.00","Bruger","Person, erhverv eller institution, der anvender byggeri eller anlæg","User"]
[{"$f":"CONCATENATE(\"[\",Tabel_B_Virksomhedstype[[#This Row],[Værdikode]],IF(LEN(Tabel_B_Virksomhedstype[[#This Row],[Værdikode]])=3,\".00.00\",\"\"),IF(LEN(Tabel_B_Virksomhedstype[[#This Row],[Værdikode]])=6,\".00\",\"\"),\"] \",IF(Tabel_B_Virksomhedstype[[#This Row],[(Bruges i andre dokumenter)\nFirma- eller organisationsnavn ]]=\"\",Tabel_B_Virksomhedstype[[#This Row],[Metadataværdi DK]],Tabel_B_Virksomhedstype[[#This Row],[(Bruges i andre dokumenter)\nFirma- eller organisationsnavn ]]))","v":"[B15.01.00] Okkupant"},"B15.01","Okkupant","Bruger, der befinder sig i noget bygget eller anlagt for en bestemt anvendelse","Occupant"]
[{"$f":"CONCATENATE(\"[\",Tabel_B_Virksomhedstype[[#This Row],[Værdikode]],IF(LEN(Tabel_B_Virksomhedstype[[#This Row],[Værdikode]])=3,\".00.00\",\"\"),IF(LEN(Tabel_B_Virksomhedstype[[#This Row],[Værdikode]])=6,\".00\",\"\"),\"] \",IF(Tabel_B_Virksomhedstype[[#This Row],[(Bruges i andre dokumenter)\nFirma- eller organisationsnavn ]]=\"\",Tabel_B_Virksomhedstype[[#This Row],[Metadataværdi DK]],Tabel_B_Virksomhedstype[[#This Row],[(Bruges i andre dokumenter)\nFirma- eller organisationsnavn ]]))","v":"[B15.02.00] Lejer"},"B15.02","Lejer","Bruger, der har lejet noget bygget eller anlagt for en bestemt anvendelse","Tennant"]
[{"$f":"CONCATENATE(\"[\",Tabel_B_Virksomhedstype[[#This Row],[Værdikode]],IF(LEN(Tabel_B_Virksomhedstype[[#This Row],[Værdikode]])=3,\".00.00\",\"\"),IF(LEN(Tabel_B_Virksomhedstype[[#This Row],[Værdikode]])=6,\".00\",\"\"),\"] \",IF(Tabel_B_Virksomhedstype[[#This Row],[(Bruges i andre dokumenter)\nFirma- eller organisationsnavn ]]=\"\",Tabel_B_Virksomhedstype[[#This Row],[Metadataværdi DK]],Tabel_B_Virksomhedstype[[#This Row],[(Bruges i andre dokumenter)\nFirma- eller organisationsnavn ]]))","v":"[B16.00.00] Forsikringsselskab"},"B16.00","Forsikringsselskab","Person eller erhverv, der beskæftiger sig med køb og salg af forsikringer og udbetaling af erstatning","Insurance company"]
[{"$f":"CONCATENATE(\"[\",Tabel_B_Virksomhedstype[[#This Row],[Værdikode]],IF(LEN(Tabel_B_Virksomhedstype[[#This Row],[Værdikode]])=3,\".00.00\",\"\"),IF(LEN(Tabel_B_Virksomhedstype[[#This Row],[Værdikode]])=6,\".00\",\"\"),\"] \",IF(Tabel_B_Virksomhedstype[[#This Row],[(Bruges i andre dokumenter)\nFirma- eller organisationsnavn ]]=\"\",Tabel_B_Virksomhedstype[[#This Row],[Metadataværdi DK]],Tabel_B_Virksomhedstype[[#This Row],[(Bruges i andre dokumenter)\nFirma- eller organisationsnavn ]]))","v":"[B17.00.00] -"},"B17.00","-",null,"-"]
[{"$f":"CONCATENATE(\"[\",Tabel_B_Virksomhedstype[[#This Row],[Værdikode]],IF(LEN(Tabel_B_Virksomhedstype[[#This Row],[Værdikode]])=3,\".00.00\",\"\"),IF(LEN(Tabel_B_Virksomhedstype[[#This Row],[Værdikode]])=6,\".00\",\"\"),\"] \",IF(Tabel_B_Virksomhedstype[[#This Row],[(Bruges i andre dokumenter)\nFirma- eller organisationsnavn ]]=\"\",Tabel_B_Virksomhedstype[[#This Row],[Metadataværdi DK]],Tabel_B_Virksomhedstype[[#This Row],[(Bruges i andre dokumenter)\nFirma- eller organisationsnavn ]]))","v":"[B18.00.00] -"},"B18.00","-",null,"-"]
[{"$f":"CONCATENATE(\"[\",Tabel_B_Virksomhedstype[[#This Row],[Værdikode]],IF(LEN(Tabel_B_Virksomhedstype[[#This Row],[Værdikode]])=3,\".00.00\",\"\"),IF(LEN(Tabel_B_Virksomhedstype[[#This Row],[Værdikode]])=6,\".00\",\"\"),\"] \",IF(Tabel_B_Virksomhedstype[[#This Row],[(Bruges i andre dokumenter)\nFirma- eller organisationsnavn ]]=\"\",Tabel_B_Virksomhedstype[[#This Row],[Metadataværdi DK]],Tabel_B_Virksomhedstype[[#This Row],[(Bruges i andre dokumenter)\nFirma- eller organisationsnavn ]]))","v":"[B19.00.00] -"},"B19.00","-",null,"-"]
[{"$f":"CONCATENATE(\"[\",Tabel_B_Virksomhedstype[[#This Row],[Værdikode]],IF(LEN(Tabel_B_Virksomhedstype[[#This Row],[Værdikode]])=3,\".00.00\",\"\"),IF(LEN(Tabel_B_Virksomhedstype[[#This Row],[Værdikode]])=6,\".00\",\"\"),\"] \",IF(Tabel_B_Virksomhedstype[[#This Row],[(Bruges i andre dokumenter)\nFirma- eller organisationsnavn ]]=\"\",Tabel_B_Virksomhedstype[[#This Row],[Metadataværdi DK]],Tabel_B_Virksomhedstype[[#This Row],[(Bruges i andre dokumenter)\nFirma- eller organisationsnavn ]]))","v":"[B20.00.00] Forsynings- og bortledningsvirksomheder"},"B20.00","Forsynings- og bortledningsvirksomheder","Erhverv eller myndighed, der sikrer forsyning og bortskaffelse til personer, irksomheder og bygninger i et samfund","Gas supply company"]
[{"$f":"CONCATENATE(\"[\",Tabel_B_Virksomhedstype[[#This Row],[Værdikode]],IF(LEN(Tabel_B_Virksomhedstype[[#This Row],[Værdikode]])=3,\".00.00\",\"\"),IF(LEN(Tabel_B_Virksomhedstype[[#This Row],[Værdikode]])=6,\".00\",\"\"),\"] \",IF(Tabel_B_Virksomhedstype[[#This Row],[(Bruges i andre dokumenter)\nFirma- eller organisationsnavn ]]=\"\",Tabel_B_Virksomhedstype[[#This Row],[Metadataværdi DK]],Tabel_B_Virksomhedstype[[#This Row],[(Bruges i andre dokumenter)\nFirma- eller organisationsnavn ]]))","v":"[B20.01.00] Gasforsyning"},"B20.01","Gasforsyning","Forsynings- og afledningsvirksomhed for gas ","Electrical supply company"]
[{"$f":"CONCATENATE(\"[\",Tabel_B_Virksomhedstype[[#This Row],[Værdikode]],IF(LEN(Tabel_B_Virksomhedstype[[#This Row],[Værdikode]])=3,\".00.00\",\"\"),IF(LEN(Tabel_B_Virksomhedstype[[#This Row],[Værdikode]])=6,\".00\",\"\"),\"] \",IF(Tabel_B_Virksomhedstype[[#This Row],[(Bruges i andre dokumenter)\nFirma- eller organisationsnavn ]]=\"\",Tabel_B_Virksomhedstype[[#This Row],[Metadataværdi DK]],Tabel_B_Virksomhedstype[[#This Row],[(Bruges i andre dokumenter)\nFirma- eller organisationsnavn ]]))","v":"[B20.02.00] Elforsyning"},"B20.02","Elforsyning","Forsynings- og afledningsvirksomhed for el ","Water work"]
[{"$f":"CONCATENATE(\"[\",Tabel_B_Virksomhedstype[[#This Row],[Værdikode]],IF(LEN(Tabel_B_Virksomhedstype[[#This Row],[Værdikode]])=3,\".00.00\",\"\"),IF(LEN(Tabel_B_Virksomhedstype[[#This Row],[Værdikode]])=6,\".00\",\"\"),\"] \",IF(Tabel_B_Virksomhedstype[[#This Row],[(Bruges i andre dokumenter)\nFirma- eller organisationsnavn ]]=\"\",Tabel_B_Virksomhedstype[[#This Row],[Metadataværdi DK]],Tabel_B_Virksomhedstype[[#This Row],[(Bruges i andre dokumenter)\nFirma- eller organisationsnavn ]]))","v":"[B20.03.00] Vandværk"},"B20.03","Vandværk","Forsynings- og afledningsvirksomhed for vand ","Telephone company"]
[{"$f":"CONCATENATE(\"[\",Tabel_B_Virksomhedstype[[#This Row],[Værdikode]],IF(LEN(Tabel_B_Virksomhedstype[[#This Row],[Værdikode]])=3,\".00.00\",\"\"),IF(LEN(Tabel_B_Virksomhedstype[[#This Row],[Værdikode]])=6,\".00\",\"\"),\"] \",IF(Tabel_B_Virksomhedstype[[#This Row],[(Bruges i andre dokumenter)\nFirma- eller organisationsnavn ]]=\"\",Tabel_B_Virksomhedstype[[#This Row],[Metadataværdi DK]],Tabel_B_Virksomhedstype[[#This Row],[(Bruges i andre dokumenter)\nFirma- eller organisationsnavn ]]))","v":"[B20.04.00] Telefon"},"B20.04","Telefon","Forsynings- og afledningsvirksomhed for tele- og netområdet","Sewerage company"]
[{"$f":"CONCATENATE(\"[\",Tabel_B_Virksomhedstype[[#This Row],[Værdikode]],IF(LEN(Tabel_B_Virksomhedstype[[#This Row],[Værdikode]])=3,\".00.00\",\"\"),IF(LEN(Tabel_B_Virksomhedstype[[#This Row],[Værdikode]])=6,\".00\",\"\"),\"] \",IF(Tabel_B_Virksomhedstype[[#This Row],[(Bruges i andre dokumenter)\nFirma- eller organisationsnavn ]]=\"\",Tabel_B_Virksomhedstype[[#This Row],[Metadataværdi DK]],Tabel_B_Virksomhedstype[[#This Row],[(Bruges i andre dokumenter)\nFirma- eller organisationsnavn ]]))","v":"[B20.05.00] Kloak"},"B20.05","Kloak","Forsynings- og afledningsvirksomhed for spildevand","Renovations"]
[{"$f":"CONCATENATE(\"[\",Tabel_B_Virksomhedstype[[#This Row],[Værdikode]],IF(LEN(Tabel_B_Virksomhedstype[[#This Row],[Værdikode]])=3,\".00.00\",\"\"),IF(LEN(Tabel_B_Virksomhedstype[[#This Row],[Værdikode]])=6,\".00\",\"\"),\"] \",IF(Tabel_B_Virksomhedstype[[#This Row],[(Bruges i andre dokumenter)\nFirma- eller organisationsnavn ]]=\"\",Tabel_B_Virksomhedstype[[#This Row],[Metadataværdi DK]],Tabel_B_Virksomhedstype[[#This Row],[(Bruges i andre dokumenter)\nFirma- eller organisationsnavn ]]))","v":"[B20.06.00] Renovation"},"B20.06","Renovation","Forsynings- og afledningsvirksomhed for affald","Combustion"]
[{"$f":"CONCATENATE(\"[\",Tabel_B_Virksomhedstype[[#This Row],[Værdikode]],IF(LEN(Tabel_B_Virksomhedstype[[#This Row],[Værdikode]])=3,\".00.00\",\"\"),IF(LEN(Tabel_B_Virksomhedstype[[#This Row],[Værdikode]])=6,\".00\",\"\"),\"] \",IF(Tabel_B_Virksomhedstype[[#This Row],[(Bruges i andre dokumenter)\nFirma- eller organisationsnavn ]]=\"\",Tabel_B_Virksomhedstype[[#This Row],[Metadataværdi DK]],Tabel_B_Virksomhedstype[[#This Row],[(Bruges i andre dokumenter)\nFirma- eller organisationsnavn ]]))","v":"[B20.07.00] Forbrænding"},"B20.07","Forbrænding","Forsynings- og afledningsvirksomhed for afbrænding af affald","Dump"]
[{"$f":"CONCATENATE(\"[\",Tabel_B_Virksomhedstype[[#This Row],[Værdikode]],IF(LEN(Tabel_B_Virksomhedstype[[#This Row],[Værdikode]])=3,\".00.00\",\"\"),IF(LEN(Tabel_B_Virksomhedstype[[#This Row],[Værdikode]])=6,\".00\",\"\"),\"] \",IF(Tabel_B_Virksomhedstype[[#This Row],[(Bruges i andre dokumenter)\nFirma- eller organisationsnavn ]]=\"\",Tabel_B_Virksomhedstype[[#This Row],[Metadataværdi DK]],Tabel_B_Virksomhedstype[[#This Row],[(Bruges i andre dokumenter)\nFirma- eller organisationsnavn ]]))","v":"[B20.08.00] Losseplads"},"B20.08","Losseplads","Forsynings- og afledningsvirksomhed for deponering","Dump"]
[{"$f":"CONCATENATE(\"[\",Tabel_B_Virksomhedstype[[#This Row],[Værdikode]],IF(LEN(Tabel_B_Virksomhedstype[[#This Row],[Værdikode]])=3,\".00.00\",\"\"),IF(LEN(Tabel_B_Virksomhedstype[[#This Row],[Værdikode]])=6,\".00\",\"\"),\"] \",IF(Tabel_B_Virksomhedstype[[#This Row],[(Bruges i andre dokumenter)\nFirma- eller organisationsnavn ]]=\"\",Tabel_B_Virksomhedstype[[#This Row],[Metadataværdi DK]],Tabel_B_Virksomhedstype[[#This Row],[(Bruges i andre dokumenter)\nFirma- eller organisationsnavn ]]))","v":"[B21.00.00] Forskning og uddannelse"},"B21.00","Forskning og uddannelse","Erhverv eller institution, der beskæftiger sig med undervisning, undersøgelser eller vidensindhentning og -udvikling","Research and education"]
[]
[]
[]
[]
[]
[]
[]
[]
[]
[]
[]
[]
[]
[]
[]
[]
[]
[]
["Værdiliste","C"]
["Metadatanavn","Indholdstype (Document content)"]
["Definition","Kategorisering efter det emne eller den information, et dokument eller en informationsleverance indeholder"]
["Bunden/Åben","Bunden værdiliste og åben underværdiliste"]
["Note"]
[]
["Rullelisteværdi","Værdikode","Metadataværdi DK","Beskrivelse","Metadataværdi UK"]
[{"$f":"CONCATENATE(\"[\",Tabel_C_Indholdstype[[#This Row],[Værdikode]],IF(LEN(Tabel_C_Indholdstype[[#This Row],[Værdikode]])=3,\".00.00\",\"\"),IF(LEN(Tabel_C_Indholdstype[[#This Row],[Værdikode]])=6,\".00\",\"\"),\"] \",Tabel_C_Indholdstype[[#This Row],[Metadataværdi DK]])","v":"[C01.00.00] Basis"},"C01.00","Basis","Information, der vedrører en organisation og de involverede virksomheders virke","Basic"]
[{"$f":"CONCATENATE(\"[\",Tabel_C_Indholdstype[[#This Row],[Værdikode]],IF(LEN(Tabel_C_Indholdstype[[#This Row],[Værdikode]])=3,\".00.00\",\"\"),IF(LEN(Tabel_C_Indholdstype[[#This Row],[Værdikode]])=6,\".00\",\"\"),\"] \",Tabel_C_Indholdstype[[#This Row],[Metadataværdi DK]])","v":"[C01.01.00] Arkivfortegnielse"},"C01.01","Arkivfortegnielse",null,"Archive inventory"]
[{"$f":"CONCATENATE(\"[\",Tabel_C_Indholdstype[[#This Row],[Værdikode]],IF(LEN(Tabel_C_Indholdstype[[#This Row],[Værdikode]])=3,\".00.00\",\"\"),IF(LEN(Tabel_C_Indholdstype[[#This Row],[Værdikode]])=6,\".00\",\"\"),\"] \",Tabel_C_Indholdstype[[#This Row],[Metadataværdi DK]])","v":"[C01.02.00] Organisation"},"C01.02","Organisation",null,"Organisation"]
[{"$f":"CONCATENATE(\"[\",Tabel_C_Indholdstype[[#This Row],[Værdikode]],IF(LEN(Tabel_C_Indholdstype[[#This Row],[Værdikode]])=3,\".00.00\",\"\"),IF(LEN(Tabel_C_Indholdstype[[#This Row],[Værdikode]])=6,\".00\",\"\"),\"] \",Tabel_C_Indholdstype[[#This Row],[Metadataværdi DK]])","v":"[C01.03.00] Skabelon"},"C01.03","Skabelon",null,"Template"]
[{"$f":"CONCATENATE(\"[\",Tabel_C_Indholdstype[[#This Row],[Værdikode]],IF(LEN(Tabel_C_Indholdstype[[#This Row],[Værdikode]])=3,\".00.00\",\"\"),IF(LEN(Tabel_C_Indholdstype[[#This Row],[Værdikode]])=6,\".00\",\"\"),\"] \",Tabel_C_Indholdstype[[#This Row],[Metadataværdi DK]])","v":"[C02.00.00] Aftale"},"C02.00","Aftale","Information, der fastlægger ydelser, leverancer og vilkår mellem parter","Agreement"]
[{"$f":"CONCATENATE(\"[\",Tabel_C_Indholdstype[[#This Row],[Værdikode]],IF(LEN(Tabel_C_Indholdstype[[#This Row],[Værdikode]])=3,\".00.00\",\"\"),IF(LEN(Tabel_C_Indholdstype[[#This Row],[Værdikode]])=6,\".00\",\"\"),\"] \",Tabel_C_Indholdstype[[#This Row],[Metadataværdi DK]])","v":"[C02.01.00] Aflevering"},"C02.01","Aflevering",null,"Handover"]
[{"$f":"CONCATENATE(\"[\",Tabel_C_Indholdstype[[#This Row],[Værdikode]],IF(LEN(Tabel_C_Indholdstype[[#This Row],[Værdikode]])=3,\".00.00\",\"\"),IF(LEN(Tabel_C_Indholdstype[[#This Row],[Værdikode]])=6,\".00\",\"\"),\"] \",Tabel_C_Indholdstype[[#This Row],[Metadataværdi DK]])","v":"[C02.02.00] Forsikring"},"C02.02","Forsikring",null,"Insurance"]
[{"$f":"CONCATENATE(\"[\",Tabel_C_Indholdstype[[#This Row],[Værdikode]],IF(LEN(Tabel_C_Indholdstype[[#This Row],[Værdikode]])=3,\".00.00\",\"\"),IF(LEN(Tabel_C_Indholdstype[[#This Row],[Værdikode]])=6,\".00\",\"\"),\"] \",Tabel_C_Indholdstype[[#This Row],[Metadataværdi DK]])","v":"[C02.03.00] Fuldmagt"},"C02.03","Fuldmagt",null,"Proxy"]
[{"$f":"CONCATENATE(\"[\",Tabel_C_Indholdstype[[#This Row],[Værdikode]],IF(LEN(Tabel_C_Indholdstype[[#This Row],[Værdikode]])=3,\".00.00\",\"\"),IF(LEN(Tabel_C_Indholdstype[[#This Row],[Værdikode]])=6,\".00\",\"\"),\"] \",Tabel_C_Indholdstype[[#This Row],[Metadataværdi DK]])","v":"[C02.04.00] Garanti"},"C02.04","Garanti",null,"Warranty"]
[{"$f":"CONCATENATE(\"[\",Tabel_C_Indholdstype[[#This Row],[Værdikode]],IF(LEN(Tabel_C_Indholdstype[[#This Row],[Værdikode]])=3,\".00.00\",\"\"),IF(LEN(Tabel_C_Indholdstype[[#This Row],[Værdikode]])=6,\".00\",\"\"),\"] \",Tabel_C_Indholdstype[[#This Row],[Metadataværdi DK]])","v":"[C02.05.00] Kontrakt"},"C02.05","Kontrakt",null,"Contract"]
[{"$f":"CONCATENATE(\"[\",Tabel_C_Indholdstype[[#This Row],[Værdikode]],IF(LEN(Tabel_C_Indholdstype[[#This Row],[Værdikode]])=3,\".00.00\",\"\"),IF(LEN(Tabel_C_Indholdstype[[#This Row],[Værdikode]])=6,\".00\",\"\"),\"] \",Tabel_C_Indholdstype[[#This Row],[Metadataværdi DK]])","v":"[C02.06.00] Aftaleseddel"},"C02.06","Aftaleseddel",null,"Add contract"]
[{"$f":"CONCATENATE(\"[\",Tabel_C_Indholdstype[[#This Row],[Værdikode]],IF(LEN(Tabel_C_Indholdstype[[#This Row],[Værdikode]])=3,\".00.00\",\"\"),IF(LEN(Tabel_C_Indholdstype[[#This Row],[Værdikode]])=6,\".00\",\"\"),\"] \",Tabel_C_Indholdstype[[#This Row],[Metadataværdi DK]])","v":"[C02.07.00] IKT"},"C02.07","IKT",null,"ICT"]
[{"$f":"CONCATENATE(\"[\",Tabel_C_Indholdstype[[#This Row],[Værdikode]],IF(LEN(Tabel_C_Indholdstype[[#This Row],[Værdikode]])=3,\".00.00\",\"\"),IF(LEN(Tabel_C_Indholdstype[[#This Row],[Værdikode]])=6,\".00\",\"\"),\"] \",Tabel_C_Indholdstype[[#This Row],[Metadataværdi DK]])","v":"[C03.00.00] Økonomi"},"C03.00","Økonomi","Information, der vedrører forvaltning og anvendelse af penge","Economy"]
[{"$f":"CONCATENATE(\"[\",Tabel_C_Indholdstype[[#This Row],[Værdikode]],IF(LEN(Tabel_C_Indholdstype[[#This Row],[Værdikode]])=3,\".00.00\",\"\"),IF(LEN(Tabel_C_Indholdstype[[#This Row],[Værdikode]])=6,\".00\",\"\"),\"] \",Tabel_C_Indholdstype[[#This Row],[Metadataværdi DK]])","v":"[C03.01.00] Betalingsplan"},"C03.01","Betalingsplan",null,"Payment plan"]
[{"$f":"CONCATENATE(\"[\",Tabel_C_Indholdstype[[#This Row],[Værdikode]],IF(LEN(Tabel_C_Indholdstype[[#This Row],[Værdikode]])=3,\".00.00\",\"\"),IF(LEN(Tabel_C_Indholdstype[[#This Row],[Værdikode]])=6,\".00\",\"\"),\"] \",Tabel_C_Indholdstype[[#This Row],[Metadataværdi DK]])","v":"[C03.02.00] Bevilling"},"C03.02","Bevilling",null,"Allocation"]
[{"$f":"CONCATENATE(\"[\",Tabel_C_Indholdstype[[#This Row],[Værdikode]],IF(LEN(Tabel_C_Indholdstype[[#This Row],[Værdikode]])=3,\".00.00\",\"\"),IF(LEN(Tabel_C_Indholdstype[[#This Row],[Værdikode]])=6,\".00\",\"\"),\"] \",Tabel_C_Indholdstype[[#This Row],[Metadataværdi DK]])","v":"[C03.03.00] Budget"},"C03.03","Budget",null,"Budget"]
[{"$f":"CONCATENATE(\"[\",Tabel_C_Indholdstype[[#This Row],[Værdikode]],IF(LEN(Tabel_C_Indholdstype[[#This Row],[Værdikode]])=3,\".00.00\",\"\"),IF(LEN(Tabel_C_Indholdstype[[#This Row],[Værdikode]])=6,\".00\",\"\"),\"] \",Tabel_C_Indholdstype[[#This Row],[Metadataværdi DK]])","v":"[C03.04.00] Regnskab"},"C03.04","Regnskab",null,"Accounts"]
[{"$f":"CONCATENATE(\"[\",Tabel_C_Indholdstype[[#This Row],[Værdikode]],IF(LEN(Tabel_C_Indholdstype[[#This Row],[Værdikode]])=3,\".00.00\",\"\"),IF(LEN(Tabel_C_Indholdstype[[#This Row],[Værdikode]])=6,\".00\",\"\"),\"] \",Tabel_C_Indholdstype[[#This Row],[Metadataværdi DK]])","v":"[C03.05.00] Faktura"},"C03.05","Faktura",null,"Invoice"]
[{"$f":"CONCATENATE(\"[\",Tabel_C_Indholdstype[[#This Row],[Værdikode]],IF(LEN(Tabel_C_Indholdstype[[#This Row],[Værdikode]])=3,\".00.00\",\"\"),IF(LEN(Tabel_C_Indholdstype[[#This Row],[Værdikode]])=6,\".00\",\"\"),\"] \",Tabel_C_Indholdstype[[#This Row],[Metadataværdi DK]])","v":"[C03.06.00] Prisoverslag"},"C03.06","Prisoverslag",null,"Estimation"]
[{"$f":"CONCATENATE(\"[\",Tabel_C_Indholdstype[[#This Row],[Værdikode]],IF(LEN(Tabel_C_Indholdstype[[#This Row],[Værdikode]])=3,\".00.00\",\"\"),IF(LEN(Tabel_C_Indholdstype[[#This Row],[Værdikode]])=6,\".00\",\"\"),\"] \",Tabel_C_Indholdstype[[#This Row],[Metadataværdi DK]])","v":"[C03.07.00] Udbudsbehandling"},"C03.07","Udbudsbehandling",null,"Tender processing"]
[{"$f":"CONCATENATE(\"[\",Tabel_C_Indholdstype[[#This Row],[Værdikode]],IF(LEN(Tabel_C_Indholdstype[[#This Row],[Værdikode]])=3,\".00.00\",\"\"),IF(LEN(Tabel_C_Indholdstype[[#This Row],[Værdikode]])=6,\".00\",\"\"),\"] \",Tabel_C_Indholdstype[[#This Row],[Metadataværdi DK]])","v":"[C04.00.00] Myndigheder og instanser"},"C04.00","Myndigheder og instanser","Information, der vedrører forhold knyttet til offentlige indsatser","Authority"]
[{"$f":"CONCATENATE(\"[\",Tabel_C_Indholdstype[[#This Row],[Værdikode]],IF(LEN(Tabel_C_Indholdstype[[#This Row],[Værdikode]])=3,\".00.00\",\"\"),IF(LEN(Tabel_C_Indholdstype[[#This Row],[Værdikode]])=6,\".00\",\"\"),\"] \",Tabel_C_Indholdstype[[#This Row],[Metadataværdi DK]])","v":"[C04.01.00] Ansøgning"},"C04.01","Ansøgning",null,"Application"]
[{"$f":"CONCATENATE(\"[\",Tabel_C_Indholdstype[[#This Row],[Værdikode]],IF(LEN(Tabel_C_Indholdstype[[#This Row],[Værdikode]])=3,\".00.00\",\"\"),IF(LEN(Tabel_C_Indholdstype[[#This Row],[Værdikode]])=6,\".00\",\"\"),\"] \",Tabel_C_Indholdstype[[#This Row],[Metadataværdi DK]])","v":"[C04.02.00] Anmeldelse"},"C04.02","Anmeldelse",null,"Review"]
[{"$f":"CONCATENATE(\"[\",Tabel_C_Indholdstype[[#This Row],[Værdikode]],IF(LEN(Tabel_C_Indholdstype[[#This Row],[Værdikode]])=3,\".00.00\",\"\"),IF(LEN(Tabel_C_Indholdstype[[#This Row],[Værdikode]])=6,\".00\",\"\"),\"] \",Tabel_C_Indholdstype[[#This Row],[Metadataværdi DK]])","v":"[C04.03.00] Lokalplan"},"C04.03","Lokalplan",null,"District plan"]
[{"$f":"CONCATENATE(\"[\",Tabel_C_Indholdstype[[#This Row],[Værdikode]],IF(LEN(Tabel_C_Indholdstype[[#This Row],[Værdikode]])=3,\".00.00\",\"\"),IF(LEN(Tabel_C_Indholdstype[[#This Row],[Værdikode]])=6,\".00\",\"\"),\"] \",Tabel_C_Indholdstype[[#This Row],[Metadataværdi DK]])","v":"[C04.04.00] Myndighedskrav"},"C04.04","Myndighedskrav",null,"Regulatory"]
[{"$f":"CONCATENATE(\"[\",Tabel_C_Indholdstype[[#This Row],[Værdikode]],IF(LEN(Tabel_C_Indholdstype[[#This Row],[Værdikode]])=3,\".00.00\",\"\"),IF(LEN(Tabel_C_Indholdstype[[#This Row],[Værdikode]])=6,\".00\",\"\"),\"] \",Tabel_C_Indholdstype[[#This Row],[Metadataværdi DK]])","v":"[C04.05.00] Tilladelse"},"C04.05","Tilladelse",null,"Clearance"]
[{"$f":"CONCATENATE(\"[\",Tabel_C_Indholdstype[[#This Row],[Værdikode]],IF(LEN(Tabel_C_Indholdstype[[#This Row],[Værdikode]])=3,\".00.00\",\"\"),IF(LEN(Tabel_C_Indholdstype[[#This Row],[Værdikode]])=6,\".00\",\"\"),\"] \",Tabel_C_Indholdstype[[#This Row],[Metadataværdi DK]])","v":"[C04.06.00] Ejerforhold"},"C04.06","Ejerforhold",null,"Ownership"]
[{"$f":"CONCATENATE(\"[\",Tabel_C_Indholdstype[[#This Row],[Værdikode]],IF(LEN(Tabel_C_Indholdstype[[#This Row],[Værdikode]])=3,\".00.00\",\"\"),IF(LEN(Tabel_C_Indholdstype[[#This Row],[Værdikode]])=6,\".00\",\"\"),\"] \",Tabel_C_Indholdstype[[#This Row],[Metadataværdi DK]])","v":"[C05.00.00] Analyse"},"C05.00","Analyse","Information, der vedrører resultater af undersøgelser, studier, beregninger og simuleringer","Analysis"]
[{"$f":"CONCATENATE(\"[\",Tabel_C_Indholdstype[[#This Row],[Værdikode]],IF(LEN(Tabel_C_Indholdstype[[#This Row],[Værdikode]])=3,\".00.00\",\"\"),IF(LEN(Tabel_C_Indholdstype[[#This Row],[Værdikode]])=6,\".00\",\"\"),\"] \",Tabel_C_Indholdstype[[#This Row],[Metadataværdi DK]])","v":"[C05.01.00] Beregning"},"C05.01","Beregning",null,"Calculation"]
[{"$f":"CONCATENATE(\"[\",Tabel_C_Indholdstype[[#This Row],[Værdikode]],IF(LEN(Tabel_C_Indholdstype[[#This Row],[Værdikode]])=3,\".00.00\",\"\"),IF(LEN(Tabel_C_Indholdstype[[#This Row],[Værdikode]])=6,\".00\",\"\"),\"] \",Tabel_C_Indholdstype[[#This Row],[Metadataværdi DK]])","v":"[C05.02.00] Opmåling"},"C05.02","Opmåling",null,"Measurement"]
[{"$f":"CONCATENATE(\"[\",Tabel_C_Indholdstype[[#This Row],[Værdikode]],IF(LEN(Tabel_C_Indholdstype[[#This Row],[Værdikode]])=3,\".00.00\",\"\"),IF(LEN(Tabel_C_Indholdstype[[#This Row],[Værdikode]])=6,\".00\",\"\"),\"] \",Tabel_C_Indholdstype[[#This Row],[Metadataværdi DK]])","v":"[C05.03.00] Registrering"},"C05.03","Registrering",null,"Survey"]
[{"$f":"CONCATENATE(\"[\",Tabel_C_Indholdstype[[#This Row],[Værdikode]],IF(LEN(Tabel_C_Indholdstype[[#This Row],[Værdikode]])=3,\".00.00\",\"\"),IF(LEN(Tabel_C_Indholdstype[[#This Row],[Værdikode]])=6,\".00\",\"\"),\"] \",Tabel_C_Indholdstype[[#This Row],[Metadataværdi DK]])","v":"[C05.04.00] Simulering"},"C05.04","Simulering",null,"Simulation"]
[{"$f":"CONCATENATE(\"[\",Tabel_C_Indholdstype[[#This Row],[Værdikode]],IF(LEN(Tabel_C_Indholdstype[[#This Row],[Værdikode]])=3,\".00.00\",\"\"),IF(LEN(Tabel_C_Indholdstype[[#This Row],[Værdikode]])=6,\".00\",\"\"),\"] \",Tabel_C_Indholdstype[[#This Row],[Metadataværdi DK]])","v":"[C05.05.00] Undersøgelse"},"C05.05","Undersøgelse",null,"Study"]
[{"$f":"CONCATENATE(\"[\",Tabel_C_Indholdstype[[#This Row],[Værdikode]],IF(LEN(Tabel_C_Indholdstype[[#This Row],[Værdikode]])=3,\".00.00\",\"\"),IF(LEN(Tabel_C_Indholdstype[[#This Row],[Værdikode]])=6,\".00\",\"\"),\"] \",Tabel_C_Indholdstype[[#This Row],[Metadataværdi DK]])","v":"[C05.06.00] Foto og video"},"C05.06","Foto og video",null,"Foto and video"]
[{"$f":"CONCATENATE(\"[\",Tabel_C_Indholdstype[[#This Row],[Værdikode]],IF(LEN(Tabel_C_Indholdstype[[#This Row],[Værdikode]])=3,\".00.00\",\"\"),IF(LEN(Tabel_C_Indholdstype[[#This Row],[Værdikode]])=6,\".00\",\"\"),\"] \",Tabel_C_Indholdstype[[#This Row],[Metadataværdi DK]])","v":"[C06.00.00] Møde"},"C06.00","Møde","Information, der vedrører dagsorden eller gengiver indhold eller beslutninger fra møder eller samtaler","Meeting"]
[{"$f":"CONCATENATE(\"[\",Tabel_C_Indholdstype[[#This Row],[Værdikode]],IF(LEN(Tabel_C_Indholdstype[[#This Row],[Værdikode]])=3,\".00.00\",\"\"),IF(LEN(Tabel_C_Indholdstype[[#This Row],[Værdikode]])=6,\".00\",\"\"),\"] \",Tabel_C_Indholdstype[[#This Row],[Metadataværdi DK]])","v":"[C06.01.00] Bygherremøde"},"C06.01","Bygherremøde",null,"Client meeting"]
[{"$f":"CONCATENATE(\"[\",Tabel_C_Indholdstype[[#This Row],[Værdikode]],IF(LEN(Tabel_C_Indholdstype[[#This Row],[Værdikode]])=3,\".00.00\",\"\"),IF(LEN(Tabel_C_Indholdstype[[#This Row],[Værdikode]])=6,\".00\",\"\"),\"] \",Tabel_C_Indholdstype[[#This Row],[Metadataværdi DK]])","v":"[C06.02.00] Byggeudvalgsmøde"},"C06.02","Byggeudvalgsmøde",null,"Building committee"]
[{"$f":"CONCATENATE(\"[\",Tabel_C_Indholdstype[[#This Row],[Værdikode]],IF(LEN(Tabel_C_Indholdstype[[#This Row],[Værdikode]])=3,\".00.00\",\"\"),IF(LEN(Tabel_C_Indholdstype[[#This Row],[Værdikode]])=6,\".00\",\"\"),\"] \",Tabel_C_Indholdstype[[#This Row],[Metadataværdi DK]])","v":"[C06.03.00] Myndighedsmøde"},"C06.03","Myndighedsmøde",null,"Authority meeting"]
[{"$f":"CONCATENATE(\"[\",Tabel_C_Indholdstype[[#This Row],[Værdikode]],IF(LEN(Tabel_C_Indholdstype[[#This Row],[Værdikode]])=3,\".00.00\",\"\"),IF(LEN(Tabel_C_Indholdstype[[#This Row],[Værdikode]])=6,\".00\",\"\"),\"] \",Tabel_C_Indholdstype[[#This Row],[Metadataværdi DK]])","v":"[C06.04.00] Projekteringsmøde"},"C06.04","Projekteringsmøde",null,"Design meeting"]
[{"$f":"CONCATENATE(\"[\",Tabel_C_Indholdstype[[#This Row],[Værdikode]],IF(LEN(Tabel_C_Indholdstype[[#This Row],[Værdikode]])=3,\".00.00\",\"\"),IF(LEN(Tabel_C_Indholdstype[[#This Row],[Værdikode]])=6,\".00\",\"\"),\"] \",Tabel_C_Indholdstype[[#This Row],[Metadataværdi DK]])","v":"[C06.05.00] Projektgennemgang"},"C06.05","Projektgennemgang",null,"Project audit"]
[{"$f":"CONCATENATE(\"[\",Tabel_C_Indholdstype[[#This Row],[Værdikode]],IF(LEN(Tabel_C_Indholdstype[[#This Row],[Værdikode]])=3,\".00.00\",\"\"),IF(LEN(Tabel_C_Indholdstype[[#This Row],[Værdikode]])=6,\".00\",\"\"),\"] \",Tabel_C_Indholdstype[[#This Row],[Metadataværdi DK]])","v":"[C06.06.00] Styregruppemøde"},"C06.06","Styregruppemøde",null,"Steering committee meeting"]
[{"$f":"CONCATENATE(\"[\",Tabel_C_Indholdstype[[#This Row],[Værdikode]],IF(LEN(Tabel_C_Indholdstype[[#This Row],[Værdikode]])=3,\".00.00\",\"\"),IF(LEN(Tabel_C_Indholdstype[[#This Row],[Værdikode]])=6,\".00\",\"\"),\"] \",Tabel_C_Indholdstype[[#This Row],[Metadataværdi DK]])","v":"[C06.07.00] Sikkerhedsmøde"},"C06.07","Sikkerhedsmøde",null,"Safety meeting"]
[{"$f":"CONCATENATE(\"[\",Tabel_C_Indholdstype[[#This Row],[Værdikode]],IF(LEN(Tabel_C_Indholdstype[[#This Row],[Værdikode]])=3,\".00.00\",\"\"),IF(LEN(Tabel_C_Indholdstype[[#This Row],[Værdikode]])=6,\".00\",\"\"),\"] \",Tabel_C_Indholdstype[[#This Row],[Metadataværdi DK]])","v":"[C06.08.00] Byggemøde"},"C06.08","Byggemøde",null,"Site meeting"]
[{"$f":"CONCATENATE(\"[\",Tabel_C_Indholdstype[[#This Row],[Værdikode]],IF(LEN(Tabel_C_Indholdstype[[#This Row],[Værdikode]])=3,\".00.00\",\"\"),IF(LEN(Tabel_C_Indholdstype[[#This Row],[Værdikode]])=6,\".00\",\"\"),\"] \",Tabel_C_Indholdstype[[#This Row],[Metadataværdi DK]])","v":"[C06.09.00] Projektgranskning"},"C06.09","Projektgranskning",null,"Project review"]
[{"$f":"CONCATENATE(\"[\",Tabel_C_Indholdstype[[#This Row],[Værdikode]],IF(LEN(Tabel_C_Indholdstype[[#This Row],[Værdikode]])=3,\".00.00\",\"\"),IF(LEN(Tabel_C_Indholdstype[[#This Row],[Værdikode]])=6,\".00\",\"\"),\"] \",Tabel_C_Indholdstype[[#This Row],[Metadataværdi DK]])","v":"[C06.10.00] Projektplanlægning"},"C06.10","Projektplanlægning",null,"Project planning"]
[{"$f":"CONCATENATE(\"[\",Tabel_C_Indholdstype[[#This Row],[Værdikode]],IF(LEN(Tabel_C_Indholdstype[[#This Row],[Værdikode]])=3,\".00.00\",\"\"),IF(LEN(Tabel_C_Indholdstype[[#This Row],[Værdikode]])=6,\".00\",\"\"),\"] \",Tabel_C_Indholdstype[[#This Row],[Metadataværdi DK]])","v":"[C06.11.00] Entreprenørmøde"},"C06.11","Entreprenørmøde",null,"Contractor meeting"]
[{"$f":"CONCATENATE(\"[\",Tabel_C_Indholdstype[[#This Row],[Værdikode]],IF(LEN(Tabel_C_Indholdstype[[#This Row],[Værdikode]])=3,\".00.00\",\"\"),IF(LEN(Tabel_C_Indholdstype[[#This Row],[Værdikode]])=6,\".00\",\"\"),\"] \",Tabel_C_Indholdstype[[#This Row],[Metadataværdi DK]])","v":"[C06.12.00] Workshop"},"C06.12","Workshop",null,"Workshop"]
[{"$f":"CONCATENATE(\"[\",Tabel_C_Indholdstype[[#This Row],[Værdikode]],IF(LEN(Tabel_C_Indholdstype[[#This Row],[Værdikode]])=3,\".00.00\",\"\"),IF(LEN(Tabel_C_Indholdstype[[#This Row],[Værdikode]])=6,\".00\",\"\"),\"] \",Tabel_C_Indholdstype[[#This Row],[Metadataværdi DK]])","v":"[C06.13.00] Commissioningsmøde"},"C06.13","Commissioningsmøde",null,"Commissioning meeting"]
[{"$f":"CONCATENATE(\"[\",Tabel_C_Indholdstype[[#This Row],[Værdikode]],IF(LEN(Tabel_C_Indholdstype[[#This Row],[Værdikode]])=3,\".00.00\",\"\"),IF(LEN(Tabel_C_Indholdstype[[#This Row],[Værdikode]])=6,\".00\",\"\"),\"] \",Tabel_C_Indholdstype[[#This Row],[Metadataværdi DK]])","v":"[C06.14.00] Bæredygtighedsmøde"},"C06.14","Bæredygtighedsmøde",null,"Sustainability meeting"]
[{"$f":"CONCATENATE(\"[\",Tabel_C_Indholdstype[[#This Row],[Værdikode]],IF(LEN(Tabel_C_Indholdstype[[#This Row],[Værdikode]])=3,\".00.00\",\"\"),IF(LEN(Tabel_C_Indholdstype[[#This Row],[Værdikode]])=6,\".00\",\"\"),\"] \",Tabel_C_Indholdstype[[#This Row],[Metadataværdi DK]])","v":"[C06.15.00] IKT-møde"},"C06.15","IKT-møde",null,"ICT meeting"]
[{"$f":"CONCATENATE(\"[\",Tabel_C_Indholdstype[[#This Row],[Værdikode]],IF(LEN(Tabel_C_Indholdstype[[#This Row],[Værdikode]])=3,\".00.00\",\"\"),IF(LEN(Tabel_C_Indholdstype[[#This Row],[Værdikode]])=6,\".00\",\"\"),\"] \",Tabel_C_Indholdstype[[#This Row],[Metadataværdi DK]])","v":"[C06.16.00] Brugermøde"},"C06.16","Brugermøde",null,"User meeting"]
[{"$f":"CONCATENATE(\"[\",Tabel_C_Indholdstype[[#This Row],[Værdikode]],IF(LEN(Tabel_C_Indholdstype[[#This Row],[Værdikode]])=3,\".00.00\",\"\"),IF(LEN(Tabel_C_Indholdstype[[#This Row],[Værdikode]])=6,\".00\",\"\"),\"] \",Tabel_C_Indholdstype[[#This Row],[Metadataværdi DK]])","v":"[C06.17.00] Direktions- og bestyrelsesmøder"},"C06.17","Direktions- og bestyrelsesmøder",null,"Board meeting"]
[{"$f":"CONCATENATE(\"[\",Tabel_C_Indholdstype[[#This Row],[Værdikode]],IF(LEN(Tabel_C_Indholdstype[[#This Row],[Værdikode]])=3,\".00.00\",\"\"),IF(LEN(Tabel_C_Indholdstype[[#This Row],[Værdikode]])=6,\".00\",\"\"),\"] \",Tabel_C_Indholdstype[[#This Row],[Metadataværdi DK]])","v":"[C06.18.00] Internt møde"},"C06.18","Internt møde",null,"Internal meeting"]
[{"$f":"CONCATENATE(\"[\",Tabel_C_Indholdstype[[#This Row],[Værdikode]],IF(LEN(Tabel_C_Indholdstype[[#This Row],[Værdikode]])=3,\".00.00\",\"\"),IF(LEN(Tabel_C_Indholdstype[[#This Row],[Værdikode]])=6,\".00\",\"\"),\"] \",Tabel_C_Indholdstype[[#This Row],[Metadataværdi DK]])","v":"[C07.00.00] Geometri"},"C07.00","Geometri","Information, der vedrører geometrisk eller grafisk information","Geometry"]
[{"$f":"CONCATENATE(\"[\",Tabel_C_Indholdstype[[#This Row],[Værdikode]],IF(LEN(Tabel_C_Indholdstype[[#This Row],[Værdikode]])=3,\".00.00\",\"\"),IF(LEN(Tabel_C_Indholdstype[[#This Row],[Værdikode]])=6,\".00\",\"\"),\"] \",Tabel_C_Indholdstype[[#This Row],[Metadataværdi DK]])","v":"[C07.01.00] Tegning"},"C07.01","Tegning",null,"Drawing"]
[{"$f":"CONCATENATE(\"[\",Tabel_C_Indholdstype[[#This Row],[Værdikode]],IF(LEN(Tabel_C_Indholdstype[[#This Row],[Værdikode]])=3,\".00.00\",\"\"),IF(LEN(Tabel_C_Indholdstype[[#This Row],[Værdikode]])=6,\".00\",\"\"),\"] \",Tabel_C_Indholdstype[[#This Row],[Metadataværdi DK]])","v":"[C07.02.00] Model"},"C07.02","Model",null,"Model"]
[{"$f":"CONCATENATE(\"[\",Tabel_C_Indholdstype[[#This Row],[Værdikode]],IF(LEN(Tabel_C_Indholdstype[[#This Row],[Værdikode]])=3,\".00.00\",\"\"),IF(LEN(Tabel_C_Indholdstype[[#This Row],[Værdikode]])=6,\".00\",\"\"),\"] \",Tabel_C_Indholdstype[[#This Row],[Metadataværdi DK]])","v":"[C07.03.00] Visualisering"},"C07.03","Visualisering",null,"Visualization"]
[{"$f":"CONCATENATE(\"[\",Tabel_C_Indholdstype[[#This Row],[Værdikode]],IF(LEN(Tabel_C_Indholdstype[[#This Row],[Værdikode]])=3,\".00.00\",\"\"),IF(LEN(Tabel_C_Indholdstype[[#This Row],[Værdikode]])=6,\".00\",\"\"),\"] \",Tabel_C_Indholdstype[[#This Row],[Metadataværdi DK]])","v":"[C07.04.00] Applikationsfiler"},"C07.04","Applikationsfiler",null,"Applicationsfiles"]
[{"$f":"CONCATENATE(\"[\",Tabel_C_Indholdstype[[#This Row],[Værdikode]],IF(LEN(Tabel_C_Indholdstype[[#This Row],[Værdikode]])=3,\".00.00\",\"\"),IF(LEN(Tabel_C_Indholdstype[[#This Row],[Værdikode]])=6,\".00\",\"\"),\"] \",Tabel_C_Indholdstype[[#This Row],[Metadataværdi DK]])","v":"[C08.00.00] Teknisk specifikation"},"C08.00","Teknisk specifikation","Information, der præcist og detaljeret beskriver egenskaber, fastlægger krav eller giver vejledning","Specification"]
[{"$f":"CONCATENATE(\"[\",Tabel_C_Indholdstype[[#This Row],[Værdikode]],IF(LEN(Tabel_C_Indholdstype[[#This Row],[Værdikode]])=3,\".00.00\",\"\"),IF(LEN(Tabel_C_Indholdstype[[#This Row],[Værdikode]])=6,\".00\",\"\"),\"] \",Tabel_C_Indholdstype[[#This Row],[Metadataværdi DK]])","v":"[C08.01.00] Generelt"},"C08.01","Generelt",null,"Generel"]
[{"$f":"CONCATENATE(\"[\",Tabel_C_Indholdstype[[#This Row],[Værdikode]],IF(LEN(Tabel_C_Indholdstype[[#This Row],[Værdikode]])=3,\".00.00\",\"\"),IF(LEN(Tabel_C_Indholdstype[[#This Row],[Værdikode]])=6,\".00\",\"\"),\"] \",Tabel_C_Indholdstype[[#This Row],[Metadataværdi DK]])","v":"[C08.02.00] Byggesags- og arbejdsbeskrivelse"},"C08.02","Byggesags- og arbejdsbeskrivelse",null,"Construction and work"]
[{"$f":"CONCATENATE(\"[\",Tabel_C_Indholdstype[[#This Row],[Værdikode]],IF(LEN(Tabel_C_Indholdstype[[#This Row],[Værdikode]])=3,\".00.00\",\"\"),IF(LEN(Tabel_C_Indholdstype[[#This Row],[Værdikode]])=6,\".00\",\"\"),\"] \",Tabel_C_Indholdstype[[#This Row],[Metadataværdi DK]])","v":"[C08.03.00] Udbudsmateriale"},"C08.03","Udbudsmateriale",null,"Tender and quantity specification"]
[{"$f":"CONCATENATE(\"[\",Tabel_C_Indholdstype[[#This Row],[Værdikode]],IF(LEN(Tabel_C_Indholdstype[[#This Row],[Værdikode]])=3,\".00.00\",\"\"),IF(LEN(Tabel_C_Indholdstype[[#This Row],[Værdikode]])=6,\".00\",\"\"),\"] \",Tabel_C_Indholdstype[[#This Row],[Metadataværdi DK]])","v":"[C08.04.00] Rumspecifikation"},"C08.04","Rumspecifikation",null,"Spaces"]
[{"$f":"CONCATENATE(\"[\",Tabel_C_Indholdstype[[#This Row],[Værdikode]],IF(LEN(Tabel_C_Indholdstype[[#This Row],[Værdikode]])=3,\".00.00\",\"\"),IF(LEN(Tabel_C_Indholdstype[[#This Row],[Værdikode]])=6,\".00\",\"\"),\"] \",Tabel_C_Indholdstype[[#This Row],[Metadataværdi DK]])","v":"[C08.05.00] Sikkerhed og arbejdsmiljø"},"C08.05","Sikkerhed og arbejdsmiljø",null,"Health, safety and security"]
[{"$f":"CONCATENATE(\"[\",Tabel_C_Indholdstype[[#This Row],[Værdikode]],IF(LEN(Tabel_C_Indholdstype[[#This Row],[Værdikode]])=3,\".00.00\",\"\"),IF(LEN(Tabel_C_Indholdstype[[#This Row],[Værdikode]])=6,\".00\",\"\"),\"] \",Tabel_C_Indholdstype[[#This Row],[Metadataværdi DK]])","v":"[C08.06.00] Byggeplads"},"C08.06","Byggeplads",null,"Construktion site specifikation"]
[{"$f":"CONCATENATE(\"[\",Tabel_C_Indholdstype[[#This Row],[Værdikode]],IF(LEN(Tabel_C_Indholdstype[[#This Row],[Værdikode]])=3,\".00.00\",\"\"),IF(LEN(Tabel_C_Indholdstype[[#This Row],[Værdikode]])=6,\".00\",\"\"),\"] \",Tabel_C_Indholdstype[[#This Row],[Metadataværdi DK]])","v":"[C08.07.00] Miljø og bæredygtighed"},"C08.07","Miljø og bæredygtighed",null,"Environment and sustainability"]
[{"$f":"CONCATENATE(\"[\",Tabel_C_Indholdstype[[#This Row],[Værdikode]],IF(LEN(Tabel_C_Indholdstype[[#This Row],[Værdikode]])=3,\".00.00\",\"\"),IF(LEN(Tabel_C_Indholdstype[[#This Row],[Værdikode]])=6,\".00\",\"\"),\"] \",Tabel_C_Indholdstype[[#This Row],[Metadataværdi DK]])","v":"[C08.08.00] Materiale og produktdata"},"C08.08","Materiale og produktdata",null,"Material and product data"]
[{"$f":"CONCATENATE(\"[\",Tabel_C_Indholdstype[[#This Row],[Værdikode]],IF(LEN(Tabel_C_Indholdstype[[#This Row],[Værdikode]])=3,\".00.00\",\"\"),IF(LEN(Tabel_C_Indholdstype[[#This Row],[Værdikode]])=6,\".00\",\"\"),\"] \",Tabel_C_Indholdstype[[#This Row],[Metadataværdi DK]])","v":"[C08.09.00] Drift og vedligehold"},"C08.09","Drift og vedligehold",null,"Opretaion and maintenance"]
[{"$f":"CONCATENATE(\"[\",Tabel_C_Indholdstype[[#This Row],[Værdikode]],IF(LEN(Tabel_C_Indholdstype[[#This Row],[Værdikode]])=3,\".00.00\",\"\"),IF(LEN(Tabel_C_Indholdstype[[#This Row],[Værdikode]])=6,\".00\",\"\"),\"] \",Tabel_C_Indholdstype[[#This Row],[Metadataværdi DK]])","v":"[C09.00.00] Oplysning"},"C09.00","Oplysning","Information af nyhedsmæssig eller meddelende karakter","Message"]
[{"$f":"CONCATENATE(\"[\",Tabel_C_Indholdstype[[#This Row],[Værdikode]],IF(LEN(Tabel_C_Indholdstype[[#This Row],[Værdikode]])=3,\".00.00\",\"\"),IF(LEN(Tabel_C_Indholdstype[[#This Row],[Værdikode]])=6,\".00\",\"\"),\"] \",Tabel_C_Indholdstype[[#This Row],[Metadataværdi DK]])","v":"[C09.01.00] Høring"},"C09.01","Høring",null,"Hearing"]
[{"$f":"CONCATENATE(\"[\",Tabel_C_Indholdstype[[#This Row],[Værdikode]],IF(LEN(Tabel_C_Indholdstype[[#This Row],[Værdikode]])=3,\".00.00\",\"\"),IF(LEN(Tabel_C_Indholdstype[[#This Row],[Værdikode]])=6,\".00\",\"\"),\"] \",Tabel_C_Indholdstype[[#This Row],[Metadataværdi DK]])","v":"[C09.02.00] Varsling"},"C09.02","Varsling",null,"Alert"]
[{"$f":"CONCATENATE(\"[\",Tabel_C_Indholdstype[[#This Row],[Værdikode]],IF(LEN(Tabel_C_Indholdstype[[#This Row],[Værdikode]])=3,\".00.00\",\"\"),IF(LEN(Tabel_C_Indholdstype[[#This Row],[Værdikode]])=6,\".00\",\"\"),\"] \",Tabel_C_Indholdstype[[#This Row],[Metadataværdi DK]])","v":"[C09.03.00] Meddelelse"},"C09.03","Meddelelse",null,"Announcment"]
[{"$f":"CONCATENATE(\"[\",Tabel_C_Indholdstype[[#This Row],[Værdikode]],IF(LEN(Tabel_C_Indholdstype[[#This Row],[Værdikode]])=3,\".00.00\",\"\"),IF(LEN(Tabel_C_Indholdstype[[#This Row],[Værdikode]])=6,\".00\",\"\"),\"] \",Tabel_C_Indholdstype[[#This Row],[Metadataværdi DK]])","v":"[C10.00.00] Kvalitetsstyring"},"C10.00","Kvalitetsstyring","Information, der vedrører fastlæggelse, håndtering og kontrol af kvalitet","Quality management"]
[{"$f":"CONCATENATE(\"[\",Tabel_C_Indholdstype[[#This Row],[Værdikode]],IF(LEN(Tabel_C_Indholdstype[[#This Row],[Værdikode]])=3,\".00.00\",\"\"),IF(LEN(Tabel_C_Indholdstype[[#This Row],[Værdikode]])=6,\".00\",\"\"),\"] \",Tabel_C_Indholdstype[[#This Row],[Metadataværdi DK]])","v":"[C10.01.00] Granskning"},"C10.01","Granskning",null,"Quality review"]
[{"$f":"CONCATENATE(\"[\",Tabel_C_Indholdstype[[#This Row],[Værdikode]],IF(LEN(Tabel_C_Indholdstype[[#This Row],[Værdikode]])=3,\".00.00\",\"\"),IF(LEN(Tabel_C_Indholdstype[[#This Row],[Værdikode]])=6,\".00\",\"\"),\"] \",Tabel_C_Indholdstype[[#This Row],[Metadataværdi DK]])","v":"[C10.02.00] Kontrol"},"C10.02","Kontrol",null,"Quality control"]
[{"$f":"CONCATENATE(\"[\",Tabel_C_Indholdstype[[#This Row],[Værdikode]],IF(LEN(Tabel_C_Indholdstype[[#This Row],[Værdikode]])=3,\".00.00\",\"\"),IF(LEN(Tabel_C_Indholdstype[[#This Row],[Værdikode]])=6,\".00\",\"\"),\"] \",Tabel_C_Indholdstype[[#This Row],[Metadataværdi DK]])","v":"[C10.03.00] KS-dokumentation"},"C10.03","KS-dokumentation",null,"Quality documentation"]
[{"$f":"CONCATENATE(\"[\",Tabel_C_Indholdstype[[#This Row],[Værdikode]],IF(LEN(Tabel_C_Indholdstype[[#This Row],[Værdikode]])=3,\".00.00\",\"\"),IF(LEN(Tabel_C_Indholdstype[[#This Row],[Værdikode]])=6,\".00\",\"\"),\"] \",Tabel_C_Indholdstype[[#This Row],[Metadataværdi DK]])","v":"[C10.04.00] Kvalitetsplan"},"C10.04","Kvalitetsplan",null,"Quality plan"]
[{"$f":"CONCATENATE(\"[\",Tabel_C_Indholdstype[[#This Row],[Værdikode]],IF(LEN(Tabel_C_Indholdstype[[#This Row],[Værdikode]])=3,\".00.00\",\"\"),IF(LEN(Tabel_C_Indholdstype[[#This Row],[Værdikode]])=6,\".00\",\"\"),\"] \",Tabel_C_Indholdstype[[#This Row],[Metadataværdi DK]])","v":"[C10.05.00] Risikovurdering"},"C10.05","Risikovurdering",null,"Risk Assessment"]
[{"$f":"CONCATENATE(\"[\",Tabel_C_Indholdstype[[#This Row],[Værdikode]],IF(LEN(Tabel_C_Indholdstype[[#This Row],[Værdikode]])=3,\".00.00\",\"\"),IF(LEN(Tabel_C_Indholdstype[[#This Row],[Værdikode]])=6,\".00\",\"\"),\"] \",Tabel_C_Indholdstype[[#This Row],[Metadataværdi DK]])","v":"[C10.06.00] Tilsyn"},"C10.06","Tilsyn",null,"Inspection"]
[{"$f":"CONCATENATE(\"[\",Tabel_C_Indholdstype[[#This Row],[Værdikode]],IF(LEN(Tabel_C_Indholdstype[[#This Row],[Værdikode]])=3,\".00.00\",\"\"),IF(LEN(Tabel_C_Indholdstype[[#This Row],[Værdikode]])=6,\".00\",\"\"),\"] \",Tabel_C_Indholdstype[[#This Row],[Metadataværdi DK]])","v":"[C10.07.00] Mangel"},"C10.07","Mangel",null,"Snagging"]
[{"$f":"CONCATENATE(\"[\",Tabel_C_Indholdstype[[#This Row],[Værdikode]],IF(LEN(Tabel_C_Indholdstype[[#This Row],[Værdikode]])=3,\".00.00\",\"\"),IF(LEN(Tabel_C_Indholdstype[[#This Row],[Værdikode]])=6,\".00\",\"\"),\"] \",Tabel_C_Indholdstype[[#This Row],[Metadataværdi DK]])","v":"[C10.08.00] Forespørgsel"},"C10.08","Forespørgsel",null,"Inquiry"]
[{"$f":"CONCATENATE(\"[\",Tabel_C_Indholdstype[[#This Row],[Værdikode]],IF(LEN(Tabel_C_Indholdstype[[#This Row],[Værdikode]])=3,\".00.00\",\"\"),IF(LEN(Tabel_C_Indholdstype[[#This Row],[Værdikode]])=6,\".00\",\"\"),\"] \",Tabel_C_Indholdstype[[#This Row],[Metadataværdi DK]])","v":"[C10.09.00] Audit"},"C10.09","Audit",null,"Audit"]
[{"$f":"CONCATENATE(\"[\",Tabel_C_Indholdstype[[#This Row],[Værdikode]],IF(LEN(Tabel_C_Indholdstype[[#This Row],[Værdikode]])=3,\".00.00\",\"\"),IF(LEN(Tabel_C_Indholdstype[[#This Row],[Værdikode]])=6,\".00\",\"\"),\"] \",Tabel_C_Indholdstype[[#This Row],[Metadataværdi DK]])","v":"[C10.10.00] Commissioning"},"C10.10","Commissioning",null,"Commissioning"]
[{"$f":"CONCATENATE(\"[\",Tabel_C_Indholdstype[[#This Row],[Værdikode]],IF(LEN(Tabel_C_Indholdstype[[#This Row],[Værdikode]])=3,\".00.00\",\"\"),IF(LEN(Tabel_C_Indholdstype[[#This Row],[Værdikode]])=6,\".00\",\"\"),\"] \",Tabel_C_Indholdstype[[#This Row],[Metadataværdi DK]])","v":"[C11.00.00] Tids- og ressourcestyring"},"C11.00","Tids- og ressourcestyring","Information, der vedrører tids- og ressourcemæssige forhold","Time- and ressource management"]
[{"$f":"CONCATENATE(\"[\",Tabel_C_Indholdstype[[#This Row],[Værdikode]],IF(LEN(Tabel_C_Indholdstype[[#This Row],[Værdikode]])=3,\".00.00\",\"\"),IF(LEN(Tabel_C_Indholdstype[[#This Row],[Værdikode]])=6,\".00\",\"\"),\"] \",Tabel_C_Indholdstype[[#This Row],[Metadataværdi DK]])","v":"[C11.01.00] Projektplan"},"C11.01","Projektplan",null,"Project plan"]
[{"$f":"CONCATENATE(\"[\",Tabel_C_Indholdstype[[#This Row],[Værdikode]],IF(LEN(Tabel_C_Indholdstype[[#This Row],[Værdikode]])=3,\".00.00\",\"\"),IF(LEN(Tabel_C_Indholdstype[[#This Row],[Værdikode]])=6,\".00\",\"\"),\"] \",Tabel_C_Indholdstype[[#This Row],[Metadataværdi DK]])","v":"[C11.02.00] Tidsplan"},"C11.02","Tidsplan",null,"Time schedule"]
[{"$f":"CONCATENATE(\"[\",Tabel_C_Indholdstype[[#This Row],[Værdikode]],IF(LEN(Tabel_C_Indholdstype[[#This Row],[Værdikode]])=3,\".00.00\",\"\"),IF(LEN(Tabel_C_Indholdstype[[#This Row],[Værdikode]])=6,\".00\",\"\"),\"] \",Tabel_C_Indholdstype[[#This Row],[Metadataværdi DK]])","v":"[C11.03.00] Ressourceplan"},"C11.03","Ressourceplan",null,"Resource plan"]
[]
["Værdiliste","D"]
["Metadatanavn","Dokumentation (Documentation purpose)"]
["Definition","Kategorisering efter informationsmateriale med et formål"]
["Bunden/Åben","Bunden"]
["Note"]
[]
["Rullelisteværdi","Værdikode","Metadataværdi DK","Beskrivelse","Metadataværdi UK"]
[{"$f":"CONCATENATE(\"[\",Tabel_D_Dokumentation[[#This Row],[Værdikode]],\"] \",Tabel_D_Dokumentation[[#This Row],[Metadataværdi DK]])","v":"[D1] Grundlag"},"D1","Grundlag",null,"Foundation"]
[{"$f":"CONCATENATE(\"[\",Tabel_D_Dokumentation[[#This Row],[Værdikode]],\"] \",Tabel_D_Dokumentation[[#This Row],[Metadataværdi DK]])","v":"[D2] Aflevering"},"D2","Aflevering",null,"Deliver"]
[]
["Værdiliste","E"]
["Metadatanavn","Etage (Storey)"]
["Definition","Kode, som angiver vertikal placering"]
["Bunden/Åben","Åben"]
["Note"]
[]
["Rullelisteværdi","Værdikode","Metadataværdi DK","Beskrivelse","Metadataværdi UK"]
[{"$f":"CONCATENATE(\"[\",Tabel_E_Etage[[#This Row],[Værdikode]],\"] \",Tabel_E_Etage[[#This Row],[Metadataværdi DK]])","v":"[E00] Stueplan, terræn"},"E00","Stueplan, terræn",null,"Groundfloor, Terrain"]
[{"$f":"CONCATENATE(\"[\",Tabel_E_Etage[[#This Row],[Værdikode]],\"] \",Tabel_E_Etage[[#This Row],[Metadataværdi DK]])","v":"[E01] Plan 1"},"E01","Plan 1",null,"1st floor"]
[{"$f":"CONCATENATE(\"[\",Tabel_E_Etage[[#This Row],[Værdikode]],\"] \",Tabel_E_Etage[[#This Row],[Metadataværdi DK]])","v":"[E02] Plan 2"},"E02","Plan 2",null,"2nd floor"]
[{"$f":"CONCATENATE(\"[\",Tabel_E_Etage[[#This Row],[Værdikode]],\"] \",Tabel_E_Etage[[#This Row],[Metadataværdi DK]])","v":"[E03] Plan 3"},"E03","Plan 3",null,"3rd floor"]
[{"$f":"CONCATENATE(\"[\",Tabel_E_Etage[[#This Row],[Værdikode]],\"] \",Tabel_E_Etage[[#This Row],[Metadataværdi DK]])","v":"[E04] Plan 4"},"E04","Plan 4",null,"4th floor"]
[{"$f":"CONCATENATE(\"[\",Tabel_E_Etage[[#This Row],[Værdikode]],\"] \",Tabel_E_Etage[[#This Row],[Metadataværdi DK]])","v":"[E05] Plan 5, tagplan"},"E05","Plan 5, tagplan",null,"5th floor, roof"]
[{"$f":"CONCATENATE(\"[\",Tabel_E_Etage[[#This Row],[Værdikode]],\"] \",Tabel_E_Etage[[#This Row],[Metadataværdi DK]])","v":"[EF1] Fundament 1"},"EF1","Fundament 1","Fundament under stueplan","Foundation 1"]
[{"$f":"CONCATENATE(\"[\",Tabel_E_Etage[[#This Row],[Værdikode]],\"] \",Tabel_E_Etage[[#This Row],[Metadataværdi DK]])","v":"[EF2] Fundament 2"},"EF2","Fundament 2","Fundament under kælder og krybekælder","Foundation 2"]
[{"$f":"CONCATENATE(\"[\",Tabel_E_Etage[[#This Row],[Værdikode]],\"] \",Tabel_E_Etage[[#This Row],[Metadataværdi DK]])","v":"[EK1] Kælder 1"},"EK1","Kælder 1",null,"Basement 1"]
[{"$f":"CONCATENATE(\"[\",Tabel_E_Etage[[#This Row],[Værdikode]],\"] \",Tabel_E_Etage[[#This Row],[Metadataværdi DK]])","v":"[EK2] Kælder 2"},"EK2","Kælder 2",null,"Basement 2"]
[{"$f":"CONCATENATE(\"[\",Tabel_E_Etage[[#This Row],[Værdikode]],\"] \",Tabel_E_Etage[[#This Row],[Metadataværdi DK]])","v":"[EXX] Tværgånde etage"},"EXX","Tværgånde etage",null,"More than 1 storey"]
[]
["Værdiliste","F"]
["Metadatanavn","Filtype (Filetype)"]
["Definition","Kode, som angiver en fils anvendelse"]
["Bunden/Åben","Bunden"]
["Note"]
[]
["Rullelisteværdi","Værdikode","Metadataværdi DK","Beskrivelse","Metadataværdi UK"]
[{"$f":"CONCATENATE(\"[\",Tabel_F_Filtype[[#This Row],[Værdikode]],\"] \",Tabel_F_Filtype[[#This Row],[Metadataværdi DK]])","v":"[F01] Tegningsfil"},"F01","Tegningsfil","Fil, som indeholder tegningslayout og grundlaget for digitale plots – ofte som referencer af fagmodeller og/eller viewfiler","Drawing file"]
[{"$f":"CONCATENATE(\"[\",Tabel_F_Filtype[[#This Row],[Værdikode]],\"] \",Tabel_F_Filtype[[#This Row],[Metadataværdi DK]])","v":"[F02] Fagmodel"},"F02","Fagmodel","Modelfil, som indeholder en fagspecifik samling af 2D-/3D-geometri og/eller byggeobjekter ","Discipline model"]
[{"$f":"CONCATENATE(\"[\",Tabel_F_Filtype[[#This Row],[Værdikode]],\"] \",Tabel_F_Filtype[[#This Row],[Metadataværdi DK]])","v":"[F03] Udvekslingsmodel"},"F03","Udvekslingsmodel","Modelfil oprettet ud fra en eller flere fagmodeller med det formål at formidle modeldata fra ét fagområde til et andet","Exchangediscipline model"]
[{"$f":"CONCATENATE(\"[\",Tabel_F_Filtype[[#This Row],[Værdikode]],\"] \",Tabel_F_Filtype[[#This Row],[Metadataværdi DK]])","v":"[F04] Fællesmodel"},"F04","Fællesmodel","Modelfil, som indeholder en samling af fagmodeller tilknyttet som reference","Aggregatemodel"]
[{"$f":"CONCATENATE(\"[\",Tabel_F_Filtype[[#This Row],[Værdikode]],\"] \",Tabel_F_Filtype[[#This Row],[Metadataværdi DK]])","v":"[F05] Modeludtræksfil"},"F05","Modeludtræksfil","Fil, som i grafisk tilgængelig form indeholder 3D-grafik i en specifik udgave, der fx kan ses på en skærm","Extract file"]
[{"$f":"CONCATENATE(\"[\",Tabel_F_Filtype[[#This Row],[Værdikode]],\"] \",Tabel_F_Filtype[[#This Row],[Metadataværdi DK]])","v":"[F06] Digitalt plot"},"F06","Digitalt plot","Fil, som i grafisk tilgængelig form indeholder 2-d-grafik i en specifik udgave, der kan ses på en skærm eller plottes på papir","Digital plot"]
[{"$f":"CONCATENATE(\"[\",Tabel_F_Filtype[[#This Row],[Værdikode]],\"] \",Tabel_F_Filtype[[#This Row],[Metadataværdi DK]])","v":"[F07] Notationsfil"},"F07","Notationsfil","Fil, som indeholder fagneutral geometri- og tekst-information af administrativ karakter","Notation file"]
[{"$f":"CONCATENATE(\"[\",Tabel_F_Filtype[[#This Row],[Værdikode]],\"] \",Tabel_F_Filtype[[#This Row],[Metadataværdi DK]])","v":"[F08] Symbolfil"},"F08","Symbolfil","Fil, som indeholder et bestemt symbol i 2D-grafik","Symbol file"]
[{"$f":"CONCATENATE(\"[\",Tabel_F_Filtype[[#This Row],[Værdikode]],\"] \",Tabel_F_Filtype[[#This Row],[Metadataværdi DK]])","v":"[F09] Linjeføringsfil"},"F09","Linjeføringsfil","Fil, der angiver føring","Alignment file"]
[{"$f":"CONCATENATE(\"[\",Tabel_F_Filtype[[#This Row],[Værdikode]],\"] \",Tabel_F_Filtype[[#This Row],[Metadataværdi DK]])","v":"[F10] Objektfil"},"F10","Objektfil","Fil, der indeholder et bestemt objekt i 3D-grafik","Object file"]
[{"$f":"CONCATENATE(\"[\",Tabel_F_Filtype[[#This Row],[Værdikode]],\"] \",Tabel_F_Filtype[[#This Row],[Metadataværdi DK]])","v":"[F11] Hovedfil"},"F11","Hovedfil","Modelkilde eller Centralfil (Revit)","Central file"]
[{"$f":"CONCATENATE(\"[\",Tabel_F_Filtype[[#This Row],[Værdikode]],\"] \",Tabel_F_Filtype[[#This Row],[Metadataværdi DK]])","v":"[F12] Viewfil"},"F12","Viewfil","Fil, der indeholder views, som fx benyttes som referencefil for tegningsfiler, fagmodeller eller fællesmodeller","View file"]
[{"$f":"CONCATENATE(\"[\",Tabel_F_Filtype[[#This Row],[Værdikode]],\"] \",Tabel_F_Filtype[[#This Row],[Metadataværdi DK]])","v":"[F13] Skitsefil"},"F13","Skitsefil","Fil, der indeholder indscannede 2-d-skitser eller 3-d-modeller, som ikke indgår i tegnings- og dokumentliste","Sketch file "]
[{"$f":"CONCATENATE(\"[\",Tabel_F_Filtype[[#This Row],[Værdikode]],\"] \",Tabel_F_Filtype[[#This Row],[Metadataværdi DK]])","v":"[F99] Øvrige"},"F99","Øvrige","F.eks. punktsky fil (3D-scanning)","Others"]
[]
["Værdiliste","G"]
["Metadatanavn","Status (Status)"]
["Definition","Dokumentets stade i dets livscyklus"]
["Bunden/Åben","Bunden"]
["Note"]
[]
["Rullelisteværdi","Værdikode","Metadataværdi DK","Beskrivelse","Metadataværdi UK"]
[{"$f":"CONCATENATE(\"[\",Tabel_G_Status[[#This Row],[Værdikode]],\"] \",Tabel_G_Status[[#This Row],[Metadataværdi DK]])","v":"[G00] Ikke påbegyndt"},"G00","Ikke påbegyndt","Dokumentets stade i forhold til ikke at være påbegyndt","Not started"]
[{"$f":"CONCATENATE(\"[\",Tabel_G_Status[[#This Row],[Værdikode]],\"] \",Tabel_G_Status[[#This Row],[Metadataværdi DK]])","v":"[G01] Under udarbejdelse"},"G01","Under udarbejdelse","Dokumentets stade i forhold til tilblivelse","Work in progress"]
[{"$f":"CONCATENATE(\"[\",Tabel_G_Status[[#This Row],[Værdikode]],\"] \",Tabel_G_Status[[#This Row],[Metadataværdi DK]])","v":"[G02] Gennemsyn og kontrol"},"G02","Gennemsyn og kontrol","Dokumentets stade i forhold til verificering","Check and review"]
[{"$f":"CONCATENATE(\"[\",Tabel_G_Status[[#This Row],[Værdikode]],\"] \",Tabel_G_Status[[#This Row],[Metadataværdi DK]])","v":"[G03] Godkendt"},"G03","Godkendt","Dokumentets stade i forhold til at være accepteret","Approved"]
[{"$f":"CONCATENATE(\"[\",Tabel_G_Status[[#This Row],[Værdikode]],\"] \",Tabel_G_Status[[#This Row],[Metadataværdi DK]])","v":"[G04] Udvekslet"},"G04","Udvekslet","Dokumentets stade i forhold til at være delt","Shared"]
[{"$f":"CONCATENATE(\"[\",Tabel_G_Status[[#This Row],[Værdikode]],\"] \",Tabel_G_Status[[#This Row],[Metadataværdi DK]])","v":"[G05] Publiceret"},"G05","Publiceret","Dokumentets stade i forhold til frigivelse","Published"]
[{"$f":"CONCATENATE(\"[\",Tabel_G_Status[[#This Row],[Værdikode]],\"] \",Tabel_G_Status[[#This Row],[Metadataværdi DK]])","v":"[G06] Trukket tilbage/udgået"},"G06","Trukket tilbage/udgået","Dokumentets stade i forhold til at være en ikke gældende version","Withdrawn"]
[{"$f":"CONCATENATE(\"[\",Tabel_G_Status[[#This Row],[Værdikode]],\"] \",Tabel_G_Status[[#This Row],[Metadataværdi DK]])","v":"[G07] Akiveret"},"G07","Akiveret","Dokumentets stade i forhold til at være henlagt","Archived"]
[]
[]
[]
["Værdiliste","H"]
["Metadatanavn","Afbildningstype (Sheet type)"]
["Definition","Kode, som angiver, hvorledes geometrisk indhold vises"]
["Bunden/Åben","Bunden"]
["Note"]
[]
["Rullelisteværdi","Værdikode","Metadataværdi DK","Beskrivelse","Metadataværdi UK"]
[{"$f":"CONCATENATE(\"[\",Tabel_H_Afbildningstype[[#This Row],[Værdikode]],IF(LEN(Tabel_H_Afbildningstype[[#This Row],[Værdikode]])=3,\".00\",\"\"),\"] \",Tabel_H_Afbildningstype[[#This Row],[Metadataværdi DK]])","v":"[H00.00] Generelt"},"H00.00","Generelt","Materiale, som er relateret til afbildningsformer og/eller projektets afbildning inden bearbejdning","Generel"]
[{"$f":"CONCATENATE(\"[\",Tabel_H_Afbildningstype[[#This Row],[Værdikode]],IF(LEN(Tabel_H_Afbildningstype[[#This Row],[Værdikode]])=3,\".00\",\"\"),\"] \",Tabel_H_Afbildningstype[[#This Row],[Metadataværdi DK]])","v":"[H00.01] -"},"H00.01","-",null,"-"]
[{"$f":"CONCATENATE(\"[\",Tabel_H_Afbildningstype[[#This Row],[Værdikode]],IF(LEN(Tabel_H_Afbildningstype[[#This Row],[Værdikode]])=3,\".00\",\"\"),\"] \",Tabel_H_Afbildningstype[[#This Row],[Metadataværdi DK]])","v":"[H01.00] Plan"},"H01.00","Plan","Vandret snit gennem en bygning, et rum eller et landskab i en given højde med en nedadpegende synsvinkel","Plan"]
[{"$f":"CONCATENATE(\"[\",Tabel_H_Afbildningstype[[#This Row],[Værdikode]],IF(LEN(Tabel_H_Afbildningstype[[#This Row],[Værdikode]])=3,\".00\",\"\"),\"] \",Tabel_H_Afbildningstype[[#This Row],[Metadataværdi DK]])","v":"[H01.01] Beliggenheds- / Bebyggelsesplan"},"H01.01","Beliggenheds- / Bebyggelsesplan",null,"-"]
[{"$f":"CONCATENATE(\"[\",Tabel_H_Afbildningstype[[#This Row],[Værdikode]],IF(LEN(Tabel_H_Afbildningstype[[#This Row],[Værdikode]])=3,\".00\",\"\"),\"] \",Tabel_H_Afbildningstype[[#This Row],[Metadataværdi DK]])","v":"[H01.02] Situationsplan"},"H01.02","Situationsplan",null,"-"]
[{"$f":"CONCATENATE(\"[\",Tabel_H_Afbildningstype[[#This Row],[Værdikode]],IF(LEN(Tabel_H_Afbildningstype[[#This Row],[Værdikode]])=3,\".00\",\"\"),\"] \",Tabel_H_Afbildningstype[[#This Row],[Metadataværdi DK]])","v":"[H01.03] Oversigtsplan"},"H01.03","Oversigtsplan",null,"-"]
[{"$f":"CONCATENATE(\"[\",Tabel_H_Afbildningstype[[#This Row],[Værdikode]],IF(LEN(Tabel_H_Afbildningstype[[#This Row],[Værdikode]])=3,\".00\",\"\"),\"] \",Tabel_H_Afbildningstype[[#This Row],[Metadataværdi DK]])","v":"[H01.04] Delplan"},"H01.04","Delplan",null,"-"]
[{"$f":"CONCATENATE(\"[\",Tabel_H_Afbildningstype[[#This Row],[Værdikode]],IF(LEN(Tabel_H_Afbildningstype[[#This Row],[Værdikode]])=3,\".00\",\"\"),\"] \",Tabel_H_Afbildningstype[[#This Row],[Metadataværdi DK]])","v":"[H01.05] Rumplan"},"H01.05","Rumplan",null,"-"]
[{"$f":"CONCATENATE(\"[\",Tabel_H_Afbildningstype[[#This Row],[Værdikode]],IF(LEN(Tabel_H_Afbildningstype[[#This Row],[Værdikode]])=3,\".00\",\"\"),\"] \",Tabel_H_Afbildningstype[[#This Row],[Metadataværdi DK]])","v":"[H02.00] Opstalt"},"H02.00","Opstalt","Tegning af en bygnings facade, væggen i et rum eller en normalprojektion på en lodret flade","Elevation"]
[{"$f":"CONCATENATE(\"[\",Tabel_H_Afbildningstype[[#This Row],[Værdikode]],IF(LEN(Tabel_H_Afbildningstype[[#This Row],[Værdikode]])=3,\".00\",\"\"),\"] \",Tabel_H_Afbildningstype[[#This Row],[Metadataværdi DK]])","v":"[H02.01] Facade- og gavlopstalt"},"H02.01","Facade- og gavlopstalt",null,"-"]
[{"$f":"CONCATENATE(\"[\",Tabel_H_Afbildningstype[[#This Row],[Værdikode]],IF(LEN(Tabel_H_Afbildningstype[[#This Row],[Værdikode]])=3,\".00\",\"\"),\"] \",Tabel_H_Afbildningstype[[#This Row],[Metadataværdi DK]])","v":"[H02.02] Rumopstalt"},"H02.02","Rumopstalt",null,"-"]
[{"$f":"CONCATENATE(\"[\",Tabel_H_Afbildningstype[[#This Row],[Værdikode]],IF(LEN(Tabel_H_Afbildningstype[[#This Row],[Værdikode]])=3,\".00\",\"\"),\"] \",Tabel_H_Afbildningstype[[#This Row],[Metadataværdi DK]])","v":"[H02.03] Elementopstalt"},"H02.03","Elementopstalt",null,"-"]
[{"$f":"CONCATENATE(\"[\",Tabel_H_Afbildningstype[[#This Row],[Værdikode]],IF(LEN(Tabel_H_Afbildningstype[[#This Row],[Værdikode]])=3,\".00\",\"\"),\"] \",Tabel_H_Afbildningstype[[#This Row],[Metadataværdi DK]])","v":"[H02.04] Inventar og udstyrs opstalt"},"H02.04","Inventar og udstyrs opstalt",null,"-"]
[{"$f":"CONCATENATE(\"[\",Tabel_H_Afbildningstype[[#This Row],[Værdikode]],IF(LEN(Tabel_H_Afbildningstype[[#This Row],[Værdikode]])=3,\".00\",\"\"),\"] \",Tabel_H_Afbildningstype[[#This Row],[Metadataværdi DK]])","v":"[H02.05] Installationsopstalt"},"H02.05","Installationsopstalt",null,"-"]
[{"$f":"CONCATENATE(\"[\",Tabel_H_Afbildningstype[[#This Row],[Værdikode]],IF(LEN(Tabel_H_Afbildningstype[[#This Row],[Værdikode]])=3,\".00\",\"\"),\"] \",Tabel_H_Afbildningstype[[#This Row],[Metadataværdi DK]])","v":"[H03.00] Snit"},"H03.00","Snit","Lodret snit gennem en bygning, et rum eller et landskab","Section"]
[{"$f":"CONCATENATE(\"[\",Tabel_H_Afbildningstype[[#This Row],[Værdikode]],IF(LEN(Tabel_H_Afbildningstype[[#This Row],[Værdikode]])=3,\".00\",\"\"),\"] \",Tabel_H_Afbildningstype[[#This Row],[Metadataværdi DK]])","v":"[H03.01] Hovedsnit"},"H03.01","Hovedsnit",null,"-"]
[{"$f":"CONCATENATE(\"[\",Tabel_H_Afbildningstype[[#This Row],[Værdikode]],IF(LEN(Tabel_H_Afbildningstype[[#This Row],[Værdikode]])=3,\".00\",\"\"),\"] \",Tabel_H_Afbildningstype[[#This Row],[Metadataværdi DK]])","v":"[H03.02] Delsnit"},"H03.02","Delsnit",null,"-"]
[{"$f":"CONCATENATE(\"[\",Tabel_H_Afbildningstype[[#This Row],[Værdikode]],IF(LEN(Tabel_H_Afbildningstype[[#This Row],[Værdikode]])=3,\".00\",\"\"),\"] \",Tabel_H_Afbildningstype[[#This Row],[Metadataværdi DK]])","v":"[H04.00] Bygningsudsnit"},"H04.00","Bygningsudsnit","Formålsbestemt udvalgt mængde af geometriske objekter","Building section"]
[{"$f":"CONCATENATE(\"[\",Tabel_H_Afbildningstype[[#This Row],[Værdikode]],IF(LEN(Tabel_H_Afbildningstype[[#This Row],[Værdikode]])=3,\".00\",\"\"),\"] \",Tabel_H_Afbildningstype[[#This Row],[Metadataværdi DK]])","v":"[H04.01] Rumtegning"},"H04.01","Rumtegning",null,"-"]
[{"$f":"CONCATENATE(\"[\",Tabel_H_Afbildningstype[[#This Row],[Værdikode]],IF(LEN(Tabel_H_Afbildningstype[[#This Row],[Værdikode]])=3,\".00\",\"\"),\"] \",Tabel_H_Afbildningstype[[#This Row],[Metadataværdi DK]])","v":"[H04.11] Bygningsdelstegning"},"H04.11","Bygningsdelstegning",null,"-"]
[{"$f":"CONCATENATE(\"[\",Tabel_H_Afbildningstype[[#This Row],[Værdikode]],IF(LEN(Tabel_H_Afbildningstype[[#This Row],[Værdikode]])=3,\".00\",\"\"),\"] \",Tabel_H_Afbildningstype[[#This Row],[Metadataværdi DK]])","v":"[H04.21] Elementtegning"},"H04.21","Elementtegning",null,"-"]
[{"$f":"CONCATENATE(\"[\",Tabel_H_Afbildningstype[[#This Row],[Værdikode]],IF(LEN(Tabel_H_Afbildningstype[[#This Row],[Værdikode]])=3,\".00\",\"\"),\"] \",Tabel_H_Afbildningstype[[#This Row],[Metadataværdi DK]])","v":"[H05.00] Detalje"},"H05.00","Detalje","Afgrænset udsnit af et eller flere objekter","Detail"]
[{"$f":"CONCATENATE(\"[\",Tabel_H_Afbildningstype[[#This Row],[Værdikode]],IF(LEN(Tabel_H_Afbildningstype[[#This Row],[Værdikode]])=3,\".00\",\"\"),\"] \",Tabel_H_Afbildningstype[[#This Row],[Metadataværdi DK]])","v":"[H05.01] Samlingsdetalje"},"H05.01","Samlingsdetalje",null,"-"]
[{"$f":"CONCATENATE(\"[\",Tabel_H_Afbildningstype[[#This Row],[Værdikode]],IF(LEN(Tabel_H_Afbildningstype[[#This Row],[Værdikode]])=3,\".00\",\"\"),\"] \",Tabel_H_Afbildningstype[[#This Row],[Metadataværdi DK]])","v":"[H05.02] Knudepunktsdetalje"},"H05.02","Knudepunktsdetalje",null,"-"]
[{"$f":"CONCATENATE(\"[\",Tabel_H_Afbildningstype[[#This Row],[Værdikode]],IF(LEN(Tabel_H_Afbildningstype[[#This Row],[Værdikode]])=3,\".00\",\"\"),\"] \",Tabel_H_Afbildningstype[[#This Row],[Metadataværdi DK]])","v":"[H05.03] Indbygningsdetalje"},"H05.03","Indbygningsdetalje",null,"-"]
[{"$f":"CONCATENATE(\"[\",Tabel_H_Afbildningstype[[#This Row],[Værdikode]],IF(LEN(Tabel_H_Afbildningstype[[#This Row],[Værdikode]])=3,\".00\",\"\"),\"] \",Tabel_H_Afbildningstype[[#This Row],[Metadataværdi DK]])","v":"[H05.99] Principdetalje"},"H05.99","Principdetalje",null,"-"]
[{"$f":"CONCATENATE(\"[\",Tabel_H_Afbildningstype[[#This Row],[Værdikode]],IF(LEN(Tabel_H_Afbildningstype[[#This Row],[Værdikode]])=3,\".00\",\"\"),\"] \",Tabel_H_Afbildningstype[[#This Row],[Metadataværdi DK]])","v":"[H06.00] Diagram / skema"},"H06.00","Diagram / skema","Oversigt over installationer eller et sæt af objekter","Diagram / scheme"]
[{"$f":"CONCATENATE(\"[\",Tabel_H_Afbildningstype[[#This Row],[Værdikode]],IF(LEN(Tabel_H_Afbildningstype[[#This Row],[Værdikode]])=3,\".00\",\"\"),\"] \",Tabel_H_Afbildningstype[[#This Row],[Metadataværdi DK]])","v":"[H06.01] Rumskema"},"H06.01","Rumskema",null,"-"]
[{"$f":"CONCATENATE(\"[\",Tabel_H_Afbildningstype[[#This Row],[Værdikode]],IF(LEN(Tabel_H_Afbildningstype[[#This Row],[Værdikode]])=3,\".00\",\"\"),\"] \",Tabel_H_Afbildningstype[[#This Row],[Metadataværdi DK]])","v":"[H06.02] Dørskema"},"H06.02","Dørskema",null,"-"]
[{"$f":"CONCATENATE(\"[\",Tabel_H_Afbildningstype[[#This Row],[Værdikode]],IF(LEN(Tabel_H_Afbildningstype[[#This Row],[Værdikode]])=3,\".00\",\"\"),\"] \",Tabel_H_Afbildningstype[[#This Row],[Metadataværdi DK]])","v":"[H06.03] Vinduesskema"},"H06.03","Vinduesskema",null,"-"]
[{"$f":"CONCATENATE(\"[\",Tabel_H_Afbildningstype[[#This Row],[Værdikode]],IF(LEN(Tabel_H_Afbildningstype[[#This Row],[Værdikode]])=3,\".00\",\"\"),\"] \",Tabel_H_Afbildningstype[[#This Row],[Metadataværdi DK]])","v":"[H06.11] P&I diagram"},"H06.11","P&I diagram",null,"-"]
[{"$f":"CONCATENATE(\"[\",Tabel_H_Afbildningstype[[#This Row],[Værdikode]],IF(LEN(Tabel_H_Afbildningstype[[#This Row],[Værdikode]])=3,\".00\",\"\"),\"] \",Tabel_H_Afbildningstype[[#This Row],[Metadataværdi DK]])","v":"[H06.12] Kredsløbsdiagram"},"H06.12","Kredsløbsdiagram",null,"-"]
[{"$f":"CONCATENATE(\"[\",Tabel_H_Afbildningstype[[#This Row],[Værdikode]],IF(LEN(Tabel_H_Afbildningstype[[#This Row],[Værdikode]])=3,\".00\",\"\"),\"] \",Tabel_H_Afbildningstype[[#This Row],[Metadataværdi DK]])","v":"[H06.13] Ledningsdiagram"},"H06.13","Ledningsdiagram",null,"-"]
[{"$f":"CONCATENATE(\"[\",Tabel_H_Afbildningstype[[#This Row],[Værdikode]],IF(LEN(Tabel_H_Afbildningstype[[#This Row],[Værdikode]])=3,\".00\",\"\"),\"] \",Tabel_H_Afbildningstype[[#This Row],[Metadataværdi DK]])","v":"[H07.00] Rumlig afbildning"},"H07.00","Rumlig afbildning","Tredimensionel visualisering","Spartial representation"]
[{"$f":"CONCATENATE(\"[\",Tabel_H_Afbildningstype[[#This Row],[Værdikode]],IF(LEN(Tabel_H_Afbildningstype[[#This Row],[Værdikode]])=3,\".00\",\"\"),\"] \",Tabel_H_Afbildningstype[[#This Row],[Metadataværdi DK]])","v":"[H07.01] -"},"H07.01","-",null,"-"]
[{"$f":"CONCATENATE(\"[\",Tabel_H_Afbildningstype[[#This Row],[Værdikode]],IF(LEN(Tabel_H_Afbildningstype[[#This Row],[Værdikode]])=3,\".00\",\"\"),\"] \",Tabel_H_Afbildningstype[[#This Row],[Metadataværdi DK]])","v":"[H08.00] Længdeprofil"},"H08.00","Længdeprofil","Et tracé, som fastlægger linjeføring og længdesnitsplan i det overordnede XYZ-koordinatsystem","Longitudinal profile"]
[{"$f":"CONCATENATE(\"[\",Tabel_H_Afbildningstype[[#This Row],[Værdikode]],IF(LEN(Tabel_H_Afbildningstype[[#This Row],[Værdikode]])=3,\".00\",\"\"),\"] \",Tabel_H_Afbildningstype[[#This Row],[Metadataværdi DK]])","v":"[H08.01] -"},"H08.01","-",null,"-"]
[{"$f":"CONCATENATE(\"[\",Tabel_H_Afbildningstype[[#This Row],[Værdikode]],IF(LEN(Tabel_H_Afbildningstype[[#This Row],[Værdikode]])=3,\".00\",\"\"),\"] \",Tabel_H_Afbildningstype[[#This Row],[Metadataværdi DK]])","v":"[H98.00] Rumkatalog"},"H98.00","Rumkatalog","Rumkatalog, hvor det enkelte rum angives med et selvstændig katalog, som her kan indeholde f.eks. planer, snit, facader, 3D-afbildning, skemaer mv."]
[{"$f":"CONCATENATE(\"[\",Tabel_H_Afbildningstype[[#This Row],[Værdikode]],IF(LEN(Tabel_H_Afbildningstype[[#This Row],[Værdikode]])=3,\".00\",\"\"),\"] \",Tabel_H_Afbildningstype[[#This Row],[Metadataværdi DK]])","v":"[H98.01] -"},"H98.01","-",null,"-"]
[{"$f":"CONCATENATE(\"[\",Tabel_H_Afbildningstype[[#This Row],[Værdikode]],IF(LEN(Tabel_H_Afbildningstype[[#This Row],[Værdikode]])=3,\".00\",\"\"),\"] \",Tabel_H_Afbildningstype[[#This Row],[Metadataværdi DK]])","v":"[H99.00] Detaljemappe"},"H99.00","Detaljemappe","Detaljemappe som kan indeholde flere detaljer, som enkeltvis angives med H05."]
[{"$f":"CONCATENATE(\"[\",Tabel_H_Afbildningstype[[#This Row],[Værdikode]],IF(LEN(Tabel_H_Afbildningstype[[#This Row],[Værdikode]])=3,\".00\",\"\"),\"] \",Tabel_H_Afbildningstype[[#This Row],[Metadataværdi DK]])","v":"[H99.01] -"},"H99.01","-",null,"-"]
[]
["Værdiliste","J"]
["Metadatanavn","Informationsniveau (Level of Information)"]
["Definition","Kode, som angiver omfang og konkretisering af information om et objekt"]
["Bunden/Åben","Bunden"]
["Note","Informationsniveauer henviser til CCS, og LOD DK henviser til Bygningsdelsspecifikationerne af BIM7A A, DiKon og Molio."]
[]
["Rullelisteværdi","Værdikode","Metadataværdi DK","Beskrivelse","Metadataværdi UK"]
[{"$f":"CONCATENATE(\"[\",Tabel_J_Informationsniveau[[#This Row],[Værdikode]],\"] \",Tabel_J_Informationsniveau[[#This Row],[Metadataværdi DK]])","v":"[J1] Informationsnivneau 1"},"J1","Informationsnivneau 1",null,"Level of Information 1"]
[{"$f":"CONCATENATE(\"[\",Tabel_J_Informationsniveau[[#This Row],[Værdikode]],\"] \",Tabel_J_Informationsniveau[[#This Row],[Metadataværdi DK]])","v":"[J2] Informationsnivneau 2 (LOD 100 DK)"},"J2","Informationsnivneau 2 (LOD 100 DK)",null,"Level of Information 2"]
[{"$f":"CONCATENATE(\"[\",Tabel_J_Informationsniveau[[#This Row],[Værdikode]],\"] \",Tabel_J_Informationsniveau[[#This Row],[Metadataværdi DK]])","v":"[J3] Informationsnivneau 3 (LOD 200 DK)"},"J3","Informationsnivneau 3 (LOD 200 DK)",null,"Level of Information 3"]
[{"$f":"CONCATENATE(\"[\",Tabel_J_Informationsniveau[[#This Row],[Værdikode]],\"] \",Tabel_J_Informationsniveau[[#This Row],[Metadataværdi DK]])","v":"[J4] Informationsnivneau 4 (LOD 300 DK)"},"J4","Informationsnivneau 4 (LOD 300 DK)",null,"Level of Information 4"]
[{"$f":"CONCATENATE(\"[\",Tabel_J_Informationsniveau[[#This Row],[Værdikode]],\"] \",Tabel_J_Informationsniveau[[#This Row],[Metadataværdi DK]])","v":"[J5] Informationsnivneau 5 (LOD 325 DK)"},"J5","Informationsnivneau 5 (LOD 325 DK)",null,"Level of Information 5"]
[{"$f":"CONCATENATE(\"[\",Tabel_J_Informationsniveau[[#This Row],[Værdikode]],\"] \",Tabel_J_Informationsniveau[[#This Row],[Metadataværdi DK]])","v":"[J6] Informationsnivneau 6 (LOD 400 DK)"},"J6","Informationsnivneau 6 (LOD 400 DK)",null,"Level of Information 6"]
[{"$f":"CONCATENATE(\"[\",Tabel_J_Informationsniveau[[#This Row],[Værdikode]],\"] \",Tabel_J_Informationsniveau[[#This Row],[Metadataværdi DK]])","v":"[J7] Informationsnivneau 7"},"J7","Informationsnivneau 7",null,"Level of Information 7"]
[]
["Værdiliste","K"]
["Metadatanavn","Vidensområder (Knowledge)"]
["Definition","Kategorisering efter anvendt viden om et bestemt emne"]
["Bunden/Åben","Bunden"]
["Note"]
[]
["Rullelisteværdi","Værdikode","Metadataværdi DK","Beskrivelse","Metadataværdi UK"]
[{"$f":"CONCATENATE(\"[\",Tabel_K_Vidensområde[[#This Row],[Værdikode]],\"] \",Tabel_K_Vidensområde[[#This Row],[Metadataværdi DK]])","v":"[K00] Styring og informationshåndtering"},"K00","Styring og informationshåndtering","Viden om styring af projekter og processer samt planlægning og håndtering af informationsfrembringelse, -udveksling og lagring","Information management"]
[{"$f":"CONCATENATE(\"[\",Tabel_K_Vidensområde[[#This Row],[Værdikode]],\"] \",Tabel_K_Vidensområde[[#This Row],[Metadataværdi DK]])","v":"[K01] Arkitektur"},"K01","Arkitektur","Viden om formgivning og sammensætning af bygninger, anlæg, \nrum og fysiske strukturer","Architecture"]
[{"$f":"CONCATENATE(\"[\",Tabel_K_Vidensområde[[#This Row],[Værdikode]],\"] \",Tabel_K_Vidensområde[[#This Row],[Metadataværdi DK]])","v":"[K02] Landskab"},"K02","Landskab","Viden om indretning af natur, landarealer og uderum","Landscape"]
[{"$f":"CONCATENATE(\"[\",Tabel_K_Vidensområde[[#This Row],[Værdikode]],\"] \",Tabel_K_Vidensområde[[#This Row],[Metadataværdi DK]])","v":"[K03] Indretning"},"K03","Indretning","Viden om indretning, sammensætning og anvendelse af brugsting i rum, bygninger og anlæg","Interior"]
[{"$f":"CONCATENATE(\"[\",Tabel_K_Vidensområde[[#This Row],[Værdikode]],\"] \",Tabel_K_Vidensområde[[#This Row],[Metadataværdi DK]])","v":"[K04] By"},"K04","By","Viden om formgivning og indretning af byer, byrum og bymiljøer","Urban"]
[{"$f":"CONCATENATE(\"[\",Tabel_K_Vidensområde[[#This Row],[Værdikode]],\"] \",Tabel_K_Vidensområde[[#This Row],[Metadataværdi DK]])","v":"[K05] Design"},"K05","Design","Viden om formgivning af genstande og visuel kommunikation","Design"]
[{"$f":"CONCATENATE(\"[\",Tabel_K_Vidensområde[[#This Row],[Værdikode]],\"] \",Tabel_K_Vidensområde[[#This Row],[Metadataværdi DK]])","v":"[K06] Kort- og geodata"},"K06","Kort- og geodata","Viden om og registreringer af fysiske omgivelser til lands, til vands og i luften","Geodata"]
[{"$f":"CONCATENATE(\"[\",Tabel_K_Vidensområde[[#This Row],[Værdikode]],\"] \",Tabel_K_Vidensområde[[#This Row],[Metadataværdi DK]])","v":"[K07] Elektronik og IT"},"K07","Elektronik og IT","Viden om udvikling og anvendelse af elektriske apparater og installationer","Electrical and IT"]
[{"$f":"CONCATENATE(\"[\",Tabel_K_Vidensområde[[#This Row],[Værdikode]],\"] \",Tabel_K_Vidensområde[[#This Row],[Metadataværdi DK]])","v":"[K08] Mekaniske installationer"},"K08","Mekaniske installationer","Viden om fremføring af vand, afløb, sanitet, varme, ventilation og køling ","Mechanical"]
[{"$f":"CONCATENATE(\"[\",Tabel_K_Vidensområde[[#This Row],[Værdikode]],\"] \",Tabel_K_Vidensområde[[#This Row],[Metadataværdi DK]])","v":"[K09] Konstruktioner"},"K09","Konstruktioner","Viden om bygninger og anlægs fysiske, tekniske og funktionelle opbygning og sammenbygning","Structures"]
[{"$f":"CONCATENATE(\"[\",Tabel_K_Vidensområde[[#This Row],[Værdikode]],\"] \",Tabel_K_Vidensområde[[#This Row],[Metadataværdi DK]])","v":"[K10] Procesanlæg"},"K10","Procesanlæg","Viden om planlægning, sammensætning og udførelse af industrielle processer og anlæg","Process"]
[{"$f":"CONCATENATE(\"[\",Tabel_K_Vidensområde[[#This Row],[Værdikode]],\"] \",Tabel_K_Vidensområde[[#This Row],[Metadataværdi DK]])","v":"[K11] Transport og logistik"},"K11","Transport og logistik","Viden om at flytte mennesker og varer","Transportation and logistic"]
[{"$f":"CONCATENATE(\"[\",Tabel_K_Vidensområde[[#This Row],[Værdikode]],\"] \",Tabel_K_Vidensområde[[#This Row],[Metadataværdi DK]])","v":"[K12] Geofysik og -teknik"},"K12","Geofysik og -teknik","Viden om de fysiske forhold i jordskorpen, havene og atmosfæren","Geofysik og -teknik"]
[{"$f":"CONCATENATE(\"[\",Tabel_K_Vidensområde[[#This Row],[Værdikode]],\"] \",Tabel_K_Vidensområde[[#This Row],[Metadataværdi DK]])","v":"[K13] Forvaltning"},"K13","Forvaltning","Viden om anvendelse og administration af arealer og aktiver i form af bygninger og anlæg","Facilities and asset management"]
[{"$f":"CONCATENATE(\"[\",Tabel_K_Vidensområde[[#This Row],[Værdikode]],\"] \",Tabel_K_Vidensområde[[#This Row],[Metadataværdi DK]])","v":"[K14] Økonomi"},"K14","Økonomi","Viden om forholdet mellem produktion, handel, materielle værdier og penge som ressource","Economy"]
[{"$f":"CONCATENATE(\"[\",Tabel_K_Vidensområde[[#This Row],[Værdikode]],\"] \",Tabel_K_Vidensområde[[#This Row],[Metadataværdi DK]])","v":"[K15] Jura"},"K15","Jura","Viden om regler, rettigheder og regulering af konflikter, der gælder i byggeri og anlæg og det omgivende samfund","Law"]
[{"$f":"CONCATENATE(\"[\",Tabel_K_Vidensområde[[#This Row],[Værdikode]],\"] \",Tabel_K_Vidensområde[[#This Row],[Metadataværdi DK]])","v":"[K16] Forskning og udvikling"},"K16","Forskning og udvikling","Viden om at finde på nye produkter eller processer samt formidling heraf","Research and development"]
[{"$f":"CONCATENATE(\"[\",Tabel_K_Vidensområde[[#This Row],[Værdikode]],\"] \",Tabel_K_Vidensområde[[#This Row],[Metadataværdi DK]])","v":"[K17] Arbejdsmiljø"},"K17","Arbejdsmiljø","Viden om betegnelser og risici i forhold til det, som påvirker mennesker fysisk og psykisk","Working environment"]
[{"$f":"CONCATENATE(\"[\",Tabel_K_Vidensområde[[#This Row],[Værdikode]],\"] \",Tabel_K_Vidensområde[[#This Row],[Metadataværdi DK]])","v":"[K18] Lufthavnsanlæg"},"K18","Lufthavnsanlæg","Viden om planlægning og anlæggelse af arealer og baner for anvendelse til luftfart","Airport construction"]
[{"$f":"CONCATENATE(\"[\",Tabel_K_Vidensområde[[#This Row],[Værdikode]],\"] \",Tabel_K_Vidensområde[[#This Row],[Metadataværdi DK]])","v":"[K19] Forsyning og afledning"},"K19","Forsyning og afledning","Viden om planlægning og udførelse af anlæg til fremføring af el, vand, varme og gas og bortskaffelse af spildevand og affald","Supply and diversion"]
[{"$f":"CONCATENATE(\"[\",Tabel_K_Vidensområde[[#This Row],[Værdikode]],\"] \",Tabel_K_Vidensområde[[#This Row],[Metadataværdi DK]])","v":"[K20] Vej"},"K20","Vej","Viden om planlægning og anlæggelse af veje, pladser og relaterede konstruktioner for fremføring af køretøjer eller gående","Road"]
[{"$f":"CONCATENATE(\"[\",Tabel_K_Vidensområde[[#This Row],[Værdikode]],\"] \",Tabel_K_Vidensområde[[#This Row],[Metadataværdi DK]])","v":"[K21] Bane"},"K21","Bane","Viden om planlægning og anlæggelse af strækning eller færdselslinje, der fører gennem et område fra ét punkt til et andet for fremføring af skinnekørende vogne","Tracks"]
[{"$f":"CONCATENATE(\"[\",Tabel_K_Vidensområde[[#This Row],[Værdikode]],\"] \",Tabel_K_Vidensområde[[#This Row],[Metadataværdi DK]])","v":"[K22] Bro"},"K22","Bro","Viden om planlægning og formgivning af bygværk, der fører over en sænkning i landskabet eller en anden færdselsåre","Bridge"]
[{"$f":"CONCATENATE(\"[\",Tabel_K_Vidensområde[[#This Row],[Værdikode]],\"] \",Tabel_K_Vidensområde[[#This Row],[Metadataværdi DK]])","v":"[K23] Tunnel"},"K23","Tunnel","Viden om planlægning og formgivning af bygværk, der fører under terræn eller vand eller igennem anden konstruktion","Tunnel"]
[{"$f":"CONCATENATE(\"[\",Tabel_K_Vidensområde[[#This Row],[Værdikode]],\"] \",Tabel_K_Vidensområde[[#This Row],[Metadataværdi DK]])","v":"[K24] Havneanlæg (bassin)"},"K24","Havneanlæg (bassin)","Viden om planlægning og anlæggelse af samlede anlæg ved kyst eller bred, hvor skibe lægger til, lastes og losses","Port facility (basin)"]
[{"$f":"CONCATENATE(\"[\",Tabel_K_Vidensområde[[#This Row],[Værdikode]],\"] \",Tabel_K_Vidensområde[[#This Row],[Metadataværdi DK]])","v":"[K25] Maskinanlæg"},"K25","Maskinanlæg","Viden om planlægning, udvikling og installering af maskiner, udstyr samt produktions- og hjælpemidler for anvendelse i processer og til produktion","Machine plant"]
[{"$f":"CONCATENATE(\"[\",Tabel_K_Vidensområde[[#This Row],[Værdikode]],\"] \",Tabel_K_Vidensområde[[#This Row],[Metadataværdi DK]])","v":"[K26] Energikilder"},"K26","Energikilder","Viden om energigenererende kilder og deres anvendelse","Energy sources"]
[{"$f":"CONCATENATE(\"[\",Tabel_K_Vidensområde[[#This Row],[Værdikode]],\"] \",Tabel_K_Vidensområde[[#This Row],[Metadataværdi DK]])","v":"[K99] Fælles"},"K99","Fælles","Vinden der dækker mere en ét af de respektive vidensområder fra K00 - K98.","Common"]
[]
["Værdiliste","M"]
["Metadatanavn","Fagdiscipliner (Discipline)"]
["Definition","Kategorisering efter anvendt specialiseret viden om et bestemt emne"]
["Bunden/Åben","Åben"]
["Note"]
[]
["Rullelisteværdi","Værdikode","Metadataværdi DK","Beskrivelse","Metadataværdi UK"]
[{"$f":"CONCATENATE(\"[\",Tabel_M_Fagdisciplin[[#This Row],[Værdikode]],\"] \",Tabel_M_Fagdisciplin[[#This Row],[Metadataværdi DK]])","v":"[M001] Afløb"},"M001","Afløb","Faglig viden om installationer, som fører flydende strømme bort","Drainage"]
[{"$f":"CONCATENATE(\"[\",Tabel_M_Fagdisciplin[[#This Row],[Værdikode]],\"] \",Tabel_M_Fagdisciplin[[#This Row],[Metadataværdi DK]])","v":"[M002] Akustik og lyd"},"M002","Akustik og lyd","Faglig viden om dannelse af, forplantning af og egenskaber ved lydbølger","Acoustics and sound"]
[{"$f":"CONCATENATE(\"[\",Tabel_M_Fagdisciplin[[#This Row],[Værdikode]],\"] \",Tabel_M_Fagdisciplin[[#This Row],[Metadataværdi DK]])","v":"[M003] Alarm og overvågning"},"M003","Alarm og overvågning","Faglig viden om installationer for strøm i form af monitorering og alarmering","Alarm and monitoring"]
[{"$f":"CONCATENATE(\"[\",Tabel_M_Fagdisciplin[[#This Row],[Værdikode]],\"] \",Tabel_M_Fagdisciplin[[#This Row],[Metadataværdi DK]])","v":"[M004] Arealforvaltning"},"M004","Arealforvaltning","Faglig viden om håndtering af aktivers arealer og deres anvendelse","Area management"]
[{"$f":"CONCATENATE(\"[\",Tabel_M_Fagdisciplin[[#This Row],[Værdikode]],\"] \",Tabel_M_Fagdisciplin[[#This Row],[Metadataværdi DK]])","v":"[M005] Belysning"},"M005","Belysning"," Faglig viden om installationer for strøm i form af kunstig belysning ved lyskilde","Lighting"]
[{"$f":"CONCATENATE(\"[\",Tabel_M_Fagdisciplin[[#This Row],[Værdikode]],\"] \",Tabel_M_Fagdisciplin[[#This Row],[Metadataværdi DK]])","v":"[M006] Brand og brandrådgivning"},"M006","Brand og brandrådgivning","Faglig viden om sikring af bygninger og bygningsbrugere mod ild og dokumentation af dette","Fire and fire consultancy"]
[{"$f":"CONCATENATE(\"[\",Tabel_M_Fagdisciplin[[#This Row],[Værdikode]],\"] \",Tabel_M_Fagdisciplin[[#This Row],[Metadataværdi DK]])","v":"[M007] Bredbånd"},"M007","Bredbånd","Faglig viden om installationer for telefon, internet, lysledere, kabel-TV mv.","Broadband"]
[{"$f":"CONCATENATE(\"[\",Tabel_M_Fagdisciplin[[#This Row],[Værdikode]],\"] \",Tabel_M_Fagdisciplin[[#This Row],[Metadataværdi DK]])","v":"[M008] Byggemodning"},"M008","Byggemodning","Faglig viden om udarbejdelse af planer for etablering af fysisk infrastruktur for bebyggelse","Preparatory works"]
[{"$f":"CONCATENATE(\"[\",Tabel_M_Fagdisciplin[[#This Row],[Værdikode]],\"] \",Tabel_M_Fagdisciplin[[#This Row],[Metadataværdi DK]])","v":"[M009] Byggeplads"},"M009","Byggeplads","Faglig viden om arbejdsområder til opførelse af bebyggelse og/eller anlæg","Site works"]
[{"$f":"CONCATENATE(\"[\",Tabel_M_Fagdisciplin[[#This Row],[Værdikode]],\"] \",Tabel_M_Fagdisciplin[[#This Row],[Metadataværdi DK]])","v":"[M010] Bygningsautomatik (CTS, BMS)"},"M010","Bygningsautomatik (CTS, BMS)","Faglig viden om funktioner uden menneskelig indgriben, som samarbejder med eller indgår som en del af en bygning og dens systemer","Building automation"]
[{"$f":"CONCATENATE(\"[\",Tabel_M_Fagdisciplin[[#This Row],[Værdikode]],\"] \",Tabel_M_Fagdisciplin[[#This Row],[Metadataværdi DK]])","v":"[M011] Bygningsreglement"},"M011","Bygningsreglement","Faglig viden om at sikre, at et byggeri udføres, så det overholder kravene til sikkerheds-, sundheds-, og energimæssige forhold","Building regulations"]
[{"$f":"CONCATENATE(\"[\",Tabel_M_Fagdisciplin[[#This Row],[Værdikode]],\"] \",Tabel_M_Fagdisciplin[[#This Row],[Metadataværdi DK]])","v":"[M012] Bæredygtighed"},"M012","Bæredygtighed","Faglig viden om løsninger uden ødelæggelse af det foreliggende grundlag af miljø og ressourcer","Sustainability"]
[{"$f":"CONCATENATE(\"[\",Tabel_M_Fagdisciplin[[#This Row],[Værdikode]],\"] \",Tabel_M_Fagdisciplin[[#This Row],[Metadataværdi DK]])","v":"[M013] Cirkulær økonomi"},"M013","Cirkulær økonomi","Faglig viden om genanvendelse af brugt materiale og/eller bygningsdele","Circular economy"]
[{"$f":"CONCATENATE(\"[\",Tabel_M_Fagdisciplin[[#This Row],[Værdikode]],\"] \",Tabel_M_Fagdisciplin[[#This Row],[Metadataværdi DK]])","v":"[M014] Commissioning"},"M014","Commissioning","Faglig viden om håndtering af aktiver ved kravstillelse, udførelse, testning og ibrugtagning af disse samt dokumentation heraf","Commissioning "]
[{"$f":"CONCATENATE(\"[\",Tabel_M_Fagdisciplin[[#This Row],[Værdikode]],\"] \",Tabel_M_Fagdisciplin[[#This Row],[Metadataværdi DK]])","v":"[M015] Computational design"},"M015","Computational design","Faglig viden om parametrisk modellering ved brug af computer","Computational design"]
[{"$f":"CONCATENATE(\"[\",Tabel_M_Fagdisciplin[[#This Row],[Værdikode]],\"] \",Tabel_M_Fagdisciplin[[#This Row],[Metadataværdi DK]])","v":"[M016] Dagslysdesign"},"M016","Dagslysdesign","Faglig viden om et bygværks egenskaber og påvirkning heraf i forhold til naturligt lysindfald","Daylight design"]
[{"$f":"CONCATENATE(\"[\",Tabel_M_Fagdisciplin[[#This Row],[Værdikode]],\"] \",Tabel_M_Fagdisciplin[[#This Row],[Metadataværdi DK]])","v":"[M017] Drift og vedligehold"},"M017","Drift og vedligehold","Faglig viden om aktiviteter og udgifter ved vedligeholdelse af byggeri","Operation and maintenance"]
[{"$f":"CONCATENATE(\"[\",Tabel_M_Fagdisciplin[[#This Row],[Værdikode]],\"] \",Tabel_M_Fagdisciplin[[#This Row],[Metadataværdi DK]])","v":"[M018] Ejendomsadministration"},"M018","Ejendomsadministration","Faglig viden om håndtering af aktiver i forhold til økonomi og brugsrettigheder","Facilities management"]
[{"$f":"CONCATENATE(\"[\",Tabel_M_Fagdisciplin[[#This Row],[Værdikode]],\"] \",Tabel_M_Fagdisciplin[[#This Row],[Metadataværdi DK]])","v":"[M019] Forbrænding"},"M019","Forbrænding","Faglig viden om destruering af affald ved afbrænding","Incineration"]
[{"$f":"CONCATENATE(\"[\",Tabel_M_Fagdisciplin[[#This Row],[Værdikode]],\"] \",Tabel_M_Fagdisciplin[[#This Row],[Metadataværdi DK]])","v":"[M020] Forklassificering"},"M020","Forklassificering","Faglig viden om analyse og kortlægning af forurenet eller måske forurenet jord","Pre-classification"]
[{"$f":"CONCATENATE(\"[\",Tabel_M_Fagdisciplin[[#This Row],[Værdikode]],\"] \",Tabel_M_Fagdisciplin[[#This Row],[Metadataværdi DK]])","v":"[M021] Formgivning"},"M021","Formgivning","Faglig viden om udformning og design af objekter","Design modelling"]
[{"$f":"CONCATENATE(\"[\",Tabel_M_Fagdisciplin[[#This Row],[Værdikode]],\"] \",Tabel_M_Fagdisciplin[[#This Row],[Metadataværdi DK]])","v":"[M022] Fugt"},"M022","Fugt","Faglig viden om et bygværks egenskaber og påvirkning heraf i forhold til fugtpåvirkning og vandindtrængning","Moisture"]
[{"$f":"CONCATENATE(\"[\",Tabel_M_Fagdisciplin[[#This Row],[Værdikode]],\"] \",Tabel_M_Fagdisciplin[[#This Row],[Metadataværdi DK]])","v":"[M023] Føringsveje"},"M023","Føringsveje","Faglig viden om fremføring af el, tekniske installationer mv., så de ikke lider overlast i såvel etablerings- som driftsfasen","Service runs"]
[{"$f":"CONCATENATE(\"[\",Tabel_M_Fagdisciplin[[#This Row],[Værdikode]],\"] \",Tabel_M_Fagdisciplin[[#This Row],[Metadataværdi DK]])","v":"[M024] Geologi"},"M024","Geologi","Faglig viden om informationer relateret til jordkloden vedrørende undergrund og grundvand","Geology"]
[{"$f":"CONCATENATE(\"[\",Tabel_M_Fagdisciplin[[#This Row],[Værdikode]],\"] \",Tabel_M_Fagdisciplin[[#This Row],[Metadataværdi DK]])","v":"[M025] Geoteknik"},"M025","Geoteknik","Faglig viden om jords fysiske egenskaber og bæreevne","Geotechnics"]
[{"$f":"CONCATENATE(\"[\",Tabel_M_Fagdisciplin[[#This Row],[Værdikode]],\"] \",Tabel_M_Fagdisciplin[[#This Row],[Metadataværdi DK]])","v":"[M026] Grafisk design"},"M026","Grafisk design","Faglig viden om formgivning og opsætning til tryk","Graphical design"]
[{"$f":"CONCATENATE(\"[\",Tabel_M_Fagdisciplin[[#This Row],[Værdikode]],\"] \",Tabel_M_Fagdisciplin[[#This Row],[Metadataværdi DK]])","v":"[M027] Højspænding"},"M027","Højspænding","Faglig viden om installationer for strøm med spænding på over 1.000 volt","High voltage"]
[{"$f":"CONCATENATE(\"[\",Tabel_M_Fagdisciplin[[#This Row],[Værdikode]],\"] \",Tabel_M_Fagdisciplin[[#This Row],[Metadataværdi DK]])","v":"[M028] IKT-håndtering"},"M028","IKT-håndtering","Faglig viden om informations- og kommunikationsteknologi","ICT management"]
[{"$f":"CONCATENATE(\"[\",Tabel_M_Fagdisciplin[[#This Row],[Værdikode]],\"] \",Tabel_M_Fagdisciplin[[#This Row],[Metadataværdi DK]])","v":"[M029] Indeklima"},"M029","Indeklima","Faglig viden om betydningen af temperatur, lys, statisk elektricitet, luftfugtighed mv. for menneskers komfort og velvære indendørs","Indoor climate"]
[{"$f":"CONCATENATE(\"[\",Tabel_M_Fagdisciplin[[#This Row],[Værdikode]],\"] \",Tabel_M_Fagdisciplin[[#This Row],[Metadataværdi DK]])","v":"[M030] Industrielt design"},"M030","Industrielt design","Faglig viden om formgivning og produktion af genstande for fabrikationsmæssig produktion","Industrial design"]
[{"$f":"CONCATENATE(\"[\",Tabel_M_Fagdisciplin[[#This Row],[Værdikode]],\"] \",Tabel_M_Fagdisciplin[[#This Row],[Metadataværdi DK]])","v":"[M031] Jordhåndtering"},"M031","Jordhåndtering","Faglig viden om udgravning, afstivning og lignende af jord ","Earthworks design"]
[{"$f":"CONCATENATE(\"[\",Tabel_M_Fagdisciplin[[#This Row],[Værdikode]],\"] \",Tabel_M_Fagdisciplin[[#This Row],[Metadataværdi DK]])","v":"[M032] Kloak"},"M032","Kloak","Faglig viden om installationer for afløb","Sewerage"]
[{"$f":"CONCATENATE(\"[\",Tabel_M_Fagdisciplin[[#This Row],[Værdikode]],\"] \",Tabel_M_Fagdisciplin[[#This Row],[Metadataværdi DK]])","v":"[M033] Kontrakt"},"M033","Kontrakt","Faglig viden om kontraktuelle aftaler, betingelser og vilkår","Contracts"]
[{"$f":"CONCATENATE(\"[\",Tabel_M_Fagdisciplin[[#This Row],[Værdikode]],\"] \",Tabel_M_Fagdisciplin[[#This Row],[Metadataværdi DK]])","v":"[M034] Kotering"},"M034","Kotering","Faglig viden om afsætning og behandling af terrænpunkter og højdekurver","Levelling"]
[{"$f":"CONCATENATE(\"[\",Tabel_M_Fagdisciplin[[#This Row],[Værdikode]],\"] \",Tabel_M_Fagdisciplin[[#This Row],[Metadataværdi DK]])","v":"[M035] Køling"},"M035","Køling","Faglig viden om funktioner, som gør rum eller objekter koldere","Cooling"]
[{"$f":"CONCATENATE(\"[\",Tabel_M_Fagdisciplin[[#This Row],[Værdikode]],\"] \",Tabel_M_Fagdisciplin[[#This Row],[Metadataværdi DK]])","v":"[M036] Kørestrøm"},"M036","Kørestrøm","Faglig viden om strøm, som bruges til fremdrift","Traction current"]
[{"$f":"CONCATENATE(\"[\",Tabel_M_Fagdisciplin[[#This Row],[Værdikode]],\"] \",Tabel_M_Fagdisciplin[[#This Row],[Metadataværdi DK]])","v":"[M037] Lavspædning"},"M037","Lavspædning","Faglig viden om installationer for strøm med spænding på under 1.000 volt","Low voltage"]
[{"$f":"CONCATENATE(\"[\",Tabel_M_Fagdisciplin[[#This Row],[Værdikode]],\"] \",Tabel_M_Fagdisciplin[[#This Row],[Metadataværdi DK]])","v":"[M038] Life cycle assesment (LCA)"},"M038","Life cycle assesment (LCA)","Faglig viden om vurdering af produkters eller produktsystemers miljøbelastning gennem hele deres livscyklus","Life Cycle Assessment (LCA)"]
[{"$f":"CONCATENATE(\"[\",Tabel_M_Fagdisciplin[[#This Row],[Værdikode]],\"] \",Tabel_M_Fagdisciplin[[#This Row],[Metadataværdi DK]])","v":"[M039] Life cycle cosing (LCC)"},"M039","Life cycle cosing (LCC)","Faglig viden om estimering af totalomkostninger for et byggeris levetid","Life Cycle Costing (LCC)"]
[{"$f":"CONCATENATE(\"[\",Tabel_M_Fagdisciplin[[#This Row],[Værdikode]],\"] \",Tabel_M_Fagdisciplin[[#This Row],[Metadataværdi DK]])","v":"[M040] Linjeføring"},"M040","Linjeføring","Faglig viden om føring af forsyninger i terræn","Utilities Layout"]
[{"$f":"CONCATENATE(\"[\",Tabel_M_Fagdisciplin[[#This Row],[Værdikode]],\"] \",Tabel_M_Fagdisciplin[[#This Row],[Metadataværdi DK]])","v":"[M041] Logistikplanlægning"},"M041","Logistikplanlægning","Faglig viden om styring og planlægning af varer og/eller mennesker","Logistical planning"]
[{"$f":"CONCATENATE(\"[\",Tabel_M_Fagdisciplin[[#This Row],[Værdikode]],\"] \",Tabel_M_Fagdisciplin[[#This Row],[Metadataværdi DK]])","v":"[M042] Luft- og gasarter"},"M042","Luft- og gasarter","Faglig viden om tekniske bygningsinstallationer, som behandler eller leverer luftarter","Air and gas"]
[{"$f":"CONCATENATE(\"[\",Tabel_M_Fagdisciplin[[#This Row],[Værdikode]],\"] \",Tabel_M_Fagdisciplin[[#This Row],[Metadataværdi DK]])","v":"[M043] Lysdesign"},"M043","Lysdesign","Faglig viden om formgivning og anvendelse af brugsgenstande og anordninger, der afgiver lys","Ligthning desing"]
[{"$f":"CONCATENATE(\"[\",Tabel_M_Fagdisciplin[[#This Row],[Værdikode]],\"] \",Tabel_M_Fagdisciplin[[#This Row],[Metadataværdi DK]])","v":"[M044] Matrikulering og landmåling"},"M044","Matrikulering og landmåling","Faglig viden om informationer relateret til jordkloden for fastlæggelse af ejendom i en matrikel","Cadasre survey"]
[{"$f":"CONCATENATE(\"[\",Tabel_M_Fagdisciplin[[#This Row],[Værdikode]],\"] \",Tabel_M_Fagdisciplin[[#This Row],[Metadataværdi DK]])","v":"[M045] Miljøcertificering"},"M045","Miljøcertificering","Faglig viden om udvikling uden ødelæggelse af det fremtidige livsgrundlag ved anvendelse af miljøcertificeringssystemer","Environmental certification"]
[{"$f":"CONCATENATE(\"[\",Tabel_M_Fagdisciplin[[#This Row],[Værdikode]],\"] \",Tabel_M_Fagdisciplin[[#This Row],[Metadataværdi DK]])","v":"[M046] Miljøsanering"},"M046","Miljøsanering","Faglig viden om kildesorteringen i forbindelse med fornyelse eller nedrivning af bygninger","Environmental reclaims"]
[{"$f":"CONCATENATE(\"[\",Tabel_M_Fagdisciplin[[#This Row],[Værdikode]],\"] \",Tabel_M_Fagdisciplin[[#This Row],[Metadataværdi DK]])","v":"[M047] Møbeldesign"},"M047","Møbeldesign","Faglig viden om formgivning og produktion af møbler ","Furniture design"]
[{"$f":"CONCATENATE(\"[\",Tabel_M_Fagdisciplin[[#This Row],[Værdikode]],\"] \",Tabel_M_Fagdisciplin[[#This Row],[Metadataværdi DK]])","v":"[M048] Nedbrydning og bortskaffelse"},"M048","Nedbrydning og bortskaffelse","Faglig viden om demontering og fjernelse af eksisterende byggeri","Demolition and disposal"]
[{"$f":"CONCATENATE(\"[\",Tabel_M_Fagdisciplin[[#This Row],[Værdikode]],\"] \",Tabel_M_Fagdisciplin[[#This Row],[Metadataværdi DK]])","v":"[M049] Ophavsret"},"M049","Ophavsret","Faglig viden om lovmæssig ophavsret","Copyright"]
[{"$f":"CONCATENATE(\"[\",Tabel_M_Fagdisciplin[[#This Row],[Værdikode]],\"] \",Tabel_M_Fagdisciplin[[#This Row],[Metadataværdi DK]])","v":"[M050] Produktudvikling"},"M050","Produktudvikling","Faglig viden om at forbedre eller opfinde nye produkter og processer for at bringe det i produktion og på marked","Product development"]
[{"$f":"CONCATENATE(\"[\",Tabel_M_Fagdisciplin[[#This Row],[Værdikode]],\"] \",Tabel_M_Fagdisciplin[[#This Row],[Metadataværdi DK]])","v":"[M051] Regnvandsafledning (LAR)"},"M051","Regnvandsafledning (LAR)","Faglig viden om installationer for lokal afledning af regnvand og klimasikring","Rainwater drainage"]
[{"$f":"CONCATENATE(\"[\",Tabel_M_Fagdisciplin[[#This Row],[Værdikode]],\"] \",Tabel_M_Fagdisciplin[[#This Row],[Metadataværdi DK]])","v":"[M052] Renovation"},"M052","Renovation","Faglig viden om håndtering af aktiver vedrørende håndtering og bortskaffelse af affald","Waste"]
[{"$f":"CONCATENATE(\"[\",Tabel_M_Fagdisciplin[[#This Row],[Værdikode]],\"] \",Tabel_M_Fagdisciplin[[#This Row],[Metadataværdi DK]])","v":"[M053] Renovering"},"M053","Renovering","Faglig viden om fornyelse af en eksisterende løsning","Refurbishment"]
[{"$f":"CONCATENATE(\"[\",Tabel_M_Fagdisciplin[[#This Row],[Værdikode]],\"] \",Tabel_M_Fagdisciplin[[#This Row],[Metadataværdi DK]])","v":"[M054] Reserveforsyning"},"M054","Reserveforsyning","Faglig viden om beholdning eller metode til levering af noget, som der ikke er et aktuelt behov for","Back-up supplies"]
[{"$f":"CONCATENATE(\"[\",Tabel_M_Fagdisciplin[[#This Row],[Værdikode]],\"] \",Tabel_M_Fagdisciplin[[#This Row],[Metadataværdi DK]])","v":"[M055] Rørføring"},"M055","Rørføring","Faglig viden om samling af rør til brug for installationer","Piping"]
[{"$f":"CONCATENATE(\"[\",Tabel_M_Fagdisciplin[[#This Row],[Værdikode]],\"] \",Tabel_M_Fagdisciplin[[#This Row],[Metadataværdi DK]])","v":"[M056] Råd og svamp"},"M056","Råd og svamp","Faglig viden om nedbrydende svampe og behandling heraf ","Rot and mould"]
[{"$f":"CONCATENATE(\"[\",Tabel_M_Fagdisciplin[[#This Row],[Værdikode]],\"] \",Tabel_M_Fagdisciplin[[#This Row],[Metadataværdi DK]])","v":"[M057] Sanitet"},"M057","Sanitet","Faglig viden om installationer til brug på toiletter og i vådrum","Sanitation"]
[{"$f":"CONCATENATE(\"[\",Tabel_M_Fagdisciplin[[#This Row],[Værdikode]],\"] \",Tabel_M_Fagdisciplin[[#This Row],[Metadataværdi DK]])","v":"[M058] Signalanlæg"},"M058","Signalanlæg","Faglig viden om en funktion, der sender/formidler information om en begivenhed/et fænomen","Signalling equipment"]
[{"$f":"CONCATENATE(\"[\",Tabel_M_Fagdisciplin[[#This Row],[Værdikode]],\"] \",Tabel_M_Fagdisciplin[[#This Row],[Metadataværdi DK]])","v":"[M059] Sikringsanlæg"},"M059","Sikringsanlæg","Faglig viden om installationer for strøm for sikring mod utilsigtede hændelser","Safety equipment"]
[{"$f":"CONCATENATE(\"[\",Tabel_M_Fagdisciplin[[#This Row],[Værdikode]],\"] \",Tabel_M_Fagdisciplin[[#This Row],[Metadataværdi DK]])","v":"[M060] Skelfastsættelse"},"M060","Skelfastsættelse","Faglig viden om afsættelse af grænser mellem matrikler","Survey of title"]
[{"$f":"CONCATENATE(\"[\",Tabel_M_Fagdisciplin[[#This Row],[Værdikode]],\"] \",Tabel_M_Fagdisciplin[[#This Row],[Metadataværdi DK]])","v":"[M061] Softwaredesign"},"M061","Softwaredesign","Faglig viden om formgivning af brugsgenstande i form af programmel, der kan afvikles i et computersystem","Software design"]
[{"$f":"CONCATENATE(\"[\",Tabel_M_Fagdisciplin[[#This Row],[Værdikode]],\"] \",Tabel_M_Fagdisciplin[[#This Row],[Metadataværdi DK]])","v":"[M062] Spildevand"},"M062","Spildevand","Faglig viden om at lede spildevand væk eller få det til at ændre retning","Wastewater drainage"]
[{"$f":"CONCATENATE(\"[\",Tabel_M_Fagdisciplin[[#This Row],[Værdikode]],\"] \",Tabel_M_Fagdisciplin[[#This Row],[Metadataværdi DK]])","v":"[M063] Sprinkling"},"M063","Sprinkling","Faglig viden om udformning og installation af anlæg til bekæmpelse af brand i begyndelsesfasen","Sprinkling"]
[{"$f":"CONCATENATE(\"[\",Tabel_M_Fagdisciplin[[#This Row],[Værdikode]],\"] \",Tabel_M_Fagdisciplin[[#This Row],[Metadataværdi DK]])","v":"[M064] Standardisering"},"M064","Standardisering","Faglig viden om at forbedre eller opfinde nye produkter og gøre denne viden til en fælles måde at gøre dette på","Standardisation"]
[{"$f":"CONCATENATE(\"[\",Tabel_M_Fagdisciplin[[#This Row],[Værdikode]],\"] \",Tabel_M_Fagdisciplin[[#This Row],[Metadataværdi DK]])","v":"[M065] Statik"},"M065","Statik","Faglig viden om et bygværks egenskaber og påvirkning heraf i forhold til kræfter i bygningskonstruktioner","Static"]
[{"$f":"CONCATENATE(\"[\",Tabel_M_Fagdisciplin[[#This Row],[Værdikode]],\"] \",Tabel_M_Fagdisciplin[[#This Row],[Metadataværdi DK]])","v":"[M066] Stærkstrøm"},"M066","Stærkstrøm","Faglig viden om installationer for strøm med vekselspændinger på 25 volt eller mere","Heavy current"]
[{"$f":"CONCATENATE(\"[\",Tabel_M_Fagdisciplin[[#This Row],[Værdikode]],\"] \",Tabel_M_Fagdisciplin[[#This Row],[Metadataværdi DK]])","v":"[M067] Svagstrøm"},"M067","Svagstrøm","Faglig viden om installationer for strøm med vekselspændinger under 25 volt","Low current"]
[{"$f":"CONCATENATE(\"[\",Tabel_M_Fagdisciplin[[#This Row],[Værdikode]],\"] \",Tabel_M_Fagdisciplin[[#This Row],[Metadataværdi DK]])","v":"[M068] Tekstildesign"},"M068","Tekstildesign","Faglig viden om formgivning og anvendelse af brugsgenstande af vævet materiale til anvendelse for inventar, beklædning og dekoration","Textile design"]
[{"$f":"CONCATENATE(\"[\",Tabel_M_Fagdisciplin[[#This Row],[Værdikode]],\"] \",Tabel_M_Fagdisciplin[[#This Row],[Metadataværdi DK]])","v":"[M069] Tilgængelighed"},"M069","Tilgængelighed","Faglig viden om et bygværks egenskaber og påvirkning heraf i forhold til sværhedsgrad af adgang til samt bevægelse og ophold i bygværket","Accessibility"]
[{"$f":"CONCATENATE(\"[\",Tabel_M_Fagdisciplin[[#This Row],[Værdikode]],\"] \",Tabel_M_Fagdisciplin[[#This Row],[Metadataværdi DK]])","v":"[M070] Trafikplanlægning"},"M070","Trafikplanlægning","Faglig viden om udarbejdelse af planer for trafikale strukturer","Traffic planning"]
[{"$f":"CONCATENATE(\"[\",Tabel_M_Fagdisciplin[[#This Row],[Værdikode]],\"] \",Tabel_M_Fagdisciplin[[#This Row],[Metadataværdi DK]])","v":"[M071] Udbudsret"},"M071","Udbudsret","Faglig viden om regler, rettigheder og regulering af konflikter i forbindelse med udbud og tilbud på ydelser og leverancer","Procurement"]
[{"$f":"CONCATENATE(\"[\",Tabel_M_Fagdisciplin[[#This Row],[Værdikode]],\"] \",Tabel_M_Fagdisciplin[[#This Row],[Metadataværdi DK]])","v":"[M072] Uddannelse"},"M072","Uddannelse","Faglig viden om videreformidling af viden, som sætter modtageren i stand til at udføre et bestemt hverv","Training"]
[{"$f":"CONCATENATE(\"[\",Tabel_M_Fagdisciplin[[#This Row],[Værdikode]],\"] \",Tabel_M_Fagdisciplin[[#This Row],[Metadataværdi DK]])","v":"[M073] Vand"},"M073","Vand","Faglig viden om tekniske bygningsinstallationer, som behandler eller leverer væsker","Water"]
[{"$f":"CONCATENATE(\"[\",Tabel_M_Fagdisciplin[[#This Row],[Værdikode]],\"] \",Tabel_M_Fagdisciplin[[#This Row],[Metadataværdi DK]])","v":"[M074] Varme"},"M074","Varme","Faglig viden om funktioner, som gør rum eller objekter varmere","Heating"]
[{"$f":"CONCATENATE(\"[\",Tabel_M_Fagdisciplin[[#This Row],[Værdikode]],\"] \",Tabel_M_Fagdisciplin[[#This Row],[Metadataværdi DK]])","v":"[M075] Ventilation"},"M075","Ventilation","Faglig viden om installationer for udskiftning af luft i bygværker og rum","Ventilation"]
[{"$f":"CONCATENATE(\"[\",Tabel_M_Fagdisciplin[[#This Row],[Værdikode]],\"] \",Tabel_M_Fagdisciplin[[#This Row],[Metadataværdi DK]])","v":"[M076] Webinterfacedesign"},"M076","Webinterfacedesign","Faglig viden om udformning og installation af brugerflader til internettet","Webinterface design"]
[{"$f":"CONCATENATE(\"[\",Tabel_M_Fagdisciplin[[#This Row],[Værdikode]],\"] \",Tabel_M_Fagdisciplin[[#This Row],[Metadataværdi DK]])","v":"[M901] Vand, varme og køling"},"M901","Vand, varme og køling","Faglig viden om tekniske bygningsistallationer, som behandler vand, varme og køling.","Water, heating and cooling"]
[{"$f":"CONCATENATE(\"[\",Tabel_M_Fagdisciplin[[#This Row],[Værdikode]],\"] \",Tabel_M_Fagdisciplin[[#This Row],[Metadataværdi DK]])","v":"[M999] Tværfaglig"},"M999","Tværfaglig","Tværfaglig viden","Interdisciplinary"]
[]
[]
[]
[]
[]
[]
[]
[]
[]
[]
[]
[]
[]
[]
[]
[]
[]
[]
[]
[]
[]
["Værdiliste","R"]
["Metadatanavn","Rolle (Role)"]
["Definition","Kategorisering efter person i en bestemt funktion eller tildeling af ansvarsområde"]
["Bunden/Åben","Bunden"]
["Note"]
[]
["Rullelisteværdi","Værdikode","Metadataværdi DK","Beskrivelse","Metadataværdi UK"]
[{"$f":"CONCATENATE(\"[\",Tabel_R_Rolle[[#This Row],[Værdikode]],\"] \",Tabel_R_Rolle[[#This Row],[Metadataværdi DK]])","v":"[R01] Projektchef"},"R01","Projektchef",null,"Project owner"]
[{"$f":"CONCATENATE(\"[\",Tabel_R_Rolle[[#This Row],[Værdikode]],\"] \",Tabel_R_Rolle[[#This Row],[Metadataværdi DK]])","v":"[R02] Projektleder"},"R02","Projektleder",null,"Project manager"]
[{"$f":"CONCATENATE(\"[\",Tabel_R_Rolle[[#This Row],[Værdikode]],\"] \",Tabel_R_Rolle[[#This Row],[Metadataværdi DK]])","v":"[R03] Projekteringsleder"},"R03","Projekteringsleder",null,"Project coordinator"]
[{"$f":"CONCATENATE(\"[\",Tabel_R_Rolle[[#This Row],[Værdikode]],\"] \",Tabel_R_Rolle[[#This Row],[Metadataværdi DK]])","v":"[R04] Byggeleder"},"R04","Byggeleder",null,"Site manager"]
[{"$f":"CONCATENATE(\"[\",Tabel_R_Rolle[[#This Row],[Værdikode]],\"] \",Tabel_R_Rolle[[#This Row],[Metadataværdi DK]])","v":"[R05] IKT-leder"},"R05","IKT-leder",null,"ICT Manager"]
[{"$f":"CONCATENATE(\"[\",Tabel_R_Rolle[[#This Row],[Værdikode]],\"] \",Tabel_R_Rolle[[#This Row],[Metadataværdi DK]])","v":"[R06] IKT-projektkoordinator"},"R06","IKT-projektkoordinator",null,"ICT Project coordinator"]
[{"$f":"CONCATENATE(\"[\",Tabel_R_Rolle[[#This Row],[Værdikode]],\"] \",Tabel_R_Rolle[[#This Row],[Metadataværdi DK]])","v":"[R07] IKT-fagkoordinator"},"R07","IKT-fagkoordinator",null,"ICT Discipline manager"]
[{"$f":"CONCATENATE(\"[\",Tabel_R_Rolle[[#This Row],[Værdikode]],\"] \",Tabel_R_Rolle[[#This Row],[Metadataværdi DK]])","v":"[R08] IKT-bygherrerådgiver"},"R08","IKT-bygherrerådgiver",null,"ICT Client consultant"]
[{"$f":"CONCATENATE(\"[\",Tabel_R_Rolle[[#This Row],[Værdikode]],\"] \",Tabel_R_Rolle[[#This Row],[Metadataværdi DK]])","v":"[R09] Bygherrerådgiver"},"R09","Bygherrerådgiver",null,"Client consultant"]
[{"$f":"CONCATENATE(\"[\",Tabel_R_Rolle[[#This Row],[Værdikode]],\"] \",Tabel_R_Rolle[[#This Row],[Metadataværdi DK]])","v":"[R10] Fagleder"},"R10","Fagleder",null,"Discipline manager"]
[{"$f":"CONCATENATE(\"[\",Tabel_R_Rolle[[#This Row],[Værdikode]],\"] \",Tabel_R_Rolle[[#This Row],[Metadataværdi DK]])","v":"[R11] Fagtilsyn"},"R11","Fagtilsyn",null,"Discipline supervision"]
[{"$f":"CONCATENATE(\"[\",Tabel_R_Rolle[[#This Row],[Værdikode]],\"] \",Tabel_R_Rolle[[#This Row],[Metadataværdi DK]])","v":"[R12] Arbejdsmiljøkoordinator"},"R12","Arbejdsmiljøkoordinator",null,"Work environment coordinator"]
[{"$f":"CONCATENATE(\"[\",Tabel_R_Rolle[[#This Row],[Værdikode]],\"] \",Tabel_R_Rolle[[#This Row],[Metadataværdi DK]])","v":"[R13] KS-leder"},"R13","KS-leder",null,"Quality assurance manager"]
[{"$f":"CONCATENATE(\"[\",Tabel_R_Rolle[[#This Row],[Værdikode]],\"] \",Tabel_R_Rolle[[#This Row],[Metadataværdi DK]])","v":"[R14] Commissioningsleder"},"R14","Commissioningsleder",null,"Commissioning manager"]
[]
["Værdiliste","S"]
["Metadatanavn","Stade (Stage)"]
["Definition","Kode, som angiver et indholds udviklingstrin"]
["Bunden/Åben","Bunden"]
["Note"]
[]
["Rullelisteværdi","Værdikode","Metadataværdi DK","Beskrivelse","Metadataværdi UK"]
[{"$f":"CONCATENATE(\"[\",Tabel_S_Stade[[#This Row],[Værdikode]],\"] \",Tabel_S_Stade[[#This Row],[Metadataværdi DK]])","v":"[S1] Fremtidigt / nyt"},"S1","Fremtidigt / nyt",null,"Future work"]
[{"$f":"CONCATENATE(\"[\",Tabel_S_Stade[[#This Row],[Værdikode]],\"] \",Tabel_S_Stade[[#This Row],[Metadataværdi DK]])","v":"[S2] Eksisterende"},"S2","Eksisterende",null,"Existing "]
[{"$f":"CONCATENATE(\"[\",Tabel_S_Stade[[#This Row],[Værdikode]],\"] \",Tabel_S_Stade[[#This Row],[Metadataværdi DK]])","v":"[S3] Nedrivning/fjernelse"},"S3","Nedrivning/fjernelse",null,"Existing to be removed"]
[{"$f":"CONCATENATE(\"[\",Tabel_S_Stade[[#This Row],[Værdikode]],\"] \",Tabel_S_Stade[[#This Row],[Metadataværdi DK]])","v":"[S4] Midlertidigt"},"S4","Midlertidigt",null,"Temporary work"]
[{"$f":"CONCATENATE(\"[\",Tabel_S_Stade[[#This Row],[Værdikode]],\"] \",Tabel_S_Stade[[#This Row],[Metadataværdi DK]])","v":"[S5] Demonteres og genmonteres"},"S5","Demonteres og genmonteres",null,"Demounting and remounting"]
[]
[]
[]
[]
[]
["Værdiliste","W"]
["Metadatanavn","Kontraktlig organisation (Contractual organization)"]
["Definition","Kategorisering af byggeorganisation, der varetager kontraktlige ydelser"]
["Bunden/Åben","Bunden"]
["Note"]
[]
["Rullelisteværdi","Værdikode","Metadataværdi DK","Beskrivelse","Metadataværdi UK"]
[{"$f":"CONCATENATE(\"[\",Tabel_W_KontraktligOrganisation[[#This Row],[Værdikode]],\"] \",Tabel_W_KontraktligOrganisation[[#This Row],[Metadataværdi DK]])","v":"[W01] Bygherreleverance"},"W01","Bygherreleverance",null,"Client supply"]
[{"$f":"CONCATENATE(\"[\",Tabel_W_KontraktligOrganisation[[#This Row],[Værdikode]],\"] \",Tabel_W_KontraktligOrganisation[[#This Row],[Metadataværdi DK]])","v":"[W02] Rådgivning"},"W02","Rådgivning",null,"Consultancy"]
[{"$f":"CONCATENATE(\"[\",Tabel_W_KontraktligOrganisation[[#This Row],[Værdikode]],\"] \",Tabel_W_KontraktligOrganisation[[#This Row],[Metadataværdi DK]])","v":"[W03] Totalrådgivning"},"W03","Totalrådgivning",null,"Total consultancy"]
[{"$f":"CONCATENATE(\"[\",Tabel_W_KontraktligOrganisation[[#This Row],[Værdikode]],\"] \",Tabel_W_KontraktligOrganisation[[#This Row],[Metadataværdi DK]])","v":"[W04] Underrådgivning"},"W04","Underrådgivning",null,"Sub-consultancy"]
[{"$f":"CONCATENATE(\"[\",Tabel_W_KontraktligOrganisation[[#This Row],[Værdikode]],\"] \",Tabel_W_KontraktligOrganisation[[#This Row],[Metadataværdi DK]])","v":"[W05] Totalentreprise"},"W05","Totalentreprise",null,"Turnkey contract"]
[{"$f":"CONCATENATE(\"[\",Tabel_W_KontraktligOrganisation[[#This Row],[Værdikode]],\"] \",Tabel_W_KontraktligOrganisation[[#This Row],[Metadataværdi DK]])","v":"[W06] Hovedentreprise"},"W06","Hovedentreprise",null,"Main contract"]
[{"$f":"CONCATENATE(\"[\",Tabel_W_KontraktligOrganisation[[#This Row],[Værdikode]],\"] \",Tabel_W_KontraktligOrganisation[[#This Row],[Metadataværdi DK]])","v":"[W07] Storentreprise"},"W07","Storentreprise",null,"Large contract"]
[{"$f":"CONCATENATE(\"[\",Tabel_W_KontraktligOrganisation[[#This Row],[Værdikode]],\"] \",Tabel_W_KontraktligOrganisation[[#This Row],[Metadataværdi DK]])","v":"[W08] Underentreprise"},"W08","Underentreprise",null,"Subcontract"]
[{"$f":"CONCATENATE(\"[\",Tabel_W_KontraktligOrganisation[[#This Row],[Værdikode]],\"] \",Tabel_W_KontraktligOrganisation[[#This Row],[Metadataværdi DK]])","v":"[W09] Fagentreprise"},"W09","Fagentreprise",null,"Trade contract"]
[{"$f":"CONCATENATE(\"[\",Tabel_W_KontraktligOrganisation[[#This Row],[Værdikode]],\"] \",Tabel_W_KontraktligOrganisation[[#This Row],[Metadataværdi DK]])","v":"[W10] OPP (offentlig-privat partnerskab)"},"W10","OPP (offentlig-privat partnerskab)",null,"PPP (public / private partnership)"]
[{"$f":"CONCATENATE(\"[\",Tabel_W_KontraktligOrganisation[[#This Row],[Værdikode]],\"] \",Tabel_W_KontraktligOrganisation[[#This Row],[Metadataværdi DK]])","v":"[W11] Konsortium"},"W11","Konsortium",null,"Consortium"]
[]
["Værdiliste","X"]
["Metadatanavn","Udveksling (Exchange)"]
["Definition","Kategorisering efter modtagelse og afsendelse"]
["Bunden/Åben","Bunden"]
["Note"]
[]
["Rullelisteværdi","Værdikode","Metadataværdi DK","Beskrivelse","Metadataværdi UK"]
[{"$f":"CONCATENATE(\"[\",Tabel_X_Udveksling[[#This Row],[Værdikode]],\"] \",Tabel_X_Udveksling[[#This Row],[Metadataværdi DK]])","v":"[X1] Afsendt"},"X1","Afsendt",null,"Sent"]
[{"$f":"CONCATENATE(\"[\",Tabel_X_Udveksling[[#This Row],[Værdikode]],\"] \",Tabel_X_Udveksling[[#This Row],[Metadataværdi DK]])","v":"[X2] Modtaget"},"X2","Modtaget",null,"Received"]
[]
[]
[]
[]
[]
[]
[]
[]
[]
[]
[]
["Værdiliste","Y"]
["Metadatanavn","Enterprisetype (Contract type)"]
["Definition","Kategorisering af aftaler om ydelser, der vedrører udførelse"]
["Bunden/Åben","Åben"]
["Note"]
[]
["Rullelisteværdi","Værdikode","Metadataværdi DK","Beskrivelse","Metadataværdi UK"]
[{"$f":"CONCATENATE(\"[\",Tabel_Y_Entreprisetype[[#This Row],[Værdikode]],\"] \",Tabel_Y_Entreprisetype[[#This Row],[Metadataværdi DK]])","v":"[Y001] Byggepladsentreprise"},"Y001","Byggepladsentreprise",null,"Construction site contract"]
[{"$f":"CONCATENATE(\"[\",Tabel_Y_Entreprisetype[[#This Row],[Værdikode]],\"] \",Tabel_Y_Entreprisetype[[#This Row],[Metadataværdi DK]])","v":"[Y002] Stilladsentreprise"},"Y002","Stilladsentreprise",null,"Scaffolding contract"]
[{"$f":"CONCATENATE(\"[\",Tabel_Y_Entreprisetype[[#This Row],[Værdikode]],\"] \",Tabel_Y_Entreprisetype[[#This Row],[Metadataværdi DK]])","v":"[Y003] Nedrivningsentreprise"},"Y003","Nedrivningsentreprise",null,"Demolishing contract"]
[{"$f":"CONCATENATE(\"[\",Tabel_Y_Entreprisetype[[#This Row],[Værdikode]],\"] \",Tabel_Y_Entreprisetype[[#This Row],[Metadataværdi DK]])","v":"[Y004] Rydningsentreprise"},"Y004","Rydningsentreprise",null,"Preparation contract"]
[{"$f":"CONCATENATE(\"[\",Tabel_Y_Entreprisetype[[#This Row],[Værdikode]],\"] \",Tabel_Y_Entreprisetype[[#This Row],[Metadataværdi DK]])","v":"[Y010] Jord- og kloakentreprise"},"Y010","Jord- og kloakentreprise",null,"Earth work and sewerage contract"]
[{"$f":"CONCATENATE(\"[\",Tabel_Y_Entreprisetype[[#This Row],[Værdikode]],\"] \",Tabel_Y_Entreprisetype[[#This Row],[Metadataværdi DK]])","v":"[Y011] Jordentreprise"},"Y011","Jordentreprise",null,"Earth work contract"]
[{"$f":"CONCATENATE(\"[\",Tabel_Y_Entreprisetype[[#This Row],[Værdikode]],\"] \",Tabel_Y_Entreprisetype[[#This Row],[Metadataværdi DK]])","v":"[Y012] Kloakentreprise"},"Y012","Kloakentreprise",null,"Sewerage contract"]
[{"$f":"CONCATENATE(\"[\",Tabel_Y_Entreprisetype[[#This Row],[Værdikode]],\"] \",Tabel_Y_Entreprisetype[[#This Row],[Metadataværdi DK]])","v":"[Y013] Membranentreprise"},"Y013","Membranentreprise",null,"Membrane contract"]
[{"$f":"CONCATENATE(\"[\",Tabel_Y_Entreprisetype[[#This Row],[Værdikode]],\"] \",Tabel_Y_Entreprisetype[[#This Row],[Metadataværdi DK]])","v":"[Y014] Afvandingsentreprise"},"Y014","Afvandingsentreprise",null,"Drainage contract"]
[{"$f":"CONCATENATE(\"[\",Tabel_Y_Entreprisetype[[#This Row],[Værdikode]],\"] \",Tabel_Y_Entreprisetype[[#This Row],[Metadataværdi DK]])","v":"[Y015] Byggemodningsentreprise"},"Y015","Byggemodningsentreprise",null,"Land development contract"]
[{"$f":"CONCATENATE(\"[\",Tabel_Y_Entreprisetype[[#This Row],[Værdikode]],\"] \",Tabel_Y_Entreprisetype[[#This Row],[Metadataværdi DK]])","v":"[Y016] Piloteringsentreprise"},"Y016","Piloteringsentreprise",null,"Pilling contract"]
[{"$f":"CONCATENATE(\"[\",Tabel_Y_Entreprisetype[[#This Row],[Værdikode]],\"] \",Tabel_Y_Entreprisetype[[#This Row],[Metadataværdi DK]])","v":"[Y017] Spunsningsentreprise"},"Y017","Spunsningsentreprise",null,"Sheet piling contract"]
[{"$f":"CONCATENATE(\"[\",Tabel_Y_Entreprisetype[[#This Row],[Værdikode]],\"] \",Tabel_Y_Entreprisetype[[#This Row],[Metadataværdi DK]])","v":"[Y020] Anlægsentreprise"},"Y020","Anlægsentreprise",null,"Plant contract"]
[{"$f":"CONCATENATE(\"[\",Tabel_Y_Entreprisetype[[#This Row],[Værdikode]],\"] \",Tabel_Y_Entreprisetype[[#This Row],[Metadataværdi DK]])","v":"[Y021] Vejentreprise"},"Y021","Vejentreprise",null,"Road work contract"]
[{"$f":"CONCATENATE(\"[\",Tabel_Y_Entreprisetype[[#This Row],[Værdikode]],\"] \",Tabel_Y_Entreprisetype[[#This Row],[Metadataværdi DK]])","v":"[Y022] Asfalteringsentreprise"},"Y022","Asfalteringsentreprise",null,"Asphalt laying contract"]
[{"$f":"CONCATENATE(\"[\",Tabel_Y_Entreprisetype[[#This Row],[Værdikode]],\"] \",Tabel_Y_Entreprisetype[[#This Row],[Metadataværdi DK]])","v":"[Y023] Broentreprise"},"Y023","Broentreprise",null,"Paving contract / bridge contract"]
[{"$f":"CONCATENATE(\"[\",Tabel_Y_Entreprisetype[[#This Row],[Værdikode]],\"] \",Tabel_Y_Entreprisetype[[#This Row],[Metadataværdi DK]])","v":"[Y024] Tunnelentreprise"},"Y024","Tunnelentreprise",null,"Tunnel contract"]
[{"$f":"CONCATENATE(\"[\",Tabel_Y_Entreprisetype[[#This Row],[Værdikode]],\"] \",Tabel_Y_Entreprisetype[[#This Row],[Metadataværdi DK]])","v":"[Y025] Sporentreprise"},"Y025","Sporentreprise",null,"Rail laying contract"]
[{"$f":"CONCATENATE(\"[\",Tabel_Y_Entreprisetype[[#This Row],[Værdikode]],\"] \",Tabel_Y_Entreprisetype[[#This Row],[Metadataværdi DK]])","v":"[Y026] Havneentreprise"},"Y026","Havneentreprise",null,"Port construction contract"]
[{"$f":"CONCATENATE(\"[\",Tabel_Y_Entreprisetype[[#This Row],[Værdikode]],\"] \",Tabel_Y_Entreprisetype[[#This Row],[Metadataværdi DK]])","v":"[Y027] Rækværks- og autoværnsentreprise"},"Y027","Rækværks- og autoværnsentreprise",null,"Railings and safety barrier contract"]
[{"$f":"CONCATENATE(\"[\",Tabel_Y_Entreprisetype[[#This Row],[Værdikode]],\"] \",Tabel_Y_Entreprisetype[[#This Row],[Metadataværdi DK]])","v":"[Y030] Landskabsentreprise"},"Y030","Landskabsentreprise",null,"Landscape contract"]
[{"$f":"CONCATENATE(\"[\",Tabel_Y_Entreprisetype[[#This Row],[Værdikode]],\"] \",Tabel_Y_Entreprisetype[[#This Row],[Metadataværdi DK]])","v":"[Y031] Gartnerentreprise"},"Y031","Gartnerentreprise",null,"Gardener contract"]
[{"$f":"CONCATENATE(\"[\",Tabel_Y_Entreprisetype[[#This Row],[Værdikode]],\"] \",Tabel_Y_Entreprisetype[[#This Row],[Metadataværdi DK]])","v":"[Y032] Belægningsentreprise"},"Y032","Belægningsentreprise",null,"Surfacing contract"]
[{"$f":"CONCATENATE(\"[\",Tabel_Y_Entreprisetype[[#This Row],[Værdikode]],\"] \",Tabel_Y_Entreprisetype[[#This Row],[Metadataværdi DK]])","v":"[Y033] Hegnsentreprise"},"Y033","Hegnsentreprise",null,"Hedge contract"]
[{"$f":"CONCATENATE(\"[\",Tabel_Y_Entreprisetype[[#This Row],[Værdikode]],\"] \",Tabel_Y_Entreprisetype[[#This Row],[Metadataværdi DK]])","v":"[Y040] Betonentreprise"},"Y040","Betonentreprise",null,"Concrete contract"]
[{"$f":"CONCATENATE(\"[\",Tabel_Y_Entreprisetype[[#This Row],[Værdikode]],\"] \",Tabel_Y_Entreprisetype[[#This Row],[Metadataværdi DK]])","v":"[Y041] Betonelement, leverance"},"Y041","Betonelement, leverance",null,"Precast concrete elements delivery contract"]
[{"$f":"CONCATENATE(\"[\",Tabel_Y_Entreprisetype[[#This Row],[Værdikode]],\"] \",Tabel_Y_Entreprisetype[[#This Row],[Metadataværdi DK]])","v":"[Y042] Betonelement, montageentreprise"},"Y042","Betonelement, montageentreprise",null,"Precast concrete elements mounting contract"]
[{"$f":"CONCATENATE(\"[\",Tabel_Y_Entreprisetype[[#This Row],[Værdikode]],\"] \",Tabel_Y_Entreprisetype[[#This Row],[Metadataværdi DK]])","v":"[Y043] Armeringsentreprise"},"Y043","Armeringsentreprise",null,"Reinforcement contract"]
[{"$f":"CONCATENATE(\"[\",Tabel_Y_Entreprisetype[[#This Row],[Værdikode]],\"] \",Tabel_Y_Entreprisetype[[#This Row],[Metadataværdi DK]])","v":"[Y044] Spændarmeringsentreprise"},"Y044","Spændarmeringsentreprise",null,"Steel for prestressed concrete contract"]
[{"$f":"CONCATENATE(\"[\",Tabel_Y_Entreprisetype[[#This Row],[Værdikode]],\"] \",Tabel_Y_Entreprisetype[[#This Row],[Metadataværdi DK]])","v":"[Y045] Kompositelemententreprise"},"Y045","Kompositelemententreprise",null,"Composite elements contract"]
[{"$f":"CONCATENATE(\"[\",Tabel_Y_Entreprisetype[[#This Row],[Værdikode]],\"] \",Tabel_Y_Entreprisetype[[#This Row],[Metadataværdi DK]])","v":"[Y050] Murerentreprise"},"Y050","Murerentreprise",null,"Brickwork contract"]
[{"$f":"CONCATENATE(\"[\",Tabel_Y_Entreprisetype[[#This Row],[Værdikode]],\"] \",Tabel_Y_Entreprisetype[[#This Row],[Metadataværdi DK]])","v":"[Y051] Klinke- og fliseentreprise"},"Y051","Klinke- og fliseentreprise",null,"Tile contract"]
[{"$f":"CONCATENATE(\"[\",Tabel_Y_Entreprisetype[[#This Row],[Værdikode]],\"] \",Tabel_Y_Entreprisetype[[#This Row],[Metadataværdi DK]])","v":"[Y052] Pudsentreprise"},"Y052","Pudsentreprise",null,"Cast contract"]
[{"$f":"CONCATENATE(\"[\",Tabel_Y_Entreprisetype[[#This Row],[Værdikode]],\"] \",Tabel_Y_Entreprisetype[[#This Row],[Metadataværdi DK]])","v":"[Y053] Naturstensentreprise"},"Y053","Naturstensentreprise",null,"Natural stone contract"]
[{"$f":"CONCATENATE(\"[\",Tabel_Y_Entreprisetype[[#This Row],[Værdikode]],\"] \",Tabel_Y_Entreprisetype[[#This Row],[Metadataværdi DK]])","v":"[Y054] Natursten, leverance"},"Y054","Natursten, leverance",null,"Natural stone delivery contract"]
[{"$f":"CONCATENATE(\"[\",Tabel_Y_Entreprisetype[[#This Row],[Værdikode]],\"] \",Tabel_Y_Entreprisetype[[#This Row],[Metadataværdi DK]])","v":"[Y055] Porebetonentreprise"},"Y055","Porebetonentreprise",null,"Autoclaved aerated concrete contract"]
[{"$f":"CONCATENATE(\"[\",Tabel_Y_Entreprisetype[[#This Row],[Værdikode]],\"] \",Tabel_Y_Entreprisetype[[#This Row],[Metadataværdi DK]])","v":"[Y060] Tømrer- og snedkerentreprise"},"Y060","Tømrer- og snedkerentreprise",null,"Carpenter and joiner contract"]
[{"$f":"CONCATENATE(\"[\",Tabel_Y_Entreprisetype[[#This Row],[Værdikode]],\"] \",Tabel_Y_Entreprisetype[[#This Row],[Metadataværdi DK]])","v":"[Y061] Tømrerentreprise"},"Y061","Tømrerentreprise",null,"Carpenter contract"]
[{"$f":"CONCATENATE(\"[\",Tabel_Y_Entreprisetype[[#This Row],[Værdikode]],\"] \",Tabel_Y_Entreprisetype[[#This Row],[Metadataværdi DK]])","v":"[Y062] Snedkerentreprise"},"Y062","Snedkerentreprise",null,"Joiner contract"]
[{"$f":"CONCATENATE(\"[\",Tabel_Y_Entreprisetype[[#This Row],[Værdikode]],\"] \",Tabel_Y_Entreprisetype[[#This Row],[Metadataværdi DK]])","v":"[Y063] Træelement, leverance"},"Y063","Træelement, leverance",null,"Timber elements delivery contract"]
[{"$f":"CONCATENATE(\"[\",Tabel_Y_Entreprisetype[[#This Row],[Værdikode]],\"] \",Tabel_Y_Entreprisetype[[#This Row],[Metadataværdi DK]])","v":"[Y064] Træelement, montageentreprise"},"Y064","Træelement, montageentreprise",null,"Timber elements delivery contract"]
[{"$f":"CONCATENATE(\"[\",Tabel_Y_Entreprisetype[[#This Row],[Værdikode]],\"] \",Tabel_Y_Entreprisetype[[#This Row],[Metadataværdi DK]])","v":"[Y065] Loftsentreprise"},"Y065","Loftsentreprise",null,"Ceiling contract"]
[{"$f":"CONCATENATE(\"[\",Tabel_Y_Entreprisetype[[#This Row],[Værdikode]],\"] \",Tabel_Y_Entreprisetype[[#This Row],[Metadataværdi DK]])","v":"[Y066] Gipsvægsentreprise"},"Y066","Gipsvægsentreprise",null,"Gypsum wall contract"]
[{"$f":"CONCATENATE(\"[\",Tabel_Y_Entreprisetype[[#This Row],[Værdikode]],\"] \",Tabel_Y_Entreprisetype[[#This Row],[Metadataværdi DK]])","v":"[Y070] Dør-, vindues- og portentreprise"},"Y070","Dør-, vindues- og portentreprise",null,"Door, window and gate contract"]
[{"$f":"CONCATENATE(\"[\",Tabel_Y_Entreprisetype[[#This Row],[Værdikode]],\"] \",Tabel_Y_Entreprisetype[[#This Row],[Metadataværdi DK]])","v":"[Y071] Døre, vinduer og porte, leverance"},"Y071","Døre, vinduer og porte, leverance",null,"Door s, windows and gates delivery contract"]
[{"$f":"CONCATENATE(\"[\",Tabel_Y_Entreprisetype[[#This Row],[Værdikode]],\"] \",Tabel_Y_Entreprisetype[[#This Row],[Metadataværdi DK]])","v":"[Y072] Døre, vinduer og porte, montageentreprise"},"Y072","Døre, vinduer og porte, montageentreprise",null,"Doors and windows mounting contract"]
[{"$f":"CONCATENATE(\"[\",Tabel_Y_Entreprisetype[[#This Row],[Værdikode]],\"] \",Tabel_Y_Entreprisetype[[#This Row],[Metadataværdi DK]])","v":"[Y080] Malerentreprise"},"Y080","Malerentreprise",null,"Painter contract"]
[{"$f":"CONCATENATE(\"[\",Tabel_Y_Entreprisetype[[#This Row],[Værdikode]],\"] \",Tabel_Y_Entreprisetype[[#This Row],[Metadataværdi DK]])","v":"[Y090] Glasfacadeentreprise"},"Y090","Glasfacadeentreprise",null,"Glass facade contract"]
[{"$f":"CONCATENATE(\"[\",Tabel_Y_Entreprisetype[[#This Row],[Værdikode]],\"] \",Tabel_Y_Entreprisetype[[#This Row],[Metadataværdi DK]])","v":"[Y091] Glasskillevægsentreprise"},"Y091","Glasskillevægsentreprise",null,"Glass interior wall contract"]
[{"$f":"CONCATENATE(\"[\",Tabel_Y_Entreprisetype[[#This Row],[Værdikode]],\"] \",Tabel_Y_Entreprisetype[[#This Row],[Metadataværdi DK]])","v":"[Y092] Montageentreprise"},"Y092","Montageentreprise",null,"Mounting contract"]
[{"$f":"CONCATENATE(\"[\",Tabel_Y_Entreprisetype[[#This Row],[Værdikode]],\"] \",Tabel_Y_Entreprisetype[[#This Row],[Metadataværdi DK]])","v":"[Y093] Lukningsentreprise"},"Y093","Lukningsentreprise",null,"Closure contract"]
[{"$f":"CONCATENATE(\"[\",Tabel_Y_Entreprisetype[[#This Row],[Værdikode]],\"] \",Tabel_Y_Entreprisetype[[#This Row],[Metadataværdi DK]])","v":"[Y100] Gulventreprise"},"Y100","Gulventreprise",null,"Floor contract"]
[{"$f":"CONCATENATE(\"[\",Tabel_Y_Entreprisetype[[#This Row],[Værdikode]],\"] \",Tabel_Y_Entreprisetype[[#This Row],[Metadataværdi DK]])","v":"[Y101] Elastisk gulvbelægnings-entreprise"},"Y101","Elastisk gulvbelægnings-entreprise",null,"Elastic flooring contract"]
[{"$f":"CONCATENATE(\"[\",Tabel_Y_Entreprisetype[[#This Row],[Værdikode]],\"] \",Tabel_Y_Entreprisetype[[#This Row],[Metadataværdi DK]])","v":"[Y102] Trægulvsentreprise"},"Y102","Trægulvsentreprise",null,"Wood flooring contract"]
[{"$f":"CONCATENATE(\"[\",Tabel_Y_Entreprisetype[[#This Row],[Værdikode]],\"] \",Tabel_Y_Entreprisetype[[#This Row],[Metadataværdi DK]])","v":"[Y103] Laminatgulvsentreprise"},"Y103","Laminatgulvsentreprise",null,"Laminate flooring contract"]
[{"$f":"CONCATENATE(\"[\",Tabel_Y_Entreprisetype[[#This Row],[Værdikode]],\"] \",Tabel_Y_Entreprisetype[[#This Row],[Metadataværdi DK]])","v":"[Y104] Tekstilgulvsentreprise"},"Y104","Tekstilgulvsentreprise",null,"Carpeting contract"]
[{"$f":"CONCATENATE(\"[\",Tabel_Y_Entreprisetype[[#This Row],[Værdikode]],\"] \",Tabel_Y_Entreprisetype[[#This Row],[Metadataværdi DK]])","v":"[Y105] Fugefrit gulv-entreprise"},"Y105","Fugefrit gulv-entreprise",null,"Jointless floor contract"]
[{"$f":"CONCATENATE(\"[\",Tabel_Y_Entreprisetype[[#This Row],[Værdikode]],\"] \",Tabel_Y_Entreprisetype[[#This Row],[Metadataværdi DK]])","v":"[Y106] Flisegulvsentreprise"},"Y106","Flisegulvsentreprise",null,"Tile floor contract"]
[{"$f":"CONCATENATE(\"[\",Tabel_Y_Entreprisetype[[#This Row],[Værdikode]],\"] \",Tabel_Y_Entreprisetype[[#This Row],[Metadataværdi DK]])","v":"[Y107] Terrazzogulvsentreprise"},"Y107","Terrazzogulvsentreprise",null,"Terrazzo floor contract"]
[{"$f":"CONCATENATE(\"[\",Tabel_Y_Entreprisetype[[#This Row],[Værdikode]],\"] \",Tabel_Y_Entreprisetype[[#This Row],[Metadataværdi DK]])","v":"[Y108] Undergulvsentreprise"},"Y108","Undergulvsentreprise",null,"Subfloor contract"]
[{"$f":"CONCATENATE(\"[\",Tabel_Y_Entreprisetype[[#This Row],[Værdikode]],\"] \",Tabel_Y_Entreprisetype[[#This Row],[Metadataværdi DK]])","v":"[Y109] Specialgulvsentreprise"},"Y109","Specialgulvsentreprise",null,"Special floor contract"]
[{"$f":"CONCATENATE(\"[\",Tabel_Y_Entreprisetype[[#This Row],[Værdikode]],\"] \",Tabel_Y_Entreprisetype[[#This Row],[Metadataværdi DK]])","v":"[Y110] Stålentreprise"},"Y110","Stålentreprise",null,"Steel contract"]
[{"$f":"CONCATENATE(\"[\",Tabel_Y_Entreprisetype[[#This Row],[Værdikode]],\"] \",Tabel_Y_Entreprisetype[[#This Row],[Metadataværdi DK]])","v":"[Y111] Smedeentreprise"},"Y111","Smedeentreprise",null,"Smith contract"]
[{"$f":"CONCATENATE(\"[\",Tabel_Y_Entreprisetype[[#This Row],[Værdikode]],\"] \",Tabel_Y_Entreprisetype[[#This Row],[Metadataværdi DK]])","v":"[Y112] Stål, leverance"},"Y112","Stål, leverance",null,"Steel delivery contract"]
[{"$f":"CONCATENATE(\"[\",Tabel_Y_Entreprisetype[[#This Row],[Værdikode]],\"] \",Tabel_Y_Entreprisetype[[#This Row],[Metadataværdi DK]])","v":"[Y113] Stål, montageentreprise"},"Y113","Stål, montageentreprise",null,"Steel mounting contract"]
[{"$f":"CONCATENATE(\"[\",Tabel_Y_Entreprisetype[[#This Row],[Værdikode]],\"] \",Tabel_Y_Entreprisetype[[#This Row],[Metadataværdi DK]])","v":"[Y120] Blikkenslagerentreprise"},"Y120","Blikkenslagerentreprise",null,"Plumber contract"]
[{"$f":"CONCATENATE(\"[\",Tabel_Y_Entreprisetype[[#This Row],[Værdikode]],\"] \",Tabel_Y_Entreprisetype[[#This Row],[Metadataværdi DK]])","v":"[Y121] Inddækning og tagnedløb, leverance"},"Y121","Inddækning og tagnedløb, leverance",null,"Flashing and rain pipe contract"]
[{"$f":"CONCATENATE(\"[\",Tabel_Y_Entreprisetype[[#This Row],[Værdikode]],\"] \",Tabel_Y_Entreprisetype[[#This Row],[Metadataværdi DK]])","v":"[Y130] Tagentreprise"},"Y130","Tagentreprise",null,"Roof contract"]
[{"$f":"CONCATENATE(\"[\",Tabel_Y_Entreprisetype[[#This Row],[Værdikode]],\"] \",Tabel_Y_Entreprisetype[[#This Row],[Metadataværdi DK]])","v":"[Y131] Tagdækningsentreprise"},"Y131","Tagdækningsentreprise",null,"Roof covering contract"]
[{"$f":"CONCATENATE(\"[\",Tabel_Y_Entreprisetype[[#This Row],[Værdikode]],\"] \",Tabel_Y_Entreprisetype[[#This Row],[Metadataværdi DK]])","v":"[Y132] Tagelement, leverance"},"Y132","Tagelement, leverance",null,"Roof elements delivery contract"]
[{"$f":"CONCATENATE(\"[\",Tabel_Y_Entreprisetype[[#This Row],[Værdikode]],\"] \",Tabel_Y_Entreprisetype[[#This Row],[Metadataværdi DK]])","v":"[Y140] Isoleringsentreprise"},"Y140","Isoleringsentreprise",null,"Insulation contract"]
[{"$f":"CONCATENATE(\"[\",Tabel_Y_Entreprisetype[[#This Row],[Værdikode]],\"] \",Tabel_Y_Entreprisetype[[#This Row],[Metadataværdi DK]])","v":"[Y141] Brandisoleringsentreprise"},"Y141","Brandisoleringsentreprise",null,"Fireinsulation contract"]
[{"$f":"CONCATENATE(\"[\",Tabel_Y_Entreprisetype[[#This Row],[Værdikode]],\"] \",Tabel_Y_Entreprisetype[[#This Row],[Metadataværdi DK]])","v":"[Y142] Teknisk isolerings-entreprise"},"Y142","Teknisk isolerings-entreprise",null,"Technical insulation contract"]
[{"$f":"CONCATENATE(\"[\",Tabel_Y_Entreprisetype[[#This Row],[Værdikode]],\"] \",Tabel_Y_Entreprisetype[[#This Row],[Metadataværdi DK]])","v":"[Y150] Fugeentreprise"},"Y150","Fugeentreprise",null,"Joint contract"]
[{"$f":"CONCATENATE(\"[\",Tabel_Y_Entreprisetype[[#This Row],[Værdikode]],\"] \",Tabel_Y_Entreprisetype[[#This Row],[Metadataværdi DK]])","v":"[Y160] Elevatorentreprise"},"Y160","Elevatorentreprise",null,"Elevator contract"]
[{"$f":"CONCATENATE(\"[\",Tabel_Y_Entreprisetype[[#This Row],[Værdikode]],\"] \",Tabel_Y_Entreprisetype[[#This Row],[Metadataværdi DK]])","v":"[Y170] VVS-entreprise"},"Y170","VVS-entreprise",null,"Plumbing and heating contract"]
[{"$f":"CONCATENATE(\"[\",Tabel_Y_Entreprisetype[[#This Row],[Værdikode]],\"] \",Tabel_Y_Entreprisetype[[#This Row],[Metadataværdi DK]])","v":"[Y171] Sprinklingsentreprise"},"Y171","Sprinklingsentreprise",null,"Sprinkler contract"]
[{"$f":"CONCATENATE(\"[\",Tabel_Y_Entreprisetype[[#This Row],[Værdikode]],\"] \",Tabel_Y_Entreprisetype[[#This Row],[Metadataværdi DK]])","v":"[Y172] Kølingsentreprise"},"Y172","Kølingsentreprise",null,"Cooling contract"]
[{"$f":"CONCATENATE(\"[\",Tabel_Y_Entreprisetype[[#This Row],[Værdikode]],\"] \",Tabel_Y_Entreprisetype[[#This Row],[Metadataværdi DK]])","v":"[Y173] Gas- og trykluftsentreprise"},"Y173","Gas- og trykluftsentreprise",null,"Gas supply and air-operated system contract"]
[{"$f":"CONCATENATE(\"[\",Tabel_Y_Entreprisetype[[#This Row],[Værdikode]],\"] \",Tabel_Y_Entreprisetype[[#This Row],[Metadataværdi DK]])","v":"[Y180] Ventilationsentreprise"},"Y180","Ventilationsentreprise",null,"Ventilation contract"]
[{"$f":"CONCATENATE(\"[\",Tabel_Y_Entreprisetype[[#This Row],[Værdikode]],\"] \",Tabel_Y_Entreprisetype[[#This Row],[Metadataværdi DK]])","v":"[Y190] Elentreprise"},"Y190","Elentreprise",null,"Electrical contract"]
[{"$f":"CONCATENATE(\"[\",Tabel_Y_Entreprisetype[[#This Row],[Værdikode]],\"] \",Tabel_Y_Entreprisetype[[#This Row],[Metadataværdi DK]])","v":"[Y191] Eltavle, leverance"},"Y191","Eltavle, leverance",null,"Electrical panel delivery contract"]
[{"$f":"CONCATENATE(\"[\",Tabel_Y_Entreprisetype[[#This Row],[Værdikode]],\"] \",Tabel_Y_Entreprisetype[[#This Row],[Metadataværdi DK]])","v":"[Y192] Bygningsautomationsentreprise"},"Y192","Bygningsautomationsentreprise",null,"Building automation contract"]
[{"$f":"CONCATENATE(\"[\",Tabel_Y_Entreprisetype[[#This Row],[Værdikode]],\"] \",Tabel_Y_Entreprisetype[[#This Row],[Metadataværdi DK]])","v":"[Y193] Kommunikations- og IT-entreprise"},"Y193","Kommunikations- og IT-entreprise",null,"Communication and IT contract"]
[{"$f":"CONCATENATE(\"[\",Tabel_Y_Entreprisetype[[#This Row],[Værdikode]],\"] \",Tabel_Y_Entreprisetype[[#This Row],[Metadataværdi DK]])","v":"[Y194] Sikringsentreprise"},"Y194","Sikringsentreprise",null,"Security contract"]
[{"$f":"CONCATENATE(\"[\",Tabel_Y_Entreprisetype[[#This Row],[Værdikode]],\"] \",Tabel_Y_Entreprisetype[[#This Row],[Metadataværdi DK]])","v":"[Y195] Signalentreprise"},"Y195","Signalentreprise",null,"Signal contract"]
[{"$f":"CONCATENATE(\"[\",Tabel_Y_Entreprisetype[[#This Row],[Værdikode]],\"] \",Tabel_Y_Entreprisetype[[#This Row],[Metadataværdi DK]])","v":"[Y196] Brandsikringsentreprise"},"Y196","Brandsikringsentreprise",null,"Fire protection contract"]
[{"$f":"CONCATENATE(\"[\",Tabel_Y_Entreprisetype[[#This Row],[Værdikode]],\"] \",Tabel_Y_Entreprisetype[[#This Row],[Metadataværdi DK]])","v":"[Y197] Solcelleentreprise"},"Y197","Solcelleentreprise",null,"Solar cell system contract"]
[{"$f":"CONCATENATE(\"[\",Tabel_Y_Entreprisetype[[#This Row],[Værdikode]],\"] \",Tabel_Y_Entreprisetype[[#This Row],[Metadataværdi DK]])","v":"[Y200] Rengøringsentreprise"},"Y200","Rengøringsentreprise",null,"Cleaning contract"]
[{"$f":"CONCATENATE(\"[\",Tabel_Y_Entreprisetype[[#This Row],[Værdikode]],\"] \",Tabel_Y_Entreprisetype[[#This Row],[Metadataværdi DK]])","v":"[Y201] Facaderengøringsentreprise"},"Y201","Facaderengøringsentreprise",null,"Facade cleaning system contract"]
[{"$f":"CONCATENATE(\"[\",Tabel_Y_Entreprisetype[[#This Row],[Værdikode]],\"] \",Tabel_Y_Entreprisetype[[#This Row],[Metadataværdi DK]])","v":"[Y210] Badekabineentreprise"},"Y210","Badekabineentreprise",null,"Bath unit contract"]
[{"$f":"CONCATENATE(\"[\",Tabel_Y_Entreprisetype[[#This Row],[Værdikode]],\"] \",Tabel_Y_Entreprisetype[[#This Row],[Metadataværdi DK]])","v":"[Y211] Badekabine, leverance"},"Y211","Badekabine, leverance",null,"Bath unit delivery contract"]
[{"$f":"CONCATENATE(\"[\",Tabel_Y_Entreprisetype[[#This Row],[Værdikode]],\"] \",Tabel_Y_Entreprisetype[[#This Row],[Metadataværdi DK]])","v":"[Y212] Badekabine, montageentreprise"},"Y212","Badekabine, montageentreprise",null,"Bath unit mounting contract"]
[{"$f":"CONCATENATE(\"[\",Tabel_Y_Entreprisetype[[#This Row],[Værdikode]],\"] \",Tabel_Y_Entreprisetype[[#This Row],[Metadataværdi DK]])","v":"[Y220] Trappeentreprise"},"Y220","Trappeentreprise",null,"Staircase contract"]
[{"$f":"CONCATENATE(\"[\",Tabel_Y_Entreprisetype[[#This Row],[Værdikode]],\"] \",Tabel_Y_Entreprisetype[[#This Row],[Metadataværdi DK]])","v":"[Y221] Trappe, leverance"},"Y221","Trappe, leverance",null,"Staircase delivery contract"]
[{"$f":"CONCATENATE(\"[\",Tabel_Y_Entreprisetype[[#This Row],[Værdikode]],\"] \",Tabel_Y_Entreprisetype[[#This Row],[Metadataværdi DK]])","v":"[Y222] Trappe, montageentreprise"},"Y222","Trappe, montageentreprise",null,"Staircase mounting contract"]
[{"$f":"CONCATENATE(\"[\",Tabel_Y_Entreprisetype[[#This Row],[Værdikode]],\"] \",Tabel_Y_Entreprisetype[[#This Row],[Metadataværdi DK]])","v":"[Y230] Legepladsentreprise"},"Y230","Legepladsentreprise",null,"Playground contract"]
[{"$f":"CONCATENATE(\"[\",Tabel_Y_Entreprisetype[[#This Row],[Værdikode]],\"] \",Tabel_Y_Entreprisetype[[#This Row],[Metadataværdi DK]])","v":"[Y231] Legepladsudstyr, montageentreprise"},"Y231","Legepladsudstyr, montageentreprise",null,"Playground equipment mounting contract"]
[{"$f":"CONCATENATE(\"[\",Tabel_Y_Entreprisetype[[#This Row],[Værdikode]],\"] \",Tabel_Y_Entreprisetype[[#This Row],[Metadataværdi DK]])","v":"[Y232] Legepladsudstyr, leverance"},"Y232","Legepladsudstyr, leverance",null,"Playground equipment delivery contract"]
[{"$f":"CONCATENATE(\"[\",Tabel_Y_Entreprisetype[[#This Row],[Værdikode]],\"] \",Tabel_Y_Entreprisetype[[#This Row],[Metadataværdi DK]])","v":"[Y240] Køkkenelementsentreprise"},"Y240","Køkkenelementsentreprise",null,"Kitchen elements contract"]
[{"$f":"CONCATENATE(\"[\",Tabel_Y_Entreprisetype[[#This Row],[Værdikode]],\"] \",Tabel_Y_Entreprisetype[[#This Row],[Metadataværdi DK]])","v":"[Y241] Køkkenelement, leverance"},"Y241","Køkkenelement, leverance",null,"Kitchen elements delivery contract"]
[{"$f":"CONCATENATE(\"[\",Tabel_Y_Entreprisetype[[#This Row],[Værdikode]],\"] \",Tabel_Y_Entreprisetype[[#This Row],[Metadataværdi DK]])","v":"[Y242] Køkkenelement, montageentreprise"},"Y242","Køkkenelement, montageentreprise",null,"Kitchen elements mounting contract"]
[{"$f":"CONCATENATE(\"[\",Tabel_Y_Entreprisetype[[#This Row],[Værdikode]],\"] \",Tabel_Y_Entreprisetype[[#This Row],[Metadataværdi DK]])","v":"[Y243] Hvidevarer, leverance"},"Y243","Hvidevarer, leverance",null,"Applliances delivery contract"]
[{"$f":"CONCATENATE(\"[\",Tabel_Y_Entreprisetype[[#This Row],[Værdikode]],\"] \",Tabel_Y_Entreprisetype[[#This Row],[Metadataværdi DK]])","v":"[Y250] Inventarentreprise"},"Y250","Inventarentreprise",null,"Furniture contract"]
[{"$f":"CONCATENATE(\"[\",Tabel_Y_Entreprisetype[[#This Row],[Værdikode]],\"] \",Tabel_Y_Entreprisetype[[#This Row],[Metadataværdi DK]])","v":"[Y251] Inventar, leverance"},"Y251","Inventar, leverance",null,"Furniture delivery contract"]
[{"$f":"CONCATENATE(\"[\",Tabel_Y_Entreprisetype[[#This Row],[Værdikode]],\"] \",Tabel_Y_Entreprisetype[[#This Row],[Metadataværdi DK]])","v":"[Y252] Inventar, montageentreprise"},"Y252","Inventar, montageentreprise",null,"Furniture mounting contract"]
[{"$f":"CONCATENATE(\"[\",Tabel_Y_Entreprisetype[[#This Row],[Værdikode]],\"] \",Tabel_Y_Entreprisetype[[#This Row],[Metadataværdi DK]])","v":"[Y253] Skilte- og afmærkningsentreprise"},"Y253","Skilte- og afmærkningsentreprise",null,"Signposting and marking contract"]
[{"$f":"CONCATENATE(\"[\",Tabel_Y_Entreprisetype[[#This Row],[Værdikode]],\"] \",Tabel_Y_Entreprisetype[[#This Row],[Metadataværdi DK]])","v":"[Y260] Solafskærmningsentreprise"},"Y260","Solafskærmningsentreprise",null,"Sunshade contract"]
[{"$f":"CONCATENATE(\"[\",Tabel_Y_Entreprisetype[[#This Row],[Værdikode]],\"] \",Tabel_Y_Entreprisetype[[#This Row],[Metadataværdi DK]])","v":"[Y261] Solafskærmning, leverance"},"Y261","Solafskærmning, leverance",null,"Sunshade delivery contract"]
[{"$f":"CONCATENATE(\"[\",Tabel_Y_Entreprisetype[[#This Row],[Værdikode]],\"] \",Tabel_Y_Entreprisetype[[#This Row],[Metadataværdi DK]])","v":"[Y262] Solafskærmning, montageentreprise"},"Y262","Solafskærmning, montageentreprise",null,"Sunshade mounting contract"]
[{"$f":"CONCATENATE(\"[\",Tabel_Y_Entreprisetype[[#This Row],[Værdikode]],\"] \",Tabel_Y_Entreprisetype[[#This Row],[Metadataværdi DK]])","v":"[Y263] Gardinentreprise"},"Y263","Gardinentreprise",null,"Curtain mounting contract"]
[{"$f":"CONCATENATE(\"[\",Tabel_Y_Entreprisetype[[#This Row],[Værdikode]],\"] \",Tabel_Y_Entreprisetype[[#This Row],[Metadataværdi DK]])","v":"[Y264] Gardin, leverance"},"Y264","Gardin, leverance",null,"Curtain delivery contract"]
[{"$f":"CONCATENATE(\"[\",Tabel_Y_Entreprisetype[[#This Row],[Værdikode]],\"] \",Tabel_Y_Entreprisetype[[#This Row],[Metadataværdi DK]])","v":"[Y265] Gardin, montageentreprise"},"Y265","Gardin, montageentreprise",null,"Curtain mounting contract"]
[{"$f":"CONCATENATE(\"[\",Tabel_Y_Entreprisetype[[#This Row],[Værdikode]],\"] \",Tabel_Y_Entreprisetype[[#This Row],[Metadataværdi DK]])","v":"[Y266] Ramningsentreprise"},"Y266","Ramningsentreprise",null,"Framingcontract"]